Ref No,Fund Type,Dept,Cost Centre Description    ,Description    ,Creditor Name    ,GL Code Net Amount,Payment date        
2,Revenue,CAHD,Central - Commissioned Services,Permanent Residential,1 St Georges House,13333.52, 14-Dec-2021
3,Revenue,CAHD,Early Years High Needs Support,Other Private Contractors,100 Acre Wood Day Nursery,910.08, 21-Dec-2021
4,Revenue,CAHD,CSC - Care Leavers Independent Living,Independent Living,1625 Independent People,1384.11, 09-Dec-2021
5,Revenue,CAHD,CSC - LAC Housing Support Grants,Grants to Voluntary Bodies,1625 Independent People,20058.00, 09-Dec-2021
6,Revenue,CAHD,CSC - LAC Housing Support Grants,Grants to Voluntary Bodies,1625 Independent People,3343.00, 09-Dec-2021
7,Revenue,CAHD,CSC - Care Leavers Independent Living,Client Transport,1625 Independent People,3360.20, 07-Dec-2021
8,Revenue,CAHD,CSC - LAC Housing Support Grants,Grants to Voluntary Bodies,1625 Independent People,3343.00, 13-Dec-2021
9,Revenue,CAHD,Supporting People Programme,Grants to Voluntary Bodies,1625 Independent People,15167.00, 01-Dec-2021
10,Revenue,CAHD,Supporting People Programme,Grants to Voluntary Bodies,1625 Independent People,15167.00, 30-Dec-2021
11,Revenue,CAHD,South - Commissioned Services,Permanent Residential,2Nd Floor Building,5630.76, 14-Dec-2021
12,Revenue,CAHD,South - Commissioned Services,Permanent Residential,2Nd Floor Building,2806.12, 14-Dec-2021
13,Revenue,CAHD,Central - Commissioned Services,Other Small Contracts,3 Trees Community Support Ltd,7523.55, 01-Dec-2021
14,Revenue,CAHD,Central - Commissioned Services,Supported Living,3 Trees Community Support Ltd,3004.69, 01-Dec-2021
15,Revenue,CAHD,Central - Commissioned Services,Other Small Contracts,3 Trees Community Support Ltd,7654.87, 09-Dec-2021
16,Revenue,CAHD,Central - Commissioned Services,Supported Living,3 Trees Community Support Ltd,2993.80, 09-Dec-2021
17,Revenue,CAHD,Central - Commissioned Services,Other Small Contracts,3 Trees Community Support Ltd,7528.64, 15-Dec-2021
18,Revenue,CAHD,Central - Commissioned Services,Supported Living,3 Trees Community Support Ltd,3002.15, 15-Dec-2021
19,Revenue,CAHD,Central - Commissioned Services,Other Small Contracts,3 Trees Community Support Ltd,7672.18, 24-Dec-2021
20,Revenue,CAHD,Central - Commissioned Services,Supported Living,3 Trees Community Support Ltd,3008.32, 24-Dec-2021
21,Revenue,CAHD,Central - Commissioned Services,Other Small Contracts,3 Trees Community Support Ltd,7522.03, 24-Dec-2021
22,Revenue,CAHD,Central - Commissioned Services,Supported Living,3 Trees Community Support Ltd,3004.69, 24-Dec-2021
23,Revenue,CAHD,South - Commissioned Services,Permanent Residential,5Th Floor Harlech Court,17391.48, 14-Dec-2021
24,Revenue,CAHD,South - Commissioned Services,Permanent Residential,5Th Floor Harlech Court,18290.84, 14-Dec-2021
25,Revenue,CAHD,S28A cases,Permanent Residential,5Th Floor Harlech Court,11378.60, 14-Dec-2021
26,Revenue,CAHD,South - Commissioned Services,Permanent Residential,5Th Floor Harlech Court,11933.40, 14-Dec-2021
27,Revenue,CAHD,Covid - ASC - Infection Control,Grants to Voluntary Bodies,5Th Floor Harlech Court,1845.19, 16-Dec-2021
28,Revenue,CAHD,ASC Rapid Testing Fund,Grants to Voluntary Bodies,5Th Floor Harlech Court,1311.10, 16-Dec-2021
29,Revenue,CAHD,North - Community based support,Permanent Residential,5Th Floor Harlech Court,12498.56, 14-Dec-2021
30,Revenue,CAHD,North - Community based support,Permanent Residential,5Th Floor Harlech Court,10537.24, 14-Dec-2021
31,Revenue,CAHD,North - Community based support,Permanent Residential,5Th Floor Harlech Court,9071.12, 14-Dec-2021
32,Revenue,CAHD,18-25 Year Olds,Day Care / Social Activities,A+bility Ltd,556.00, 24-Dec-2021
33,Revenue,CAHD,Early Years Inclusion Fund,Other Public Bodies,Abacus Pre-School,900.00, 30-Dec-2021
34,Revenue,CAHD,CSC - Vinney Green Secure Unit,Service Contracts (Premises),Abbey Fire Protection Limited,906.52, 30-Dec-2021
35,Revenue,CAHD,South - Commissioned Services,Permanent Nursing,Acacia House,3085.88, 14-Dec-2021
36,Revenue,CAHD,Central - Commissioned Services,Permanent Nursing,Acacia House,16529.32, 14-Dec-2021
37,Revenue,CAHD,Central - Commissioned Services,Permanent Nursing,Acacia House,3587.76, 14-Dec-2021
38,Revenue,CAHD,Home Care Monitoring (CM2000),Other Supplies & Services,Access UK Limited,14406.50, 24-Dec-2021
39,Revenue,CAHD,Home Care Monitoring (CM2000),Other Supplies & Services,Access UK Limited,15658.63, 30-Dec-2021
40,Revenue,CAHD,Central - Commissioned Services,Permanent Residential,Acer House Care Home.,3800.00, 14-Dec-2021
41,Revenue,CAHD,Jointly Funded H&SC Packages,Permanent Residential,Acorn Care Providers,2366.36, 14-Dec-2021
42,Revenue,CAHD,Section 117 Placements MH Younger,Permanent Residential,Acorn Care Providers,5605.08, 14-Dec-2021
43,Revenue,CAHD,North - S117,Permanent Residential,Acorn Care Providers,4067.36, 14-Dec-2021
44,Revenue,CAHD,Jointly Funded H&SC Packages,Permanent Residential,Acorn Care Providers,2193.40, 14-Dec-2021
45,Revenue,CAHD,MH Purchasing - Younger,Permanent Residential,Acorn Care Providers,6528.83, 14-Dec-2021
46,Revenue,CAHD,Jointly Funded H&SC Packages,Permanent Residential,Acorn Care Providers,3515.53, 14-Dec-2021
47,Revenue,CAHD,MH Purchasing - Younger,Permanent Residential,Acorn Care Providers,6411.00, 14-Dec-2021
48,Revenue,CAHD,Training Budget - Children`s Social Serv,Training Expenses,Acorn Health & Safety Limited,449.00, 09-Dec-2021
49,Revenue,CAHD,Training - Adult Services,Training Expenses,Acorn Health & Safety Limited,473.25, 23-Dec-2021
50,Revenue,CAHD,CSC - Agency Fostering,Foster Parent Allowances,Action for Children,3771.30, 23-Dec-2021
51,Revenue,CAHD,CSC - Agency Fostering,Foster Parent Allowances,Action for Children,3595.50, 23-Dec-2021
52,Revenue,CAHD,CSC - Agency Fostering,Foster Parent Allowances,Action for Children,3595.50, 23-Dec-2021
53,Revenue,CAHD,South - Commissioned Services,Other Small Contracts,Advantedge Commercial Finance Limited,994.00, 10-Dec-2021
54,Revenue,CAHD,South - Commissioned Services,Other Small Contracts,Advantedge Commercial Finance Limited,2494.94, 10-Dec-2021
55,Revenue,CAHD,South - Commissioned Services,Other Small Contracts,Advantedge Commercial Finance Limited,1222.62, 10-Dec-2021
56,Revenue,CAHD,South - Commissioned Services,Other Small Contracts,Advantedge Commercial Finance Limited,1769.32, 15-Dec-2021
57,Revenue,CAHD,South - Commissioned Services,Other Small Contracts,Advantedge Commercial Finance Limited,1222.62, 15-Dec-2021
58,Revenue,CAHD,Central - Commissioned Services,Other Small Contracts,Advantedge Commercial Finance Limited,2504.88, 21-Dec-2021
59,Revenue,CAHD,South - Commissioned Services,Other Small Contracts,Advantedge Commercial Finance Limited,2156.98, 21-Dec-2021
60,Revenue,CAHD,South - Commissioned Services,Other Small Contracts,Advantedge Commercial Finance Limited,2027.76, 21-Dec-2021
61,Revenue,CAHD,South - Commissioned Services,Other Small Contracts,Advantedge Commercial Finance Limited,1182.86, 21-Dec-2021
62,Revenue,CAHD,South - Commissioned Services,Other Small Contracts,Advantedge Commercial Finance Limited,1252.44, 29-Dec-2021
63,Revenue,CAHD,South - Commissioned Services,Other Small Contracts,Advantedge Commercial Finance Limited,695.80, 29-Dec-2021
64,Revenue,CAHD,South - Commissioned Services,Other Small Contracts,Advantedge Commercial Finance Limited,2027.76, 29-Dec-2021
65,Revenue,CAHD,South - Commissioned Services,Other Small Contracts,Advantedge Commercial Finance Limited,1192.80, 29-Dec-2021
66,Revenue,CAHD,South - Commissioned Services,Other Small Contracts,Advantedge Commercial Finance Limited,695.80, 29-Dec-2021
67,Revenue,CAHD,Covid - ASC - Infection Control,Grants to Voluntary Bodies,Advantedge Commercial Finance Limited,1974.44, 20-Dec-2021
68,Revenue,CAHD,ASC Rapid Testing Fund,Grants to Voluntary Bodies,Advantedge Commercial Finance Limited,1448.39, 17-Dec-2021
69,Revenue,CAHD,Covid - Vaccines,Grants to Voluntary Bodies,Advantedge Commercial Finance Limited,528.01, 17-Dec-2021
70,Revenue,CAHD,Central - Commissioned Services,Day Care / Social Activities,Age Concern,559.36, 14-Dec-2021
71,Revenue,CAHD,Covid - ASC - Infection Control,Grants to Voluntary Bodies,Age UK South Gloucestershire,1468.18, 23-Dec-2021
72,Revenue,CAHD,ASC Rapid Testing Fund,Grants to Voluntary Bodies,Age UK South Gloucestershire,1077.01, 23-Dec-2021
73,Revenue,CAHD,South - Commissioned Services,Other Small Contracts,Agincare UK Limited,508.82, 03-Dec-2021
74,Revenue,CAHD,South - Commissioned Services,Other Small Contracts,Agincare UK Limited,513.76, 03-Dec-2021
75,Revenue,CAHD,South - Commissioned Services,Other Small Contracts,Agincare UK Limited,523.64, 24-Dec-2021
76,Revenue,CAHD,Extra Care Housing,Private & Voluntary Home Care,Agincare UK Limited,24448.84, 01-Dec-2021
77,Revenue,CAHD,Extra Care Housing,Private & Voluntary Home Care,Agincare UK Limited,24448.84, 30-Dec-2021
78,Revenue,CAHD,Extra Care Housing,Private & Voluntary Home Care,Agincare UK Limited,11763.39, 01-Dec-2021
79,Revenue,CAHD,Extra Care Housing,Private & Voluntary Home Care,Agincare UK Limited,11763.39, 30-Dec-2021
80,Revenue,CAHD,Extra Care Housing,Private & Voluntary Home Care,Agincare UK Limited,30860.93, 03-Dec-2021
81,Revenue,CAHD,Extra Care Housing,Private & Voluntary Home Care,Agincare UK Limited,5458.37, 20-Dec-2021
82,Revenue,CAHD,Extra Care Housing,Private & Voluntary Home Care,Agincare UK Limited,5458.37, 24-Dec-2021
83,Revenue,CAHD,Extra Care Housing,Private & Voluntary Home Care,Agincare UK Limited,5458.37, 30-Dec-2021
84,Revenue,CAHD,Extra Care Housing,Private & Voluntary Home Care,Agincare UK Limited,965.04, 01-Dec-2021
85,Revenue,CAHD,Extra Care Housing,Private & Voluntary Home Care,Agincare UK Limited,1558.18, 10-Dec-2021
86,Revenue,CAHD,Covid - ASC - Infection Control,Grants to Voluntary Bodies,Agincare UK Limited,1923.82, 01-Dec-2021
87,Revenue,CAHD,Covid - ASC - Infection Control,Grants to Voluntary Bodies,Agincare UK Limited,4556.41, 01-Dec-2021
88,Revenue,CAHD,ASC Rapid Testing Fund,Grants to Voluntary Bodies,Agincare UK Limited,1411.26, 01-Dec-2021
89,Revenue,CAHD,ASC Rapid Testing Fund,Grants to Voluntary Bodies,Agincare UK Limited,3342.45, 01-Dec-2021
90,Revenue,CAHD,Extra Care Housing,Private & Voluntary Home Care,Agincare UK Limited,1587.11, 01-Dec-2021
91,Revenue,CAHD,Covid - Vaccines,Grants to Voluntary Bodies,Agincare UK Limited,514.47, 01-Dec-2021
92,Revenue,CAHD,Covid - Vaccines,Grants to Voluntary Bodies,Agincare UK Limited,1218.48, 01-Dec-2021
93,Revenue,CAHD,Schools Specific Grant Income,Other Public Bodies,Air Balloon Hill Primary School,500.00, 10-Dec-2021
94,Revenue,CAHD,Schools Specific Grant Income,Other Public Bodies,Air Balloon Hill Primary School,500.00, 10-Dec-2021
95,Revenue,CAHD,Statemented Support Payments to OLAs,Other L.A.s - General,Air Balloon Hill Primary School,801.92, 23-Dec-2021
96,Revenue,CAHD,Alexandra Way,Uniforms & Clothing,Alexandra,420.30, 09-Dec-2021
97,Revenue,CAHD,CSC - Adoption Support Fund,Post Adoption,Individual,806.25, 03-Dec-2021
98,Revenue,CAHD,CSC - Adoption Support Fund,Post Adoption,Individual,576.00, 02-Dec-2021
99,Revenue,CAHD,CSC - Adoption Support Fund,Post Adoption,Individual,1464.50, 30-Dec-2021
100,Revenue,CAHD,Central - Commissioned Services,Other Small Contracts,AliMo Care Ltd,195.60, 15-Dec-2021
101,Revenue,CAHD,South - Commissioned Services,Other Small Contracts,AliMo Care Ltd,841.08, 15-Dec-2021
102,Revenue,CAHD,North - Community based support,Other Small Contracts,AliMo Care Ltd,141.81, 15-Dec-2021
103,Revenue,CAHD,Central - Commissioned Services,Other Small Contracts,AliMo Care Ltd,200.49, 15-Dec-2021
104,Revenue,CAHD,South - Commissioned Services,Other Small Contracts,AliMo Care Ltd,870.42, 15-Dec-2021
105,Revenue,CAHD,North - Community based support,Other Small Contracts,AliMo Care Ltd,127.14, 15-Dec-2021
106,Revenue,CAHD,Covid - ASC - Infection Control,Grants to Voluntary Bodies,AliMo Care Ltd,2784.47, 10-Dec-2021
107,Revenue,CAHD,ASC Rapid Testing Fund,Grants to Voluntary Bodies,AliMo Care Ltd,2042.61, 13-Dec-2021
108,Revenue,CAHD,Covid - Vaccines,Grants to Voluntary Bodies,AliMo Care Ltd,744.63, 10-Dec-2021
109,Revenue,CAHD,Covid - ASC - Infection Control,Grants to Voluntary Bodies,Alina Homecare Services Limited,2733.85, 01-Dec-2021
110,Revenue,CAHD,ASC Rapid Testing Fund,Grants to Voluntary Bodies,Alina Homecare Services Limited,2005.47, 01-Dec-2021
111,Revenue,CAHD,Covid - Vaccines,Grants to Voluntary Bodies,Alina Homecare Services Limited,731.09, 01-Dec-2021
112,Revenue,CAHD,Central - Commissioned Services,Permanent Residential,Alvony House Residential Care Home,3000.00, 14-Dec-2021
113,Revenue,CAHD,CSC - Residential Placements,Permanent Residential,Amberleigh Care Ltd,16230.00, 06-Dec-2021
114,Revenue,CAHD,CSC - Residential Placements,Permanent Residential,Amberleigh Care Ltd,16771.00, 24-Dec-2021
115,Revenue,CAHD,CSC - Residential Placements,Permanent Residential,Ambito Care and Education,19920.87, 10-Dec-2021
116,Revenue,CAHD,CSC - Residential Placements,Permanent Residential,Ambito Care and Education,19920.87, 01-Dec-2021
117,Revenue,CAHD,CSC - Residential Placements,Permanent Residential,Ambito Care and Education,19930.88, 01-Dec-2021
118,Revenue,CAHD,CSC - Residential Placements,Permanent Residential,Ambito Care and Education,19920.87, 30-Dec-2021
119,Revenue,CAHD,CSC - Residential Placements,Permanent Residential,Ambito Care and Education,19930.88, 30-Dec-2021
120,Revenue,CAHD,CSC - Agency Fostering,Foster Parent Allowances,Amicus Foster Care Ltd,4721.61, 03-Dec-2021
121,Revenue,CAHD,CSC - Agency Fostering,Foster Parent Allowances,Amicus Foster Care Ltd,4641.72, 03-Dec-2021
122,Revenue,CAHD,Alexandra Way,Premises Maintenance by Contractor,Amy Flooring Limited,485.24, 17-Dec-2021
123,Revenue,CAHD,Supporting People Programme,Grants to Voluntary Bodies,Anchor Hanover Group,1039.00, 01-Dec-2021
124,Revenue,CAHD,Supporting People Programme,Grants to Voluntary Bodies,Anchor Hanover Group,1039.00, 30-Dec-2021
125,Revenue,CAHD,Supporting People Programme,Grants to Voluntary Bodies,Anchor Hanover Group,847.00, 01-Dec-2021
126,Revenue,CAHD,Supporting People Programme,Grants to Voluntary Bodies,Anchor Hanover Group,847.00, 30-Dec-2021
127,Revenue,CAHD,Covid - ASC - Infection Control,Grants to Voluntary Bodies,Angel Care Support Limited,911.28, 23-Dec-2021
128,Revenue,CAHD,ASC Rapid Testing Fund,Grants to Voluntary Bodies,Angel Care Support Limited,668.49, 23-Dec-2021
129,Revenue,CAHD,Social Lettings Agency,Rent,Individual,822.73, 20-Dec-2021
130,Revenue,CAHD,Social Lettings Agency,Fees & Charges Income - General,Individual,-65.82, 20-Dec-2021
131,Revenue,CAHD,Social Lettings Agency,Rent,Individual,822.73, 02-Dec-2021
132,Revenue,CAHD,Social Lettings Agency,Fees & Charges Income - General,Individual,-65.82, 02-Dec-2021
133,Revenue,CAHD,Social Lettings Agency,Rent,Individual,822.73, 30-Dec-2021
134,Revenue,CAHD,Social Lettings Agency,Fees & Charges Income - General,Individual,-65.82, 30-Dec-2021
135,Revenue,CAHD,EARLY YEARS DISABILITY  ACCES FUND,Preventative Assistance,Apple Tree Pre-School,615.00, 03-Dec-2021
136,Revenue,CAHD,CSC - Vinney Green Secure Unit,Educational Materials,AQA Education Ltd,654.00, 22-Dec-2021
137,Revenue,CAHD,Younger MH non-res purchasing,Supported Living,Archcare Rehab Limited,2002.44, 14-Dec-2021
138,Revenue,CAHD,South - Commissioned Services,Permanent Residential,Ash Lea House,5551.92, 14-Dec-2021
139,Revenue,CAHD,South - Commissioned Services,Permanent Residential,Ash View House,5655.48, 14-Dec-2021
140,Revenue,CAHD,Jointly Funded H&SC Packages,Permanent Residential,Ash View House,1160.84, 14-Dec-2021
141,Revenue,CAHD,S117 Placements PCT,Permanent Residential,Ash View House,7884.72, 14-Dec-2021
142,Revenue,CAHD,North - Community based support,Permanent Residential,Ash View House,7099.52, 14-Dec-2021
143,Revenue,CAHD,North - Community based support,Permanent Residential,Ash View House,7120.00, 14-Dec-2021
144,Revenue,CAHD,Section 117 Placements MH Younger,Permanent Residential,Ash View House,5135.96, 14-Dec-2021
145,Revenue,CAHD,Jointly Funded H&SC Packages,Permanent Residential,Ash View House,2204.28, 14-Dec-2021
146,Revenue,CAHD,South - S117,Permanent Residential,Ash View House,6983.64, 14-Dec-2021
147,Revenue,CAHD,South - Commissioned Services,Permanent Residential,Ash View House,6903.04, 14-Dec-2021
148,Revenue,CAHD,Covid - ASC - Infection Control,Grants to Voluntary Bodies,Ash View House,2851.66, 16-Dec-2021
149,Revenue,CAHD,ASC Rapid Testing Fund,Grants to Voluntary Bodies,Ash View House,2026.24, 16-Dec-2021
150,Revenue,CAHD,Drug and Alcohol Programme,Rent,Ashville Asset Management Limited,1244.55, 24-Dec-2021
151,Revenue,CAHD,Drug and Alcohol Programme,Rent,Ashville Asset Management Limited,4550.00, 24-Dec-2021
152,Revenue,CAHD,Supporting People Programme,Grants to Voluntary Bodies,Aspects and Milestones Trust,3441.00, 01-Dec-2021
153,Revenue,CAHD,Supporting People Programme,Grants to Voluntary Bodies,Aspects and Milestones Trust,1725.00, 01-Dec-2021
154,Revenue,CAHD,Supporting People Programme,Grants to Voluntary Bodies,Aspects and Milestones Trust,3441.00, 30-Dec-2021
155,Revenue,CAHD,Supporting People Programme,Grants to Voluntary Bodies,Aspects and Milestones Trust,1725.00, 30-Dec-2021
156,Revenue,CAHD,18-25 Year Olds,Other Small Contracts,Aspirations,4197.41, 06-Dec-2021
157,Revenue,CAHD,18-25 Year Olds,Supported Living,Aspirations,361.86, 06-Dec-2021
158,Revenue,CAHD,Central - Commissioned Services,Other Small Contracts,Aspirations,144.00, 06-Dec-2021
159,Revenue,CAHD,South - Commissioned Services,Day Care / Social Activities,Aspirations,1491.45, 06-Dec-2021
160,Revenue,CAHD,South - Commissioned Services,Other Small Contracts,Aspirations,3056.22, 06-Dec-2021
161,Revenue,CAHD,South - Commissioned Services,Supported Living,Aspirations,14673.92, 06-Dec-2021
162,Revenue,CAHD,North - Community based support,Supported Living,Aspirations,3444.48, 06-Dec-2021
163,Revenue,CAHD,18-25 Year Olds,Other Small Contracts,Aspirations,4134.44, 10-Dec-2021
164,Revenue,CAHD,18-25 Year Olds,Supported Living,Aspirations,361.86, 10-Dec-2021
165,Revenue,CAHD,Central - Commissioned Services,Other Small Contracts,Aspirations,144.00, 10-Dec-2021
166,Revenue,CAHD,South - Commissioned Services,Day Care / Social Activities,Aspirations,1520.79, 10-Dec-2021
167,Revenue,CAHD,South - Commissioned Services,Other Small Contracts,Aspirations,3070.89, 10-Dec-2021
168,Revenue,CAHD,South - Commissioned Services,Supported Living,Aspirations,14401.48, 10-Dec-2021
169,Revenue,CAHD,North - Community based support,Supported Living,Aspirations,3237.12, 10-Dec-2021
170,Revenue,CAHD,18-25 Year Olds,Other Small Contracts,Aspirations,4196.32, 20-Dec-2021
171,Revenue,CAHD,18-25 Year Olds,Supported Living,Aspirations,361.86, 20-Dec-2021
172,Revenue,CAHD,Central - Commissioned Services,Other Small Contracts,Aspirations,120.00, 20-Dec-2021
173,Revenue,CAHD,South - Commissioned Services,Day Care / Social Activities,Aspirations,1515.90, 20-Dec-2021
174,Revenue,CAHD,South - Commissioned Services,Other Small Contracts,Aspirations,3340.26, 20-Dec-2021
175,Revenue,CAHD,South - Commissioned Services,Supported Living,Aspirations,14367.28, 20-Dec-2021
176,Revenue,CAHD,North - Community based support,Supported Living,Aspirations,3438.72, 20-Dec-2021
177,Revenue,CAHD,18-25 Year Olds,Other Small Contracts,Aspirations,3912.70, 24-Dec-2021
178,Revenue,CAHD,18-25 Year Olds,Supported Living,Aspirations,273.84, 24-Dec-2021
179,Revenue,CAHD,Central - Commissioned Services,Other Small Contracts,Aspirations,96.00, 24-Dec-2021
180,Revenue,CAHD,South - Commissioned Services,Day Care / Social Activities,Aspirations,1511.01, 24-Dec-2021
181,Revenue,CAHD,South - Commissioned Services,Other Small Contracts,Aspirations,3037.11, 24-Dec-2021
182,Revenue,CAHD,South - Commissioned Services,Supported Living,Aspirations,13673.64, 24-Dec-2021
183,Revenue,CAHD,North - Community based support,Supported Living,Aspirations,3444.48, 24-Dec-2021
184,Revenue,CAHD,Covid - ASC - Infection Control,Grants to Voluntary Bodies,Aspirations,4050.14, 01-Dec-2021
185,Revenue,CAHD,ASC Rapid Testing Fund,Grants to Voluntary Bodies,Aspirations,2971.07, 01-Dec-2021
186,Revenue,CAHD,Covid - Vaccines,Grants to Voluntary Bodies,Aspirations,1083.10, 01-Dec-2021
187,Revenue,CAHD,CSC - Care Leavers Independent Living,Adults - Family Support,Aspirations Support Bristol Limited,15419.68, 06-Dec-2021
188,Revenue,CAHD,South - Commissioned Services,Adults - Family Support,Ategi Limited,1574.91, 01-Dec-2021
189,Revenue,CAHD,South - Commissioned Services,Adults - Family Support,Ategi Limited,1989.36, 02-Dec-2021
190,Revenue,CAHD,South - Commissioned Services,Adults - Family Support,Ategi Limited,580.23, 02-Dec-2021
191,Revenue,CAHD,South - Commissioned Services,Adults - Family Support,Ategi Limited,1326.24, 15-Dec-2021
192,Revenue,CAHD,Shared Lives,Other Supplies & Services,Ategi Limited,53502.00, 30-Dec-2021
193,Revenue,CAHD,South - Commissioned Services,Adults - Family Support,Ategi Limited,17042.85, 08-Dec-2021
194,Revenue,CAHD,High Risk Group Funding,Schools Funding,Athelstan Trust,1320.00, 15-Dec-2021
195,Revenue,CAHD,Statemented Support Academies,Other Public Bodies,Athelstan Trust,718.08, 23-Dec-2021
196,Revenue,CAHD,Statemented Support Academies,Other Public Bodies,Athelstan Trust,1101.42, 23-Dec-2021
197,Revenue,CAHD,Statemented Support Academies,Other Public Bodies,Athelstan Trust,722.42, 23-Dec-2021
198,Revenue,CAHD,Statemented Support Academies,Other Public Bodies,Athelstan Trust,1342.25, 23-Dec-2021
199,Revenue,CAHD,Statemented Support Academies,Other Public Bodies,Athelstan Trust,1367.64, 23-Dec-2021
200,Revenue,CAHD,Statemented Support Academies,Other Public Bodies,Athelstan Trust,771.42, 23-Dec-2021
201,Revenue,CAHD,Statemented Support Academies,Other Public Bodies,Athelstan Trust,1436.25, 23-Dec-2021
202,Revenue,CAHD,Statemented Support Academies,Other Public Bodies,Athelstan Trust,588.75, 23-Dec-2021
203,Revenue,CAHD,Statemented Support Academies,Other Public Bodies,Athelstan Trust,3514.12, 23-Dec-2021
204,Revenue,CAHD,CSC - CLA Placements,Supported Living,Athelstan Trust,934.13, 23-Dec-2021
205,Revenue,CAHD,Statemented Support Academies,Other Public Bodies,Athelstan Trust,926.58, 23-Dec-2021
206,Revenue,CAHD,Statemented Support Academies,Other Public Bodies,Athelstan Trust,1066.65, 23-Dec-2021
207,Revenue,CAHD,Academy Resource Base Funding,Other Public Bodies,Athelstan Trust,849.32, 21-Dec-2021
208,Revenue,CAHD,Academy Resource Base Funding,Other Public Bodies,Athelstan Trust,2513.87, 21-Dec-2021
209,Revenue,CAHD,Academy Resource Base Funding,Other Public Bodies,Athelstan Trust,2513.87, 21-Dec-2021
210,Revenue,CAHD,Academy Resource Base Funding,Other Public Bodies,Athelstan Trust,2513.87, 21-Dec-2021
211,Revenue,CAHD,Academy Resource Base Funding,Other Public Bodies,Athelstan Trust,2513.87, 21-Dec-2021
212,Revenue,CAHD,Academy Resource Base Funding,Other Public Bodies,Athelstan Trust,2513.87, 21-Dec-2021
213,Revenue,CAHD,Academy Resource Base Funding,Other Public Bodies,Athelstan Trust,2513.87, 21-Dec-2021
214,Revenue,CAHD,Academy Resource Base Funding,Other Public Bodies,Athelstan Trust,2513.87, 21-Dec-2021
215,Revenue,CAHD,Academy Resource Base Funding,Other Public Bodies,Athelstan Trust,2513.87, 21-Dec-2021
216,Revenue,CAHD,Academy Resource Base Funding,Other Public Bodies,Athelstan Trust,2513.87, 21-Dec-2021
217,Revenue,CAHD,Academy Resource Base Funding,Other Public Bodies,Athelstan Trust,2513.87, 21-Dec-2021
218,Revenue,CAHD,Academy Resource Base Funding,Other Public Bodies,Athelstan Trust,2513.87, 21-Dec-2021
219,Revenue,CAHD,CSC - Vinney Green Secure Unit,R & M by Departments,Atus Systems Limited,1335.26, 08-Dec-2021
220,Revenue,CAHD,Independent Special Placements - Pre 16,Other Private Contractors,Aurora Hedgeway School,19088.00, 13-Dec-2021
221,Revenue,CAHD,Independent Special Placements - Pre 16,Other Private Contractors,Aurora Hedgeway School,19088.00, 13-Dec-2021
222,Revenue,CAHD,Independent Special Placements - Pre 16,Other Private Contractors,Aurora Hedgeway School,24572.82, 14-Dec-2021
223,Revenue,CAHD,Independent Special Placements - Pre 16,Other Private Contractors,Aurora Hedgeway School,26844.70, 13-Dec-2021
224,Revenue,CAHD,Independent Special Placements - Post 16,Other Private Contractors,Aurora Hedgeway School,15766.57, 14-Dec-2021
225,Revenue,CAHD,Independent Special Placements - Post 16,Other Private Contractors,Aurora Hedgeway School,15766.57, 14-Dec-2021
226,Revenue,CAHD,Independent Special Placements - Post 16,Other Private Contractors,Aurora Hedgeway School,21794.99, 15-Dec-2021
227,Revenue,CAHD,Independent Special Placements - Pre 16,Other Private Contractors,Aurora Hedgeway School,15766.57, 14-Dec-2021
228,Revenue,CAHD,Independent Special Placements - Pre 16,Other Private Contractors,Aurora Hedgeway School,19088.00, 14-Dec-2021
229,Revenue,CAHD,Independent Special Placements - Pre 16,Other Private Contractors,Aurora Hedgeway School,19088.00, 14-Dec-2021
230,Revenue,CAHD,Independent Special Placements - Pre 16,Other Private Contractors,Aurora Hedgeway School,23159.65, 14-Dec-2021
231,Revenue,CAHD,Independent Special Placements - Pre 16,Other Private Contractors,Aurora Hedgeway School,21516.00, 14-Dec-2021
232,Revenue,CAHD,Independent Special Placements - Pre 16,Other Private Contractors,Aurora Hedgeway School,15766.57, 14-Dec-2021
233,Revenue,CAHD,Independent Special Placements - Pre 16,Other Private Contractors,Aurora Hedgeway School,15766.57, 14-Dec-2021
234,Revenue,CAHD,Independent Special Placements - Pre 16,Other Private Contractors,Aurora Hedgeway School,15766.57, 14-Dec-2021
235,Revenue,CAHD,Independent Special Placements - Post 16,Other Private Contractors,Aurora Hedgeway School,17955.92, 14-Dec-2021
236,Revenue,CAHD,Independent Special Placements - Pre 16,Other Private Contractors,Aurora Hedgeway School,21618.00, 14-Dec-2021
237,Revenue,CAHD,Independent Special Placements - Pre 16,Other Private Contractors,Aurora Hedgeway School,15766.57, 14-Dec-2021
238,Revenue,CAHD,Independent Special Placements - Post 16,Other Private Contractors,Aurora Hedgeway School,3637.76, 14-Dec-2021
239,Revenue,CAHD,Independent Special Placements - Post 16,Other Private Contractors,Aurora Hedgeway School,27647.00, 14-Dec-2021
240,Revenue,CAHD,Independent Special Placements - Post 16,Bus Revenue Support,Aurora Severnside School,16656.00, 14-Dec-2021
241,Revenue,CAHD,South - Commissioned Services,Permanent Residential,Autism Specialised Care Homes,6506.88, 14-Dec-2021
242,Revenue,CAHD,Younger Adult Mental Health,Health Services (Third Party Payments),Avon & Wiltshire Mental Health,1693.33, 08-Dec-2021
243,Revenue,CAHD,Younger Adult Mental Health,Agency Staff (Admin/Support Staff) Pay,Avon & Wiltshire Mental Health,4311.00, 17-Dec-2021
244,Revenue,CAHD,Younger Adult Mental Health,Agency Staff (Admin/Support Staff) Pay,Avon & Wiltshire Mental Health,4278.00, 17-Dec-2021
245,Revenue,CAHD,Younger Adult Mental Health,Health Services (Third Party Payments),Avon & Wiltshire Mental Health,1693.33, 17-Dec-2021
246,Revenue,CAHD,CSC - LAC - Counselling & Therapy,Other Supplies & Services,Avon & Wiltshire Mental Health,15000.00, 24-Dec-2021
247,Revenue,CAHD,Younger Adult Mental Health,Agency Staff (Admin/Support Staff) Pay,Avon & Wiltshire Mental Health,5920.00, 17-Dec-2021
248,Revenue,CAHD,Children Centres - North Locality,Other Premises Costs,Avon Armour Limited,1179.42, 30-Dec-2021
249,Revenue,CAHD,South Glos Users in South Glos Homes,Permanent Nursing,Avon Lodge Care Centre,750.40, 14-Dec-2021
250,Revenue,CAHD,South Glos Users in South Glos Homes,Permanent Nursing,Avon Lodge Care Centre,750.40, 14-Dec-2021
251,Revenue,CAHD,South Glos Users in South Glos Homes,Permanent Nursing,Avon Lodge Care Centre,750.40, 14-Dec-2021
252,Revenue,CAHD,South Glos Users in South Glos Homes,Permanent Nursing,Avon Lodge Care Centre,750.40, 14-Dec-2021
253,Revenue,CAHD,South - Commissioned Services,Permanent Nursing,Avon Lodge Care Centre,3339.08, 14-Dec-2021
254,Revenue,CAHD,South Glos Users in South Glos Homes,Permanent Nursing,Avon Lodge Care Centre,750.40, 14-Dec-2021
255,Revenue,CAHD,South Glos Users in South Glos Homes,Permanent Nursing,Avon Lodge Care Centre,750.40, 14-Dec-2021
256,Revenue,CAHD,South - Commissioned Services,Permanent Nursing,Avon Lodge Care Centre,4296.00, 14-Dec-2021
257,Revenue,CAHD,South Glos Users in South Glos Homes,Permanent Nursing,Avon Lodge Care Centre,750.40, 14-Dec-2021
258,Revenue,CAHD,North - Community based support,Respite Planned - Residential,Avon Lodge Care Centre,1928.57, 14-Dec-2021
259,Revenue,CAHD,South - Commissioned Services,Permanent Nursing,Avon Lodge Care Centre,3539.60, 14-Dec-2021
260,Revenue,CAHD,South Glos Users in South Glos Homes,Permanent Nursing,Avon Lodge Care Centre,750.40, 14-Dec-2021
261,Revenue,CAHD,South Glos Users in South Glos Homes,Permanent Nursing,Avon Lodge Care Centre,750.40, 14-Dec-2021
262,Revenue,CAHD,South - Commissioned Services,Permanent Nursing,Avon Lodge Care Centre,4447.88, 14-Dec-2021
263,Revenue,CAHD,South Glos Users in South Glos Homes,Permanent Nursing,Avon Lodge Care Centre,750.40, 14-Dec-2021
264,Revenue,CAHD,South - Commissioned Services,Respite Planned - Residential,Avon Lodge Care Centre,4296.48, 14-Dec-2021
265,Revenue,CAHD,South Glos Users in South Glos Homes,Permanent Nursing,Avon Lodge Care Centre,750.40, 14-Dec-2021
266,Revenue,CAHD,South - Commissioned Services,Permanent Nursing,Avon Lodge Care Centre,4505.12, 14-Dec-2021
267,Revenue,CAHD,South Glos Users in South Glos Homes,Permanent Nursing,Avon Lodge Care Centre,750.40, 14-Dec-2021
268,Revenue,CAHD,South - Commissioned Services,Permanent Residential,Avon Lodge Care Centre,3600.00, 14-Dec-2021
269,Revenue,CAHD,South - Commissioned Services,Permanent Residential,Avon Lodge Care Centre,3342.86, 14-Dec-2021
270,Revenue,CAHD,South - Commissioned Services,Respite Planned - Nursing,Avon Lodge Care Centre,3222.36, 14-Dec-2021
271,Revenue,CAHD,South - Commissioned Services,Permanent Nursing,Avon Lodge Care Centre,4410.32, 14-Dec-2021
272,Revenue,CAHD,South Glos Users in South Glos Homes,Permanent Nursing,Avon Lodge Care Centre,750.40, 14-Dec-2021
273,Revenue,CAHD,South - Commissioned Services,Permanent Nursing,Avon Lodge Care Centre,4400.00, 14-Dec-2021
274,Revenue,CAHD,South Glos Users in South Glos Homes,Permanent Nursing,Avon Lodge Care Centre,750.40, 14-Dec-2021
275,Revenue,CAHD,South Glos Users in South Glos Homes,Permanent Nursing,Avon Lodge Care Centre,750.40, 14-Dec-2021
276,Revenue,CAHD,South Glos Users in South Glos Homes,Permanent Nursing,Avon Lodge Care Centre,750.40, 14-Dec-2021
277,Revenue,CAHD,Central - Commissioned Services,Permanent Nursing,Avon Lodge Care Centre,3974.16, 14-Dec-2021
278,Revenue,CAHD,South Glos Users in South Glos Homes,Permanent Nursing,Avon Lodge Care Centre,750.40, 14-Dec-2021
279,Revenue,CAHD,Central - Commissioned Services,Fees & Charges Income - General,Avon Lodge Care Centre,918.71, 14-Dec-2021
280,Revenue,CAHD,South - Commissioned Services,Permanent Nursing,Avon Lodge Care Centre,3887.40, 14-Dec-2021
281,Revenue,CAHD,South Glos Users in South Glos Homes,Permanent Nursing,Avon Lodge Care Centre,750.40, 14-Dec-2021
282,Revenue,CAHD,South - Commissioned Services,Permanent Nursing,Avon Lodge Care Centre,4296.48, 14-Dec-2021
283,Revenue,CAHD,South - Commissioned Services,Respite Planned - Nursing,Avon Lodge Care Centre,3375.81, 14-Dec-2021
284,Revenue,CAHD,South - Commissioned Services,Permanent Nursing,Avon Lodge Care Centre,3836.14, 14-Dec-2021
285,Revenue,CAHD,South - Commissioned Services,Permanent Nursing,Avon Lodge Care Centre,4446.94, 14-Dec-2021
286,Revenue,CAHD,South - Commissioned Services,Permanent Nursing,Avon Lodge Care Centre,613.37, 14-Dec-2021
287,Revenue,CAHD,Central - Commissioned Services,Permanent Nursing,Avon Lodge Care Centre,3887.40, 14-Dec-2021
288,Revenue,CAHD,South Glos Users in South Glos Homes,Permanent Nursing,Avon Lodge Care Centre,750.40, 14-Dec-2021
289,Revenue,CAHD,North - Community based support,Permanent Residential,Avon Lodge Care Centre,3539.60, 14-Dec-2021
290,Revenue,CAHD,South Glos Users in South Glos Homes,Permanent Nursing,Avon Lodge Care Centre,750.40, 14-Dec-2021
291,Revenue,CAHD,South Glos Users in South Glos Homes,Permanent Nursing,Avon Lodge Care Centre,750.40, 14-Dec-2021
292,Revenue,CAHD,South - Commissioned Services,Permanent Nursing,Avon Lodge Care Centre,4296.48, 14-Dec-2021
293,Revenue,CAHD,South - Commissioned Services,Permanent Nursing,Avon Lodge Care Centre,3068.91, 14-Dec-2021
294,Revenue,CAHD,South - Commissioned Services,Respite Planned - Nursing,Avon Lodge Care Centre,1074.12, 14-Dec-2021
295,Revenue,CAHD,Central - Commissioned Services,Respite Planned - Nursing,Avon Lodge Care Centre,5322.00, 14-Dec-2021
296,Revenue,CAHD,North - Community based support,Respite Planned - Nursing,Avon Lodge Care Centre,1841.35, 14-Dec-2021
297,Revenue,CAHD,South - Commissioned Services,Permanent Nursing,Avon Lodge Care Centre,4634.24, 14-Dec-2021
298,Revenue,CAHD,South Glos Users in South Glos Homes,Permanent Nursing,Avon Lodge Care Centre,750.40, 14-Dec-2021
299,Revenue,CAHD,South - S117,Permanent Nursing,Avon Lodge Care Centre,3974.84, 14-Dec-2021
300,Revenue,CAHD,South Glos Users in South Glos Homes,Permanent Nursing,Avon Lodge Care Centre,750.40, 14-Dec-2021
301,Revenue,CAHD,South - Commissioned Services,Respite Planned - Nursing,Avon Lodge Care Centre,3460.00, 14-Dec-2021
302,Revenue,CAHD,South Glos Users in South Glos Homes,Permanent Nursing,Avon Lodge Care Centre,750.40, 14-Dec-2021
303,Revenue,CAHD,North - Community based support,Permanent Nursing,Avon Lodge Care Centre,3887.40, 14-Dec-2021
304,Revenue,CAHD,South Glos Users in South Glos Homes,Permanent Nursing,Avon Lodge Care Centre,750.40, 14-Dec-2021
305,Revenue,CAHD,South - Commissioned Services,Permanent Nursing,Avon Lodge Care Centre,4296.48, 14-Dec-2021
306,Revenue,CAHD,South - Commissioned Services,Permanent Residential,Avon Lodge Care Centre,3130.40, 14-Dec-2021
307,Revenue,CAHD,South Glos Users in South Glos Homes,Permanent Nursing,Avon Lodge Care Centre,750.40, 14-Dec-2021
308,Revenue,CAHD,South - Commissioned Services,Respite Planned - Nursing,Avon Lodge Care Centre,1074.12, 14-Dec-2021
309,Revenue,CAHD,South Glos Users in South Glos Homes,Permanent Nursing,Avon Lodge Care Centre,750.40, 14-Dec-2021
310,Revenue,CAHD,South - Commissioned Services,Permanent Nursing,Avon Lodge Care Centre,3800.00, 14-Dec-2021
311,Revenue,CAHD,South Glos Users in South Glos Homes,Permanent Nursing,Avon Lodge Care Centre,750.40, 14-Dec-2021
312,Revenue,CAHD,South - Commissioned Services,Permanent Residential,Avon Valley Care Home,4092.00, 14-Dec-2021
313,Revenue,CAHD,South - Commissioned Services,Permanent Residential,Avon Valley Care Home,4270.00, 14-Dec-2021
314,Revenue,CAHD,South - Commissioned Services,Permanent Residential,Avon Valley Care Home,4270.00, 14-Dec-2021
315,Revenue,CAHD,South - S117,Permanent Residential,Avon Valley Care Home,4092.00, 14-Dec-2021
316,Revenue,CAHD,South - Commissioned Services,Permanent Residential,Avon Valley Care Home,4051.08, 14-Dec-2021
317,Revenue,CAHD,South - Commissioned Services,Permanent Residential,Avon Valley Care Home,4230.00, 14-Dec-2021
318,Revenue,CAHD,South - Commissioned Services,Permanent Residential,Avon Valley Care Home,4051.08, 14-Dec-2021
319,Revenue,CAHD,South - Commissioned Services,Permanent Residential,Avon Valley Care Home,4270.00, 14-Dec-2021
320,Revenue,CAHD,South - Commissioned Services,Permanent Residential,Avon Valley Care Home,4910.40, 14-Dec-2021
321,Revenue,CAHD,South - Commissioned Services,Permanent Residential,Avon Valley Care Home,4230.00, 14-Dec-2021
322,Revenue,CAHD,South - Commissioned Services,Permanent Residential,Avon Valley Care Home,4051.08, 14-Dec-2021
323,Revenue,CAHD,South - Commissioned Services,Permanent Residential,Avon Valley Care Home,4230.00, 14-Dec-2021
324,Revenue,CAHD,South - Commissioned Services,Permanent Residential,Avon Valley Care Home,4230.00, 14-Dec-2021
325,Revenue,CAHD,South - Commissioned Services,Permanent Residential,Avon Valley Care Home,4230.00, 14-Dec-2021
326,Revenue,CAHD,Central - Commissioned Services,Permanent Residential,Avon Valley Care Home,4092.00, 14-Dec-2021
327,Revenue,CAHD,South - Commissioned Services,Permanent Residential,Avon Valley Care Home,4092.00, 14-Dec-2021
328,Revenue,CAHD,South - Commissioned Services,Fees & Charges Income - General,Avon Valley Care Home,524.25, 14-Dec-2021
329,Revenue,CAHD,Covid  - Workforce capacity,Grants to Voluntary Bodies,Avon Valley Care Home,3505.82, 29-Dec-2021
330,Revenue,CAHD,North - Community based support,Permanent Residential,Avonmere Care Home,4680.00, 14-Dec-2021
331,Revenue,CAHD,South - Commissioned Services,Respite Planned - Residential,Avonmere Care Home,49500.57, 14-Dec-2021
332,Revenue,CAHD,North - Community based support,Permanent Residential,Avonmere Care Home,4892.00, 14-Dec-2021
333,Revenue,CAHD,North - Community based support,Permanent Residential,Avonmere Care Home,4521.68, 14-Dec-2021
334,Revenue,CAHD,North - Community based support,Permanent Residential,Avonmere Care Home,4600.00, 14-Dec-2021
335,Revenue,CAHD,North - Community based support,Permanent Residential,Avonmere Care Home,4720.00, 14-Dec-2021
336,Revenue,CAHD,North - Community based support,Fees & Charges Income - General,Avonmere Care Home,969.13, 14-Dec-2021
337,Revenue,CAHD,Covid  - Workforce capacity,Grants to Voluntary Bodies,Avonmere Care Home,2337.21, 29-Dec-2021
338,Revenue,CAHD,CSC - Vinney Green Secure Unit,R & M by Departments,Aztec Chemicals Limited,729.59, 17-Dec-2021
339,Revenue,CAHD,South Glos Users in South Glos Homes,Permanent Nursing,Badminton Place,6485.60, 14-Dec-2021
340,Revenue,CAHD,North - Community based support,Permanent Nursing,Badminton Place,4864.32, 14-Dec-2021
341,Revenue,CAHD,South Glos Users in South Glos Homes,Permanent Nursing,Badminton Place,750.40, 14-Dec-2021
342,Revenue,CAHD,North - Community based support,Permanent Nursing,Badminton Place,5800.00, 14-Dec-2021
343,Revenue,CAHD,North - Community based support,Permanent Nursing,Badminton Place,2900.00, 14-Dec-2021
344,Revenue,CAHD,North - Community based support,Permanent Nursing,Badminton Place,5201.60, 14-Dec-2021
345,Revenue,CAHD,North - Community based support,Permanent Nursing,Badminton Place,2600.80, 14-Dec-2021
346,Revenue,CAHD,South Glos Users in South Glos Homes,Permanent Nursing,Badminton Place,750.40, 14-Dec-2021
347,Revenue,CAHD,South Glos Users in South Glos Homes,Permanent Nursing,Badminton Place,750.40, 14-Dec-2021
348,Revenue,CAHD,South Glos Users in South Glos Homes,Permanent Nursing,Badminton Place,750.40, 14-Dec-2021
349,Revenue,CAHD,North - Community based support,Respite Planned - Nursing,Badminton Place,4857.14, 14-Dec-2021
350,Revenue,CAHD,North - Community based support,Respite Planned - Nursing,Badminton Place,3142.86, 14-Dec-2021
351,Revenue,CAHD,CSC - Care Leavers Support Costs,Personal Needs of Clients,Barnardo Services Limited,6106.20, 20-Dec-2021
352,Revenue,CAHD,Pensions - Non DSG,Annual Pension,Bath & North East Somerset Council,100115.00, 17-Dec-2021
353,Revenue,CAHD,Independent Special Placements - Post 16,Other Private Contractors,Bath Road Priory,81363.29, 17-Dec-2021
354,Revenue,CAHD,CSC - Adoption Support Fund,Post Adoption,Individual,735.00, 24-Dec-2021
355,Revenue,CAHD,South Glos Users in South Glos Homes,Permanent Nursing,Beaufort Grange Care Home,750.40, 14-Dec-2021
356,Revenue,CAHD,South - Commissioned Services,Respite Emergency - Residential,Beaufort Grange Care Home,12271.47, 14-Dec-2021
357,Revenue,CAHD,South - Commissioned Services,Respite Emergency - Residential,Beaufort Grange Care Home,4683.70, 14-Dec-2021
358,Revenue,CAHD,South - Commissioned Services,Respite Emergency - Residential,Beaufort Grange Care Home,1756.39, 14-Dec-2021
359,Revenue,CAHD,South Glos Users in South Glos Homes,Permanent Nursing,Beaufort Grange Care Home,750.40, 14-Dec-2021
360,Revenue,CAHD,South Glos Users in South Glos Homes,Permanent Nursing,Beaufort Grange Care Home,750.40, 14-Dec-2021
361,Revenue,CAHD,Central - Commissioned Services,Permanent Nursing,Beaufort Grange Care Home,15856.86, 14-Dec-2021
362,Revenue,CAHD,Central - Commissioned Services,Permanent Nursing,Beaufort Grange Care Home,11684.00, 14-Dec-2021
363,Revenue,CAHD,South Glos Users in South Glos Homes,Permanent Nursing,Beaufort Grange Care Home,750.40, 14-Dec-2021
364,Revenue,CAHD,South Glos Users in South Glos Homes,Permanent Nursing,Beaufort Grange Care Home,750.40, 14-Dec-2021
365,Revenue,CAHD,South Glos Users in South Glos Homes,Permanent Nursing,Beaufort Grange Care Home,4475.60, 14-Dec-2021
366,Revenue,CAHD,Central - Commissioned Services,Permanent Nursing,Beaufort Grange Care Home,5400.00, 14-Dec-2021
367,Revenue,CAHD,South Glos Users in South Glos Homes,Permanent Nursing,Beaufort Grange Care Home,750.40, 14-Dec-2021
368,Revenue,CAHD,South Glos Users in South Glos Homes,Permanent Nursing,Beaufort Grange Care Home,750.40, 14-Dec-2021
369,Revenue,CAHD,North - Community based support,Permanent Nursing,Beaufort Grange Care Home,4369.60, 14-Dec-2021
370,Revenue,CAHD,South Glos Users in South Glos Homes,Permanent Nursing,Beaufort Grange Care Home,750.40, 14-Dec-2021
371,Revenue,CAHD,South Glos Users in South Glos Homes,Permanent Nursing,Beaufort Grange Care Home,750.40, 14-Dec-2021
372,Revenue,CAHD,South - Commissioned Services,Permanent Nursing,Beaufort Grange Care Home,4449.60, 14-Dec-2021
373,Revenue,CAHD,South Glos Users in South Glos Homes,Permanent Nursing,Beaufort Grange Care Home,750.40, 14-Dec-2021
374,Revenue,CAHD,South Glos Users in South Glos Homes,Permanent Nursing,Beaufort Grange Care Home,750.40, 14-Dec-2021
375,Revenue,CAHD,South Glos Users in South Glos Homes,Permanent Nursing,Beaufort Grange Care Home,750.40, 14-Dec-2021
376,Revenue,CAHD,South Glos Users in South Glos Homes,Permanent Nursing,Beaufort Grange Care Home,750.40, 14-Dec-2021
377,Revenue,CAHD,South Glos Users in South Glos Homes,Permanent Nursing,Beaufort Grange Care Home,750.40, 14-Dec-2021
378,Revenue,CAHD,South Glos Users in South Glos Homes,Permanent Nursing,Beaufort Grange Care Home,750.40, 14-Dec-2021
379,Revenue,CAHD,South Glos Users in South Glos Homes,Permanent Nursing,Beaufort Grange Care Home,750.40, 14-Dec-2021
380,Revenue,CAHD,South Glos Users in South Glos Homes,Permanent Nursing,Beaufort Grange Care Home,750.40, 14-Dec-2021
381,Revenue,CAHD,South Glos Users in South Glos Homes,Permanent Nursing,Beaufort Grange Care Home,750.40, 14-Dec-2021
382,Revenue,CAHD,South Glos Users in South Glos Homes,Permanent Nursing,Beaufort Grange Care Home,750.40, 14-Dec-2021
383,Revenue,CAHD,South Glos Users in South Glos Homes,Permanent Nursing,Beaufort Grange Care Home,750.40, 14-Dec-2021
384,Revenue,CAHD,North - S117,Permanent Nursing,Beaufort Grange Care Home,5400.00, 14-Dec-2021
385,Revenue,CAHD,Central - Commissioned Services,Permanent Nursing,Beaufort Grange Care Home,5500.00, 14-Dec-2021
386,Revenue,CAHD,South Glos Users in South Glos Homes,Permanent Nursing,Beaufort Grange Care Home,750.40, 14-Dec-2021
387,Revenue,CAHD,North - Community based support,Permanent Nursing,Beaufort Grange Care Home,10620.00, 14-Dec-2021
388,Revenue,CAHD,South Glos Users in South Glos Homes,Permanent Nursing,Beaufort Grange Care Home,750.40, 14-Dec-2021
389,Revenue,CAHD,South Glos Users in South Glos Homes,Permanent Nursing,Beaufort Grange Care Home,750.40, 14-Dec-2021
390,Revenue,CAHD,South Glos Users in South Glos Homes,Permanent Nursing,Beaufort Grange Care Home,750.40, 14-Dec-2021
391,Revenue,CAHD,South Glos Users in South Glos Homes,Permanent Nursing,Beaufort Grange Care Home,750.40, 14-Dec-2021
392,Revenue,CAHD,South Glos Users in South Glos Homes,Permanent Nursing,Beaufort Grange Care Home,750.40, 14-Dec-2021
393,Revenue,CAHD,South Glos Users in South Glos Homes,Permanent Nursing,Beaufort Grange Care Home,750.40, 14-Dec-2021
394,Revenue,CAHD,South Glos Users in South Glos Homes,Permanent Nursing,Beaufort Grange Care Home,750.40, 14-Dec-2021
395,Revenue,CAHD,South Glos Users in South Glos Homes,Permanent Nursing,Beaufort Grange Care Home,750.40, 14-Dec-2021
396,Revenue,CAHD,South Glos Users in South Glos Homes,Permanent Nursing,Beaufort Grange Care Home,750.40, 14-Dec-2021
397,Revenue,CAHD,South Glos Users in South Glos Homes,Permanent Nursing,Beaufort Grange Care Home,750.40, 14-Dec-2021
398,Revenue,CAHD,South Glos Users in South Glos Homes,Permanent Nursing,Beaufort Grange Care Home,750.40, 14-Dec-2021
399,Revenue,CAHD,South Glos Users in South Glos Homes,Permanent Nursing,Beaufort Grange Care Home,750.40, 14-Dec-2021
400,Revenue,CAHD,South Glos Users in South Glos Homes,Permanent Nursing,Beaufort Grange Care Home,750.40, 14-Dec-2021
401,Revenue,CAHD,South Glos Users in South Glos Homes,Permanent Nursing,Beaufort Grange Care Home,750.40, 14-Dec-2021
402,Revenue,CAHD,Central - Commissioned Services,Permanent Residential,Beaufort House,2991.84, 14-Dec-2021
403,Revenue,CAHD,Central - Commissioned Services,Permanent Residential,Beaufort House,2896.24, 14-Dec-2021
404,Revenue,CAHD,Central - Commissioned Services,Permanent Residential,Beaufort House,3800.00, 14-Dec-2021
405,Revenue,CAHD,North - Community based support,Permanent Residential,Beaufort House,4000.00, 14-Dec-2021
406,Revenue,CAHD,North - Community based support,Permanent Residential,Beaufort House,2817.28, 14-Dec-2021
407,Revenue,CAHD,Central - Commissioned Services,Permanent Residential,Beaufort House,4000.00, 14-Dec-2021
408,Revenue,CAHD,Central - Commissioned Services,Permanent Residential,Beaufort House,3200.00, 14-Dec-2021
409,Revenue,CAHD,Central - Commissioned Services,Permanent Residential,Beaufort House,3600.00, 14-Dec-2021
410,Revenue,CAHD,Central - Commissioned Services,Permanent Residential,Beaufort House,4000.00, 14-Dec-2021
411,Revenue,CAHD,North - Community based support,Permanent Residential,Beaufort House,4000.00, 14-Dec-2021
412,Revenue,CAHD,North - Community based support,Fees & Charges Income - General,Beaufort House,3326.66, 14-Dec-2021
413,Revenue,CAHD,Central - Commissioned Services,Permanent Residential,Beaufort House,3600.00, 14-Dec-2021
414,Revenue,CAHD,Covid  - Workforce capacity,Grants to Voluntary Bodies,Beaufort House,1001.66, 29-Dec-2021
415,Revenue,CAHD,South - Commissioned Services,Permanent Residential,Beech House,3088.28, 14-Dec-2021
416,Revenue,CAHD,South Glos Users in South Glos Homes,Permanent Nursing,Beech House,750.40, 14-Dec-2021
417,Revenue,CAHD,South Glos Users in South Glos Homes,Permanent Nursing,Beech House,750.40, 14-Dec-2021
418,Revenue,CAHD,South Glos Users in South Glos Homes,Permanent Nursing,Beech House,750.40, 14-Dec-2021
419,Revenue,CAHD,South Glos Users in South Glos Homes,Permanent Nursing,Beech House,750.40, 14-Dec-2021
420,Revenue,CAHD,South Glos Users in South Glos Homes,Permanent Nursing,Beech House,750.40, 14-Dec-2021
421,Revenue,CAHD,South Glos Users in South Glos Homes,Permanent Nursing,Beech House,750.40, 14-Dec-2021
422,Revenue,CAHD,North - Community based support,Permanent Nursing,Beech House,4378.44, 14-Dec-2021
423,Revenue,CAHD,South Glos Users in South Glos Homes,Permanent Nursing,Beech House,750.40, 14-Dec-2021
424,Revenue,CAHD,South Glos Users in South Glos Homes,Permanent Nursing,Beech House,750.40, 14-Dec-2021
425,Revenue,CAHD,North - Community based support,Permanent Nursing,Beech House,4407.12, 14-Dec-2021
426,Revenue,CAHD,South Glos Users in South Glos Homes,Permanent Nursing,Beech House,750.40, 14-Dec-2021
427,Revenue,CAHD,North - Community based support,Permanent Residential,Beech House,4480.00, 14-Dec-2021
428,Revenue,CAHD,South Glos Users in South Glos Homes,Permanent Nursing,Beech House,750.40, 14-Dec-2021
429,Revenue,CAHD,South - Commissioned Services,Permanent Residential,Beech House,4480.00, 14-Dec-2021
430,Revenue,CAHD,North - Community based support,Permanent Residential,Beech House,4480.00, 14-Dec-2021
431,Revenue,CAHD,South Glos Users in South Glos Homes,Permanent Nursing,Beech House,750.40, 14-Dec-2021
432,Revenue,CAHD,North - Community based support,Respite Emergency - Residential,Beech House,6560.00, 14-Dec-2021
433,Revenue,CAHD,South Glos Users in South Glos Homes,Permanent Nursing,Beech House,750.40, 14-Dec-2021
434,Revenue,CAHD,North - Community based support,Permanent Residential,Beech House,4480.00, 14-Dec-2021
435,Revenue,CAHD,South Glos Users in South Glos Homes,Permanent Nursing,Beech House,750.40, 14-Dec-2021
436,Revenue,CAHD,South Glos Users in South Glos Homes,Permanent Nursing,Beech House,750.40, 14-Dec-2021
437,Revenue,CAHD,South Glos Users in South Glos Homes,Permanent Nursing,Beech House,750.40, 14-Dec-2021
438,Revenue,CAHD,South Glos Users in South Glos Homes,Permanent Nursing,Beech House,750.40, 14-Dec-2021
439,Revenue,CAHD,North - Community based support,Permanent Nursing,Beech House,4400.00, 14-Dec-2021
440,Revenue,CAHD,North - Community based support,Permanent Nursing,Beech House,4242.86, 14-Dec-2021
441,Revenue,CAHD,North - Community based support,Permanent Residential,Beech House,4460.28, 14-Dec-2021
442,Revenue,CAHD,South Glos Users in South Glos Homes,Permanent Nursing,Beechwood Care Home,1122.40, 14-Dec-2021
443,Revenue,CAHD,18-25 Year Olds,Permanent Residential,Beechwood Court Ltd,14586.31, 16-Dec-2021
444,Revenue,CAHD,18-25 Year Olds,Permanent Residential,Beechwood Court Ltd,20867.62, 16-Dec-2021
445,Revenue,CAHD,South - Commissioned Services,Permanent Nursing,Begbrook House Nursing Home,3593.88, 14-Dec-2021
446,Revenue,CAHD,North - Community based support,Permanent Nursing,Begbrook House Nursing Home,3234.72, 14-Dec-2021
447,Revenue,CAHD,North - Community based support,Respite Planned - Nursing,Begbrook House Nursing Home,5958.00, 14-Dec-2021
448,Revenue,CAHD,South - Commissioned Services,Permanent Residential,Begbrook House Nursing Home,3400.00, 14-Dec-2021
449,Revenue,CAHD,Central - Commissioned Services,Permanent Nursing,Begbrook House Nursing Home,3400.00, 14-Dec-2021
450,Revenue,CAHD,South - S117,Permanent Residential,Bidna House,3774.24, 14-Dec-2021
451,Revenue,CAHD,CSC - Vinney Green Secure Unit,R & M by Departments,Binns Fencing Limited,1885.00, 30-Dec-2021
452,Revenue,CAHD,Placements OLA Special Schools and RB,Other L.A.s - General,Blaise High School,834.88, 21-Dec-2021
453,Revenue,CAHD,Placements OLA Special Schools and RB,Other L.A.s - General,Blaise High School,792.41, 21-Dec-2021
454,Revenue,CAHD,Statemented Support Payments to OLAs,Other L.A.s - General,Blaise High School,907.83, 23-Dec-2021
455,Revenue,CAHD,Placements OLA Special Schools and RB,Other L.A.s - General,Blaise High School,792.41, 21-Dec-2021
456,Revenue,CAHD,18-25 Year Olds,Other Small Contracts,Blakehill Healthcare Ltd,418.75, 24-Dec-2021
457,Revenue,CAHD,Central - Commissioned Services,Other Small Contracts,Blakehill Healthcare Ltd,5656.25, 24-Dec-2021
458,Revenue,CAHD,South - Commissioned Services,Other Small Contracts,Blakehill Healthcare Ltd,6036.47, 24-Dec-2021
459,Revenue,CAHD,North - Community based support,Other Small Contracts,Blakehill Healthcare Ltd,4156.90, 24-Dec-2021
460,Revenue,CAHD,18-25 Year Olds,Other Small Contracts,Blakehill Healthcare Ltd,293.75, 20-Dec-2021
461,Revenue,CAHD,Central - Commissioned Services,Other Small Contracts,Blakehill Healthcare Ltd,5556.25, 20-Dec-2021
462,Revenue,CAHD,South - Commissioned Services,Other Small Contracts,Blakehill Healthcare Ltd,5886.47, 20-Dec-2021
463,Revenue,CAHD,North - Community based support,Other Small Contracts,Blakehill Healthcare Ltd,4023.20, 20-Dec-2021
464,Revenue,CAHD,18-25 Year Olds,Other Small Contracts,Blakehill Healthcare Ltd,400.00, 17-Dec-2021
465,Revenue,CAHD,Central - Commissioned Services,Other Small Contracts,Blakehill Healthcare Ltd,5612.50, 17-Dec-2021
466,Revenue,CAHD,South - Commissioned Services,Other Small Contracts,Blakehill Healthcare Ltd,5555.22, 17-Dec-2021
467,Revenue,CAHD,North - Community based support,Other Small Contracts,Blakehill Healthcare Ltd,4044.85, 17-Dec-2021
468,Revenue,CAHD,Covid - ASC - Infection Control,Grants to Voluntary Bodies,Blakehill Healthcare Ltd,1316.30, 20-Dec-2021
469,Revenue,CAHD,ASC Rapid Testing Fund,Grants to Voluntary Bodies,Blakehill Healthcare Ltd,965.60, 17-Dec-2021
470,Revenue,CAHD,South Glos Users in South Glos Homes,Permanent Nursing,Blossom Fields Nursing Home,750.40, 14-Dec-2021
471,Revenue,CAHD,South Glos Users in South Glos Homes,Permanent Nursing,Blossom Fields Nursing Home,1232.80, 14-Dec-2021
472,Revenue,CAHD,South Glos Users in South Glos Homes,Permanent Nursing,Blossom Fields Nursing Home,750.40, 14-Dec-2021
473,Revenue,CAHD,South Glos Users in South Glos Homes,Permanent Nursing,Blossom Fields Nursing Home,750.40, 14-Dec-2021
474,Revenue,CAHD,South Glos Users in South Glos Homes,Permanent Nursing,Blossom Fields Nursing Home,750.40, 14-Dec-2021
475,Revenue,CAHD,South Glos Users in South Glos Homes,Permanent Nursing,Blossom Fields Nursing Home,750.40, 14-Dec-2021
476,Revenue,CAHD,South - Commissioned Services,Permanent Nursing,Blossom Fields Nursing Home,3600.00, 14-Dec-2021
477,Revenue,CAHD,South Glos Users in South Glos Homes,Permanent Nursing,Blossom Fields Nursing Home,750.40, 14-Dec-2021
478,Revenue,CAHD,North - Community based support,Permanent Nursing,Blossom Fields Nursing Home,4910.28, 14-Dec-2021
479,Revenue,CAHD,South Glos Users in South Glos Homes,Permanent Nursing,Blossom Fields Nursing Home,750.40, 14-Dec-2021
480,Revenue,CAHD,South Glos Users in South Glos Homes,Permanent Nursing,Blossom Fields Nursing Home,750.40, 14-Dec-2021
481,Revenue,CAHD,South Glos Users in South Glos Homes,Permanent Nursing,Blossom Fields Nursing Home,750.40, 14-Dec-2021
482,Revenue,CAHD,South Glos Users in South Glos Homes,Permanent Nursing,Blossom Fields Nursing Home,750.40, 14-Dec-2021
483,Revenue,CAHD,South Glos Users in South Glos Homes,Permanent Nursing,Blossom Fields Nursing Home,750.40, 14-Dec-2021
484,Revenue,CAHD,South Glos Users in South Glos Homes,Permanent Nursing,Blossom Fields Nursing Home,750.40, 14-Dec-2021
485,Revenue,CAHD,North - Community based support,Permanent Residential,Blossom Fields Nursing Home,4132.12, 14-Dec-2021
486,Revenue,CAHD,South Glos Users in South Glos Homes,Permanent Nursing,Blossom Fields Nursing Home,750.40, 14-Dec-2021
487,Revenue,CAHD,South Glos Users in South Glos Homes,Permanent Nursing,Blossom Fields Nursing Home,750.40, 14-Dec-2021
488,Revenue,CAHD,North - Community based support,Permanent Nursing,Blossom Fields Nursing Home,4132.12, 14-Dec-2021
489,Revenue,CAHD,South Glos Users in South Glos Homes,Permanent Nursing,Blossom Fields Nursing Home,750.40, 14-Dec-2021
490,Revenue,CAHD,South Glos Users in South Glos Homes,Permanent Nursing,Blossom Fields Nursing Home,750.40, 14-Dec-2021
491,Revenue,CAHD,South Glos Users in South Glos Homes,Permanent Nursing,Blossom Fields Nursing Home,750.40, 14-Dec-2021
492,Revenue,CAHD,South Glos Users in South Glos Homes,Permanent Nursing,Blossom Fields Nursing Home,750.40, 14-Dec-2021
493,Revenue,CAHD,South Glos Users in South Glos Homes,Permanent Nursing,Blossom Fields Nursing Home,750.40, 14-Dec-2021
494,Revenue,CAHD,South Glos Users in South Glos Homes,Permanent Nursing,Blossom Fields Nursing Home,750.40, 14-Dec-2021
495,Revenue,CAHD,South Glos Users in South Glos Homes,Permanent Nursing,Blossom Fields Nursing Home,750.40, 14-Dec-2021
496,Revenue,CAHD,Central - Commissioned Services,Permanent Nursing,Blossom Fields Nursing Home,3600.00, 14-Dec-2021
497,Revenue,CAHD,South Glos Users in South Glos Homes,Permanent Nursing,Blossom Fields Nursing Home,750.40, 14-Dec-2021
498,Revenue,CAHD,South Glos Users in South Glos Homes,Permanent Nursing,Blossom Fields Nursing Home,750.40, 14-Dec-2021
499,Revenue,CAHD,South Glos Users in South Glos Homes,Permanent Nursing,Blossom Fields Nursing Home,750.40, 14-Dec-2021
500,Revenue,CAHD,South Glos Users in South Glos Homes,Permanent Nursing,Blossom Fields Nursing Home,1420.40, 14-Dec-2021
501,Revenue,CAHD,South Glos Users in South Glos Homes,Permanent Nursing,Blossom Fields Nursing Home,750.40, 14-Dec-2021
502,Revenue,CAHD,South Glos Users in South Glos Homes,Permanent Nursing,Blossom Fields Nursing Home,1956.40, 14-Dec-2021
503,Revenue,CAHD,South Glos Users in South Glos Homes,Permanent Nursing,Blossom Fields Nursing Home,750.40, 14-Dec-2021
504,Revenue,CAHD,Central - Commissioned Services,Fees & Charges Income - General,Blossom Fields Nursing Home,659.62, 14-Dec-2021
505,Revenue,CAHD,South Glos Users in South Glos Homes,Permanent Nursing,Blossom Fields Nursing Home,750.40, 14-Dec-2021
506,Revenue,CAHD,North - Community based support,Permanent Nursing,Blossom Fields Nursing Home,3792.92, 14-Dec-2021
507,Revenue,CAHD,South Glos Users in South Glos Homes,Permanent Nursing,Blossom Fields Nursing Home,750.40, 14-Dec-2021
508,Revenue,CAHD,South Glos Users in South Glos Homes,Permanent Nursing,Blossom Fields Nursing Home,750.40, 14-Dec-2021
509,Revenue,CAHD,South Glos Users in South Glos Homes,Permanent Nursing,Blossom Fields Nursing Home,1822.40, 14-Dec-2021
510,Revenue,CAHD,South Glos Users in South Glos Homes,Permanent Nursing,Blossom Fields Nursing Home,750.40, 14-Dec-2021
511,Revenue,CAHD,North - Community based support,Permanent Residential,Blossom Fields Nursing Home,3800.00, 14-Dec-2021
512,Revenue,CAHD,South Glos Users in South Glos Homes,Permanent Nursing,Blossom Fields Nursing Home,750.40, 14-Dec-2021
513,Revenue,CAHD,South - Commissioned Services,Respite Planned - Nursing,Blossom Fields Nursing Home,4628.57, 14-Dec-2021
514,Revenue,CAHD,South - Commissioned Services,Respite Planned - Nursing,Blossom Fields Nursing Home,900.00, 14-Dec-2021
515,Revenue,CAHD,South Glos Users in South Glos Homes,Permanent Nursing,Blossom Fields Nursing Home,1420.40, 14-Dec-2021
516,Revenue,CAHD,South Glos Users in South Glos Homes,Permanent Nursing,Blossom Fields Nursing Home,750.40, 14-Dec-2021
517,Revenue,CAHD,Central - Commissioned Services,Permanent Residential,Blossom Fields Nursing Home,3800.00, 14-Dec-2021
518,Revenue,CAHD,South Glos Users in South Glos Homes,Permanent Nursing,Blossom Fields Nursing Home,750.40, 14-Dec-2021
519,Revenue,CAHD,South Glos Users in South Glos Homes,Permanent Nursing,Blossom Fields Nursing Home,750.40, 14-Dec-2021
520,Revenue,CAHD,South - Commissioned Services,Permanent Nursing,Blossom Fields Nursing Home,4790.76, 14-Dec-2021
521,Revenue,CAHD,South Glos Users in South Glos Homes,Permanent Nursing,Blossom Fields Nursing Home,750.40, 14-Dec-2021
522,Revenue,CAHD,South Glos Users in South Glos Homes,Permanent Nursing,Blossom Fields Nursing Home,2519.20, 14-Dec-2021
523,Revenue,CAHD,South Glos Users in South Glos Homes,Permanent Nursing,Blossom Fields Nursing Home,750.40, 14-Dec-2021
524,Revenue,CAHD,Central - Commissioned Services,Permanent Nursing,Blossom Fields Nursing Home,5123.80, 14-Dec-2021
525,Revenue,CAHD,South Glos Users in South Glos Homes,Permanent Nursing,Blossom Fields Nursing Home,750.40, 14-Dec-2021
526,Revenue,CAHD,Central - Commissioned Services,Permanent Nursing,Blossom Fields Nursing Home,4132.12, 14-Dec-2021
527,Revenue,CAHD,South Glos Users in South Glos Homes,Permanent Nursing,Blossom Fields Nursing Home,750.40, 14-Dec-2021
528,Revenue,CAHD,South - Commissioned Services,Permanent Nursing,Blossom Fields Nursing Home,3943.04, 14-Dec-2021
529,Revenue,CAHD,South Glos Users in South Glos Homes,Permanent Nursing,Blossom Fields Nursing Home,750.40, 14-Dec-2021
530,Revenue,CAHD,Central - Commissioned Services,Permanent Nursing,Blossom Fields Nursing Home,4132.12, 14-Dec-2021
531,Revenue,CAHD,South Glos Users in South Glos Homes,Permanent Nursing,Blossom Fields Nursing Home,750.40, 14-Dec-2021
532,Revenue,CAHD,Central - Commissioned Services,Permanent Nursing,Blossom Fields Nursing Home,4790.76, 14-Dec-2021
533,Revenue,CAHD,South Glos Users in South Glos Homes,Permanent Nursing,Blossom Fields Nursing Home,750.40, 14-Dec-2021
534,Revenue,CAHD,South Glos Users in South Glos Homes,Permanent Nursing,Blossom Fields Nursing Home,2170.80, 14-Dec-2021
535,Revenue,CAHD,South Glos Users in South Glos Homes,Permanent Nursing,Blossom Fields Nursing Home,750.40, 14-Dec-2021
536,Revenue,CAHD,South - Commissioned Services,Permanent Residential,Blossom Fields Nursing Home,5115.00, 14-Dec-2021
537,Revenue,CAHD,South Glos Users in South Glos Homes,Permanent Nursing,Blossom Fields Nursing Home,750.40, 14-Dec-2021
538,Revenue,CAHD,South Glos Users in South Glos Homes,Permanent Nursing,Blossom Fields Nursing Home,750.40, 14-Dec-2021
539,Revenue,CAHD,South Glos Users in South Glos Homes,Permanent Nursing,Blossom Fields Nursing Home,643.20, 14-Dec-2021
540,Revenue,CAHD,South Glos Users in South Glos Homes,Permanent Nursing,Blossom Fields Nursing Home,750.40, 14-Dec-2021
541,Revenue,CAHD,South - Commissioned Services,Permanent Nursing,Blossom Fields Nursing Home,4133.20, 14-Dec-2021
542,Revenue,CAHD,South - Commissioned Services,Permanent Nursing,Blossom Fields Nursing Home,738.07, 14-Dec-2021
543,Revenue,CAHD,North - S117,Permanent Residential,Blossom Fields Nursing Home,4910.40, 14-Dec-2021
544,Revenue,CAHD,South Glos Users in South Glos Homes,Permanent Nursing,Blossom Fields Nursing Home,750.40, 14-Dec-2021
545,Revenue,CAHD,South Glos Users in South Glos Homes,Permanent Nursing,Blossom Fields Nursing Home,750.40, 14-Dec-2021
546,Revenue,CAHD,South Glos Users in South Glos Homes,Permanent Nursing,Blossom Fields Nursing Home,750.40, 14-Dec-2021
547,Revenue,CAHD,North - S117,Permanent Residential,Blossom Fields Nursing Home,5115.00, 14-Dec-2021
548,Revenue,CAHD,South Glos Users in South Glos Homes,Permanent Nursing,Blossom Fields Nursing Home,750.40, 14-Dec-2021
549,Revenue,CAHD,South Glos Users in South Glos Homes,Permanent Nursing,Blossom Fields Nursing Home,750.40, 14-Dec-2021
550,Revenue,CAHD,Central - Commissioned Services,Permanent Nursing,Blossom Fields Nursing Home,4818.72, 14-Dec-2021
551,Revenue,CAHD,South Glos Users in South Glos Homes,Permanent Nursing,Blossom Fields Nursing Home,750.40, 14-Dec-2021
552,Revenue,CAHD,South Glos Users in South Glos Homes,Permanent Nursing,Blossom Fields Nursing Home,750.40, 14-Dec-2021
553,Revenue,CAHD,Central - Commissioned Services,Permanent Nursing,Blossom Fields Nursing Home,4132.12, 14-Dec-2021
554,Revenue,CAHD,South Glos Users in South Glos Homes,Permanent Nursing,Blossom Fields Nursing Home,750.40, 14-Dec-2021
555,Revenue,CAHD,Central - Commissioned Services,Permanent Nursing,Blossom Fields Nursing Home,4600.00, 14-Dec-2021
556,Revenue,CAHD,South Glos Users in South Glos Homes,Permanent Nursing,Blossom Fields Nursing Home,750.40, 14-Dec-2021
557,Revenue,CAHD,South Glos Users in South Glos Homes,Permanent Nursing,Blossom Fields Nursing Home,750.40, 14-Dec-2021
558,Revenue,CAHD,South Glos Users in South Glos Homes,Permanent Nursing,Blossom Fields Nursing Home,750.40, 14-Dec-2021
559,Revenue,CAHD,South Glos Users in South Glos Homes,Permanent Nursing,Blossom Fields Nursing Home,750.40, 14-Dec-2021
560,Revenue,CAHD,South Glos Users in South Glos Homes,Permanent Nursing,Blossom Fields Nursing Home,750.40, 14-Dec-2021
561,Revenue,CAHD,South Glos Users in South Glos Homes,Permanent Nursing,Blossom Fields Nursing Home,750.40, 14-Dec-2021
562,Revenue,CAHD,South Glos Users in South Glos Homes,Permanent Nursing,Blossom Fields Nursing Home,750.40, 14-Dec-2021
563,Revenue,CAHD,South - Commissioned Services,Permanent Nursing,Blossom Fields Nursing Home,5000.00, 14-Dec-2021
564,Revenue,CAHD,South Glos Users in South Glos Homes,Permanent Nursing,Blossom Fields Nursing Home,750.40, 14-Dec-2021
565,Revenue,CAHD,South Glos Users in South Glos Homes,Permanent Nursing,Blossom Fields Nursing Home,750.40, 14-Dec-2021
566,Revenue,CAHD,Central - Commissioned Services,Permanent Nursing,Blossom Fields Nursing Home,4910.40, 14-Dec-2021
567,Revenue,CAHD,South Glos Users in South Glos Homes,Permanent Nursing,Blossom Fields Nursing Home,750.40, 14-Dec-2021
568,Revenue,CAHD,North - S117,Permanent Nursing,Blossom Fields Nursing Home,20070.30, 14-Dec-2021
569,Revenue,CAHD,North - S117,Permanent Nursing,Blossom Fields Nursing Home,4132.12, 14-Dec-2021
570,Revenue,CAHD,South Glos Users in South Glos Homes,Permanent Nursing,Blossom Fields Nursing Home,750.40, 14-Dec-2021
571,Revenue,CAHD,Central - Commissioned Services,Fees & Charges Income - General,Blossom Fields Nursing Home,2024.79, 14-Dec-2021
572,Revenue,CAHD,Central - Commissioned Services,Permanent Nursing,Blossom Fields Nursing Home,3600.00, 14-Dec-2021
573,Revenue,CAHD,South Glos Users in South Glos Homes,Permanent Nursing,Blossom Fields Nursing Home,750.40, 14-Dec-2021
574,Revenue,CAHD,South Glos Users in South Glos Homes,Permanent Nursing,Blossom Fields Nursing Home,750.40, 14-Dec-2021
575,Revenue,CAHD,South Glos Users in South Glos Homes,Permanent Nursing,Blossom Fields Nursing Home,750.40, 14-Dec-2021
576,Revenue,CAHD,South Glos Users in South Glos Homes,Permanent Nursing,Blossom Fields Nursing Home,750.40, 14-Dec-2021
577,Revenue,CAHD,South Glos Users in South Glos Homes,Permanent Nursing,Blossom Fields Nursing Home,750.40, 14-Dec-2021
578,Revenue,CAHD,South Glos Users in South Glos Homes,Permanent Nursing,Blossom Fields Nursing Home,750.40, 14-Dec-2021
579,Revenue,CAHD,North - Community based support,Permanent Nursing,Blossom Fields Nursing Home,4133.20, 14-Dec-2021
580,Revenue,CAHD,North - Community based support,Permanent Nursing,Blossom Fields Nursing Home,590.46, 14-Dec-2021
581,Revenue,CAHD,South Glos Users in South Glos Homes,Permanent Nursing,Blossom Fields Nursing Home,938.00, 14-Dec-2021
582,Revenue,CAHD,South Glos Users in South Glos Homes,Permanent Nursing,Blossom Fields Nursing Home,750.40, 14-Dec-2021
583,Revenue,CAHD,South - Commissioned Services,Permanent Nursing,Blossom Fields Nursing Home,3600.00, 14-Dec-2021
584,Revenue,CAHD,South Glos Users in South Glos Homes,Permanent Nursing,Blossom Fields Nursing Home,750.40, 14-Dec-2021
585,Revenue,CAHD,Central - Commissioned Services,Permanent Nursing,Blossom Fields Nursing Home,5115.00, 14-Dec-2021
586,Revenue,CAHD,South Glos Users in South Glos Homes,Permanent Nursing,Blossom Fields Nursing Home,750.40, 14-Dec-2021
587,Revenue,CAHD,Central - Commissioned Services,Respite Emergency - Residential,Blossom Fields Nursing Home,3099.90, 14-Dec-2021
588,Revenue,CAHD,Central - Commissioned Services,Respite Emergency - Residential,Blossom Fields Nursing Home,1033.30, 14-Dec-2021
589,Revenue,CAHD,Central - Commissioned Services,Permanent Nursing,Blossom Fields Nursing Home,4132.12, 14-Dec-2021
590,Revenue,CAHD,South Glos Users in South Glos Homes,Permanent Nursing,Blossom Fields Nursing Home,750.40, 14-Dec-2021
591,Revenue,CAHD,South Glos Users in South Glos Homes,Permanent Nursing,Blossom Fields Nursing Home,2706.80, 14-Dec-2021
592,Revenue,CAHD,South Glos Users in South Glos Homes,Permanent Nursing,Blossom Fields Nursing Home,750.40, 14-Dec-2021
593,Revenue,CAHD,Statemented Support Payments to OLAs,Other L.A.s - General,Blue Coat CE VA Primary School,837.09, 23-Dec-2021
594,Revenue,CAHD,Statemented Support Payments to OLAs,Other L.A.s - General,Blue Coat CE VA Primary School,1292.50, 23-Dec-2021
595,Revenue,CAHD,North - Community based support,Permanent Residential,Bluebells,3699.60, 14-Dec-2021
596,Revenue,CAHD,Central - Commissioned Services,Other Small Contracts,Bluebird Care (South Gloucestershire),13617.64, 09-Dec-2021
597,Revenue,CAHD,South - Commissioned Services,Other Small Contracts,Bluebird Care (South Gloucestershire),4443.74, 09-Dec-2021
598,Revenue,CAHD,North - Community based support,Other Small Contracts,Bluebird Care (South Gloucestershire),4687.74, 09-Dec-2021
599,Revenue,CAHD,Central - Commissioned Services,Other Small Contracts,Bluebird Care (South Gloucestershire),13945.44, 15-Dec-2021
600,Revenue,CAHD,South - Commissioned Services,Other Small Contracts,Bluebird Care (South Gloucestershire),4051.14, 15-Dec-2021
601,Revenue,CAHD,North - Community based support,Other Small Contracts,Bluebird Care (South Gloucestershire),4275.84, 15-Dec-2021
602,Revenue,CAHD,Central - Commissioned Services,Other Small Contracts,Bluebird Care (South Gloucestershire),13700.69, 23-Dec-2021
603,Revenue,CAHD,South - Commissioned Services,Other Small Contracts,Bluebird Care (South Gloucestershire),3990.74, 23-Dec-2021
604,Revenue,CAHD,North - Community based support,Other Small Contracts,Bluebird Care (South Gloucestershire),4694.09, 23-Dec-2021
605,Revenue,CAHD,Covid - ASC - Infection Control,Grants to Voluntary Bodies,Bluebird Care (South Gloucestershire),6378.97, 01-Dec-2021
606,Revenue,CAHD,ASC Rapid Testing Fund,Grants to Voluntary Bodies,Bluebird Care (South Gloucestershire),4679.43, 01-Dec-2021
607,Revenue,CAHD,Covid - Vaccines,Grants to Voluntary Bodies,Bluebird Care (South Gloucestershire),1705.87, 01-Dec-2021
608,Revenue,CAHD,CSC - Vinney Green Secure Unit,Service Contracts (Premises),Bob Ritchie Limited,430.00, 24-Dec-2021
609,Revenue,CAHD,S28A cases,Permanent Residential,Bradbury House,6505.16, 14-Dec-2021
610,Revenue,CAHD,Jointly Funded H&SC Packages,Permanent Residential,Bradbury House,8441.92, 14-Dec-2021
611,Revenue,CAHD,North - S117,Permanent Residential,Bradbury House,5772.00, 14-Dec-2021
612,Revenue,CAHD,Psychology Traded,Catering,Bradley Stoke Town Council,751.25, 10-Dec-2021
613,Revenue,CAHD,CSC - Residential Placements,Permanent Residential,Branas ISAF Ltd,21921.34, 21-Dec-2021
614,Revenue,CAHD,CSC - Residential Placements,Permanent Residential,Branas ISAF Ltd,21921.34, 20-Dec-2021
615,Revenue,CAHD,North - Community based support,Respite Planned - Nursing,Breadstone House Care Centre,2577.96, 14-Dec-2021
616,Revenue,CAHD,Social Lettings Agency,Rent,Individual,822.73, 24-Dec-2021
617,Revenue,CAHD,Social Lettings Agency,Fees & Charges Income - General,Individual,-102.80, 24-Dec-2021
618,Revenue,CAHD,Social Lettings Agency,Rent,Individual,915.00, 03-Dec-2021
619,Revenue,CAHD,Social Lettings Agency,Fees & Charges Income - General,Individual,-73.20, 03-Dec-2021
620,Revenue,CAHD,Social Lettings Agency,Rent,Individual,915.00, 30-Dec-2021
621,Revenue,CAHD,Social Lettings Agency,Fees & Charges Income - General,Individual,-73.20, 30-Dec-2021
622,Revenue,CAHD,Placements OLA Special Schools and RB,Other L.A.s - General,Briarwood School,2774.73, 21-Dec-2021
623,Revenue,CAHD,Placements OLA Special Schools and RB,Other L.A.s - General,Briarwood School,12448.42, 21-Dec-2021
624,Revenue,CAHD,Placements OLA Special Schools and RB,Other L.A.s - General,Briarwood School,983.04, 21-Dec-2021
625,Revenue,CAHD,North - Community based support,Permanent Residential,Bridge House Care Home,3100.00, 14-Dec-2021
626,Revenue,CAHD,North - Community based support,Permanent Residential,Bridge House Care Home,2913.52, 14-Dec-2021
627,Revenue,CAHD,Covid  - Workforce capacity,Grants to Voluntary Bodies,Bridge House Care Home,1168.61, 29-Dec-2021
628,Revenue,CAHD,North - Community based support,Permanent Residential,Bridgwater Court Care Home,10773.64, 14-Dec-2021
629,Revenue,CAHD,Statemented Support Payments to OLAs,Other L.A.s - General,Bristol Cathedral Choir School,942.58, 23-Dec-2021
630,Revenue,CAHD,Statemented Support Payments to OLAs,Other L.A.s - General,Bristol Cathedral Choir School,880.08, 23-Dec-2021
631,Revenue,CAHD,Statemented Support Payments to OLAs,Other L.A.s - General,Bristol Cathedral Choir School,978.57, 23-Dec-2021
632,Revenue,CAHD,CSC - Agency Fostering,Foster Parent Allowances,Bristol City Council,12400.00, 14-Dec-2021
633,Revenue,CAHD,CSC - Agency Fostering,Foster Parent Allowances,Bristol City Council,6200.00, 15-Dec-2021
634,Revenue,CAHD,CSC - Agency Fostering,Foster Parent Allowances,Bristol City Council,6100.00, 23-Dec-2021
635,Revenue,CAHD,CSC - Agency Fostering,Foster Parent Allowances,Bristol City Council,3000.00, 23-Dec-2021
636,Revenue,CAHD,S256 - PAUSE Children,Project Funding,Bristol City Council,219000.00, 23-Dec-2021
637,Revenue,CAHD,Statemented Support Payments to OLAs,Other L.A.s - General,Bristol City Council Schools General,897.42, 23-Dec-2021
638,Revenue,CAHD,Statemented Support Payments to OLAs,Other L.A.s - General,Bristol City Council Schools General,635.33, 23-Dec-2021
639,Revenue,CAHD,Homeless - Private Sector Leasing,Prop.Serv. General Repairs,Bristol Garage Doors Ltd,730.00, 17-Dec-2021
640,Revenue,CAHD,SEN High Needs - Not at School Base,Other Private Contractors,Bristol Tuition Limited,1060.00, 22-Dec-2021
641,Revenue,CAHD,SEN High Needs - Not at School Base,Other Private Contractors,Bristol Tuition Limited,2140.00, 14-Dec-2021
642,Revenue,CAHD,SEN High Needs - Not at School Base,Other Private Contractors,Bristol Tuition Limited,1320.00, 24-Dec-2021
643,Revenue,CAHD,Statemented Support Payments to OLAs,Other L.A.s - General,Broadlands Academy,835.17, 23-Dec-2021
644,Revenue,CAHD,North - Community based support,Permanent Residential,Brockhills Farm,3200.00, 14-Dec-2021
645,Revenue,CAHD,Supporting People Programme,Grants to Voluntary Bodies,Bromford  :  Merlin Housing Society,15637.00, 01-Dec-2021
646,Revenue,CAHD,Supporting People Programme,Grants to Voluntary Bodies,Bromford  :  Merlin Housing Society,2741.00, 01-Dec-2021
647,Revenue,CAHD,Supporting People Programme,Grants to Voluntary Bodies,Bromford  :  Merlin Housing Society,22940.00, 01-Dec-2021
648,Revenue,CAHD,Supporting People Programme,Grants to Voluntary Bodies,Bromford  :  Merlin Housing Society,1113.00, 01-Dec-2021
649,Revenue,CAHD,Supporting People Programme,Grants to Voluntary Bodies,Bromford  :  Merlin Housing Society,15637.00, 30-Dec-2021
650,Revenue,CAHD,Supporting People Programme,Grants to Voluntary Bodies,Bromford  :  Merlin Housing Society,2741.00, 30-Dec-2021
651,Revenue,CAHD,Supporting People Programme,Grants to Voluntary Bodies,Bromford  :  Merlin Housing Society,22940.00, 30-Dec-2021
652,Revenue,CAHD,Supporting People Programme,Grants to Voluntary Bodies,Bromford  :  Merlin Housing Society,1113.00, 30-Dec-2021
653,Revenue,CAHD,South Glos Users in South Glos Homes,Permanent Nursing,Brunelcare,804.00, 20-Dec-2021
654,Revenue,CAHD,South Glos Users in South Glos Homes,Permanent Nursing,Brunelcare,804.00, 20-Dec-2021
655,Revenue,CAHD,South Glos Users in South Glos Homes,Permanent Nursing,Brunelcare,804.00, 20-Dec-2021
656,Revenue,CAHD,South Glos Users in South Glos Homes,Permanent Nursing,Brunelcare,804.00, 20-Dec-2021
657,Revenue,CAHD,South Glos Users in South Glos Homes,Permanent Nursing,Brunelcare,804.00, 20-Dec-2021
658,Revenue,CAHD,South Glos Users in South Glos Homes,Permanent Nursing,Brunelcare,804.00, 20-Dec-2021
659,Revenue,CAHD,South Glos Users in South Glos Homes,Permanent Nursing,Brunelcare,804.00, 20-Dec-2021
660,Revenue,CAHD,South Glos Users in South Glos Homes,Permanent Nursing,Brunelcare,804.00, 20-Dec-2021
661,Revenue,CAHD,South Glos Users in South Glos Homes,Permanent Nursing,Brunelcare,804.00, 20-Dec-2021
662,Revenue,CAHD,South Glos Users in South Glos Homes,Permanent Nursing,Brunelcare,804.00, 20-Dec-2021
663,Revenue,CAHD,North - S117,Permanent Nursing,Brunelcare,3705.04, 20-Dec-2021
664,Revenue,CAHD,North - S117,Permanent Nursing,Brunelcare,3705.04, 20-Dec-2021
665,Revenue,CAHD,South - Commissioned Services,Permanent Nursing,Brunelcare,3705.04, 20-Dec-2021
666,Revenue,CAHD,South - Commissioned Services,Permanent Nursing,Brunelcare,2654.57, 20-Dec-2021
667,Revenue,CAHD,South - Commissioned Services,Permanent Nursing,Brunelcare,4509.04, 20-Dec-2021
668,Revenue,CAHD,South - Commissioned Services,Permanent Nursing,Brunelcare,2996.66, 20-Dec-2021
669,Revenue,CAHD,South - Commissioned Services,Permanent Nursing,Brunelcare,3069.04, 20-Dec-2021
670,Revenue,CAHD,South - Commissioned Services,Permanent Nursing,Brunelcare,2148.77, 20-Dec-2021
671,Revenue,CAHD,Central - Commissioned Services,Permanent Nursing,Brunelcare,2783.49, 20-Dec-2021
672,Revenue,CAHD,Central - Commissioned Services,Permanent Nursing,Brunelcare,2959.03, 20-Dec-2021
673,Revenue,CAHD,South - Commissioned Services,Respite Planned - Nursing,Brunelcare,988.01, 20-Dec-2021
674,Revenue,CAHD,North - Community based support,Permanent Nursing,Brunelcare,3705.04, 20-Dec-2021
675,Revenue,CAHD,South - Commissioned Services,Respite Planned - Nursing,Brunelcare,988.01, 20-Dec-2021
676,Revenue,CAHD,North - Community based support,Respite Planned - Nursing,Brunelcare,2104.22, 20-Dec-2021
677,Revenue,CAHD,Central - Commissioned Services,Other Small Contracts,Brunelcare,686.28, 09-Dec-2021
678,Revenue,CAHD,South - Commissioned Services,Other Small Contracts,Brunelcare,13922.44, 09-Dec-2021
679,Revenue,CAHD,North - Community based support,Other Small Contracts,Brunelcare,377.72, 09-Dec-2021
680,Revenue,CAHD,Central - Commissioned Services,Other Small Contracts,Brunelcare,686.28, 01-Dec-2021
681,Revenue,CAHD,South - Commissioned Services,Other Small Contracts,Brunelcare,13230.84, 01-Dec-2021
682,Revenue,CAHD,South - Commissioned Services,Mentoring,Brunelcare,42.56, 01-Dec-2021
683,Revenue,CAHD,North - Community based support,Other Small Contracts,Brunelcare,377.72, 01-Dec-2021
684,Revenue,CAHD,Central - Commissioned Services,Other Small Contracts,Brunelcare,712.88, 15-Dec-2021
685,Revenue,CAHD,South - Commissioned Services,Other Small Contracts,Brunelcare,13645.80, 15-Dec-2021
686,Revenue,CAHD,South - Commissioned Services,Mentoring,Brunelcare,21.28, 15-Dec-2021
687,Revenue,CAHD,North - Community based support,Other Small Contracts,Brunelcare,383.04, 15-Dec-2021
688,Revenue,CAHD,Central - Commissioned Services,Other Small Contracts,Brunelcare,526.68, 22-Dec-2021
689,Revenue,CAHD,South - Commissioned Services,Other Small Contracts,Brunelcare,14039.48, 22-Dec-2021
690,Revenue,CAHD,South - Commissioned Services,Mentoring,Brunelcare,53.20, 22-Dec-2021
691,Revenue,CAHD,North - Community based support,Other Small Contracts,Brunelcare,383.04, 22-Dec-2021
692,Revenue,CAHD,Central - Commissioned Services,Other Small Contracts,Brunelcare,361.76, 22-Dec-2021
693,Revenue,CAHD,South - Commissioned Services,Other Small Contracts,Brunelcare,13640.48, 22-Dec-2021
694,Revenue,CAHD,South - Commissioned Services,Mentoring,Brunelcare,31.92, 22-Dec-2021
695,Revenue,CAHD,North - Community based support,Other Small Contracts,Brunelcare,399.00, 22-Dec-2021
696,Revenue,CAHD,Central - Commissioned Services,Other Small Contracts,Brunelcare,361.76, 23-Dec-2021
697,Revenue,CAHD,South - Commissioned Services,Other Small Contracts,Brunelcare,13911.80, 23-Dec-2021
698,Revenue,CAHD,South - Commissioned Services,Mentoring,Brunelcare,63.84, 23-Dec-2021
699,Revenue,CAHD,North - Community based support,Other Small Contracts,Brunelcare,345.80, 23-Dec-2021
700,Revenue,CAHD,Central - Commissioned Services,Other Small Contracts,Brunelcare,383.04, 23-Dec-2021
701,Revenue,CAHD,South - Commissioned Services,Other Small Contracts,Brunelcare,13959.68, 23-Dec-2021
702,Revenue,CAHD,South - Commissioned Services,Mentoring,Brunelcare,63.84, 23-Dec-2021
703,Revenue,CAHD,North - Community based support,Other Small Contracts,Brunelcare,383.04, 23-Dec-2021
704,Revenue,CAHD,Covid - ASC - Infection Control,Grants to Voluntary Bodies,Brunelcare,5163.93, 01-Dec-2021
705,Revenue,CAHD,ASC Rapid Testing Fund,Grants to Voluntary Bodies,Brunelcare,3788.11, 01-Dec-2021
706,Revenue,CAHD,Covid - Vaccines,Grants to Voluntary Bodies,Brunelcare,1380.95, 01-Dec-2021
707,Revenue,CAHD,North - S117,Permanent Residential,Buckland Care,3600.00, 14-Dec-2021
708,Revenue,CAHD,CSC - Vinney Green Secure Unit,R & M by Departments,BWS Standfast Fire & Security Systems,4818.00, 29-Dec-2021
709,Revenue,CAHD,CSC - Vinney Green Secure Unit,R & M by Departments,BWS Standfast Fire & Security Systems,1693.00, 29-Dec-2021
710,Revenue,CAHD,CSC - Vinney Green Secure Unit,R & M by Departments,BWS Standfast Fire & Security Systems,2126.00, 30-Dec-2021
711,Revenue,CAHD,CSC - Agency Fostering,Foster Parent Allowances,By the Bridge Ltd,984.55, 01-Dec-2021
712,Revenue,CAHD,CSC - Agency Fostering,Foster Parent Allowances,By the Bridge Ltd,2571.36, 01-Dec-2021
713,Revenue,CAHD,CSC - Agency Fostering,Foster Parent Allowances,By the Bridge Ltd,4242.66, 01-Dec-2021
714,Revenue,CAHD,CSC - Agency Fostering,Foster Parent Allowances,By the Bridge Ltd,3214.20, 30-Dec-2021
715,Revenue,CAHD,CSC - Agency Fostering,Foster Parent Allowances,By the Bridge Ltd,4105.80, 30-Dec-2021
716,Revenue,CAHD,Social Lettings Agency,Rent,Individual,947.40, 13-Dec-2021
717,Revenue,CAHD,Social Lettings Agency,Fees & Charges Income - General,Individual,-94.74, 13-Dec-2021
718,Revenue,CAHD,Statemented Support Academies,Other Public Bodies,Cabot Learning Federation,646.67, 23-Dec-2021
719,Revenue,CAHD,Statemented Support Academies,Other Public Bodies,Cabot Learning Federation,1673.34, 23-Dec-2021
720,Revenue,CAHD,Statemented Support Academies,Other Public Bodies,Cabot Learning Federation,1666.67, 23-Dec-2021
721,Revenue,CAHD,Statemented Support Academies,Other Public Bodies,Cabot Learning Federation,1103.25, 23-Dec-2021
722,Revenue,CAHD,Statemented Support Academies,Other Public Bodies,Cabot Learning Federation,1899.58, 23-Dec-2021
723,Revenue,CAHD,Statemented Support Academies,Other Public Bodies,Cabot Learning Federation,788.22, 23-Dec-2021
724,Revenue,CAHD,Statemented Support Academies,Other Public Bodies,Cabot Learning Federation,957.92, 23-Dec-2021
725,Revenue,CAHD,Statemented Support Academies,Other Public Bodies,Cabot Learning Federation,917.67, 23-Dec-2021
726,Revenue,CAHD,Statemented Support Academies,Other Public Bodies,Cabot Learning Federation,1654.33, 23-Dec-2021
727,Revenue,CAHD,Statemented Support Academies,Other Public Bodies,Cabot Learning Federation,658.75, 23-Dec-2021
728,Revenue,CAHD,Statemented Support Academies,Other Public Bodies,Cabot Learning Federation,632.67, 23-Dec-2021
729,Revenue,CAHD,Statemented Support Academies,Other Public Bodies,Cabot Learning Federation,695.61, 23-Dec-2021
730,Revenue,CAHD,Statemented Support Academies,Other Public Bodies,Cabot Learning Federation,918.75, 23-Dec-2021
731,Revenue,CAHD,Statemented Support Academies,Other Public Bodies,Cabot Learning Federation,975.58, 23-Dec-2021
732,Revenue,CAHD,Statemented Support Academies,Other Public Bodies,Cabot Learning Federation,705.00, 23-Dec-2021
733,Revenue,CAHD,Statemented Support Academies,Other Public Bodies,Cabot Learning Federation,1084.17, 23-Dec-2021
734,Revenue,CAHD,Academy Resource Base Funding,Other Public Bodies,Cabot Learning Federation,8438.40, 21-Dec-2021
735,Revenue,CAHD,Academy Resource Base Funding,Other Public Bodies,Cabot Learning Federation,1702.96, 21-Dec-2021
736,Revenue,CAHD,Academy Resource Base Funding,Other Public Bodies,Cabot Learning Federation,1540.83, 21-Dec-2021
737,Revenue,CAHD,Academy Resource Base Funding,Other Public Bodies,Cabot Learning Federation,1540.83, 21-Dec-2021
738,Revenue,CAHD,Academy Resource Base Funding,Other Public Bodies,Cabot Learning Federation,1175.88, 21-Dec-2021
739,Revenue,CAHD,Academy Resource Base Funding,Other Public Bodies,Cabot Learning Federation,1175.88, 21-Dec-2021
740,Revenue,CAHD,Academy Resource Base Funding,Other Public Bodies,Cabot Learning Federation,1175.88, 21-Dec-2021
741,Revenue,CAHD,Academy Resource Base Funding,Other Public Bodies,Cabot Learning Federation,1540.83, 21-Dec-2021
742,Revenue,CAHD,Academy Resource Base Funding,Other Public Bodies,Cabot Learning Federation,1013.75, 21-Dec-2021
743,Revenue,CAHD,Academy Resource Base Funding,Other Public Bodies,Cabot Learning Federation,1702.96, 21-Dec-2021
744,Revenue,CAHD,Academy Resource Base Funding,Other Public Bodies,Cabot Learning Federation,1702.96, 21-Dec-2021
745,Revenue,CAHD,Academy Resource Base Funding,Other Public Bodies,Cabot Learning Federation,1175.88, 21-Dec-2021
746,Revenue,CAHD,Academy Resource Base Funding,Other Public Bodies,Cabot Learning Federation,1175.88, 21-Dec-2021
747,Revenue,CAHD,Academy Resource Base Funding,Other Public Bodies,Cabot Learning Federation,1702.96, 21-Dec-2021
748,Revenue,CAHD,Academy Resource Base Funding,Other Public Bodies,Cabot Learning Federation,648.70, 21-Dec-2021
749,Revenue,CAHD,Academy Resource Base Funding,Other Public Bodies,Cabot Learning Federation,1175.88, 21-Dec-2021
750,Revenue,CAHD,Academy Resource Base Funding,Other Public Bodies,Cabot Learning Federation,9893.32, 21-Dec-2021
751,Revenue,CAHD,Academy Resource Base Funding,Other Public Bodies,Cabot Learning Federation,1702.96, 21-Dec-2021
752,Revenue,CAHD,Academy Resource Base Funding,Other Public Bodies,Cabot Learning Federation,1175.88, 21-Dec-2021
753,Revenue,CAHD,Academy Resource Base Funding,Other Public Bodies,Cabot Learning Federation,1702.96, 21-Dec-2021
754,Revenue,CAHD,Academy Resource Base Funding,Other Public Bodies,Cabot Learning Federation,1702.96, 21-Dec-2021
755,Revenue,CAHD,Academy Resource Base Funding,Other Public Bodies,Cabot Learning Federation,648.70, 21-Dec-2021
756,Revenue,CAHD,Academy Resource Base Funding,Other Public Bodies,Cabot Learning Federation,1540.83, 21-Dec-2021
757,Revenue,CAHD,Academy Resource Base Funding,Other Public Bodies,Cabot Learning Federation,1175.88, 21-Dec-2021
758,Revenue,CAHD,Academy Resource Base Funding,Other Public Bodies,Cabot Learning Federation,2189.53, 21-Dec-2021
759,Revenue,CAHD,Academy Resource Base Funding,Other Public Bodies,Cabot Learning Federation,1175.88, 21-Dec-2021
760,Revenue,CAHD,Statemented Support Academies,Other Public Bodies,Cabot Learning Federation,1626.67, 23-Dec-2021
761,Revenue,CAHD,Statemented Support Academies,Other Public Bodies,Cabot Learning Federation,710.58, 23-Dec-2021
762,Revenue,CAHD,Statemented Support Academies,Other Public Bodies,Cabot Learning Federation,804.08, 23-Dec-2021
763,Revenue,CAHD,Statemented Support Academies,Other Public Bodies,Cabot Learning Federation,855.08, 23-Dec-2021
764,Revenue,CAHD,Statemented Support Academies,Other Public Bodies,Cabot Learning Federation,554.13, 23-Dec-2021
765,Revenue,CAHD,Statemented Support Academies,Other Public Bodies,Cabot Learning Federation,742.77, 23-Dec-2021
766,Revenue,CAHD,Statemented Support Academies,Other Public Bodies,Cabot Learning Federation,778.14, 23-Dec-2021
767,Revenue,CAHD,Statemented Support Academies,Other Public Bodies,Cabot Learning Federation,1202.67, 23-Dec-2021
768,Revenue,CAHD,Statemented Support Academies,Other Public Bodies,Cabot Learning Federation,813.51, 23-Dec-2021
769,Revenue,CAHD,Statemented Support Payments to OLAs,Other L.A.s - General,Cabot Learning Federation,601.29, 23-Dec-2021
770,Revenue,CAHD,Statemented Support Academies,Other Public Bodies,Cabot Learning Federation,661.33, 23-Dec-2021
771,Revenue,CAHD,Statemented Support Academies,Other Public Bodies,Cabot Learning Federation,1131.84, 23-Dec-2021
772,Revenue,CAHD,Statemented Support Academies,Other Public Bodies,Cabot Learning Federation,1202.67, 23-Dec-2021
773,Revenue,CAHD,Statemented Support Academies,Other Public Bodies,Cabot Learning Federation,554.13, 23-Dec-2021
774,Revenue,CAHD,Statemented Support Academies,Other Public Bodies,Cabot Learning Federation,1028.08, 23-Dec-2021
775,Revenue,CAHD,Statemented Support Academies,Other Public Bodies,Cabot Learning Federation,1096.47, 23-Dec-2021
776,Revenue,CAHD,Statemented Support Academies,Other Public Bodies,Cabot Learning Federation,1429.42, 23-Dec-2021
777,Revenue,CAHD,Statemented Support Academies,Other Public Bodies,Cabot Learning Federation,730.98, 23-Dec-2021
778,Revenue,CAHD,Statemented Support Academies,Other Public Bodies,Cabot Learning Federation,680.42, 23-Dec-2021
779,Revenue,CAHD,Statemented Support Academies,Other Public Bodies,Cabot Learning Federation,1150.25, 23-Dec-2021
780,Revenue,CAHD,Statemented Support Academies,Other Public Bodies,Cabot Learning Federation,685.33, 23-Dec-2021
781,Revenue,CAHD,Statemented Support Academies,Other Public Bodies,Cabot Learning Federation,530.55, 23-Dec-2021
782,Revenue,CAHD,Statemented Support Payments to OLAs,Other L.A.s - General,Cabot Learning Federation,1062.33, 23-Dec-2021
783,Revenue,CAHD,Statemented Support Payments to OLAs,Other L.A.s - General,Cabot Learning Federation,809.75, 23-Dec-2021
784,Revenue,CAHD,Statemented Support Payments to OLAs,Other L.A.s - General,Cabot Learning Federation,888.33, 23-Dec-2021
785,Revenue,CAHD,Statemented Support Academies,Other Public Bodies,Cabot Learning Federation,577.50, 23-Dec-2021
786,Revenue,CAHD,Statemented Support Academies,Other Public Bodies,Cabot Learning Federation,1297.08, 23-Dec-2021
787,Revenue,CAHD,Statemented Support Academies,Other Public Bodies,Cabot Learning Federation,966.83, 23-Dec-2021
788,Revenue,CAHD,Statemented Support Payments to OLAs,Other L.A.s - General,Cabot Learning Federation,665.33, 23-Dec-2021
789,Revenue,CAHD,EARLY YEARS DISABILITY  ACCES FUND,Preventative Assistance,Caerleon Childcare,615.00, 20-Dec-2021
790,Revenue,CAHD,Early Years High Needs Support,Other Private Contractors,Caerleon Childcare,515.71, 21-Dec-2021
791,Revenue,CAHD,North - Community based support,Permanent Nursing,Caernarvon House,4710.40, 14-Dec-2021
792,Revenue,CAHD,North - Community based support,Permanent Nursing,Caernarvon House,1764.13, 14-Dec-2021
793,Revenue,CAHD,North - S117,Permanent Nursing,Caernarvon House,3990.24, 14-Dec-2021
794,Revenue,CAHD,South - Commissioned Services,Permanent Nursing,Caernarvon House,4915.20, 14-Dec-2021
795,Revenue,CAHD,South - S117,Permanent Nursing,Caernarvon House,4915.20, 14-Dec-2021
796,Revenue,CAHD,North - Community based support,Permanent Nursing,Caernarvon House,8228.45, 14-Dec-2021
797,Revenue,CAHD,North - Community based support,Permanent Nursing,Caernarvon House,3339.08, 14-Dec-2021
798,Revenue,CAHD,North - Community based support,Fees & Charges Income - General,Caernarvon House,1400.56, 14-Dec-2021
799,Revenue,CAHD,South - Commissioned Services,Permanent Nursing,Caernarvon House,2960.00, 14-Dec-2021
800,Revenue,CAHD,South - Commissioned Services,Permanent Nursing,Caernarvon House,4800.00, 14-Dec-2021
801,Revenue,CAHD,Post 16 High Needs Placements,Other Private Contractors,Cambian Asperger Syndrome Services Limited,68703.00, 17-Dec-2021
802,Revenue,CAHD,Post 16 High Needs Placements,Other Private Contractors,Cambian Asperger Syndrome Services Limited,68703.00, 09-Dec-2021
803,Revenue,CAHD,CSC - Residential Placements,Permanent Residential,Cambian Childcare Ltd,18428.70, 14-Dec-2021
804,Revenue,CAHD,CSC - Residential Placements,Permanent Residential,Cambian Childcare Ltd,23357.10, 21-Dec-2021
805,Revenue,CAHD,Early Years Development,External Lecturers Fees,Cambium Sustainable Landscapes & Training,577.50, 20-Dec-2021
806,Revenue,CAHD,North - Community based support,Day Care / Social Activities,Camphill Communities Thornbury Limited,1032.46, 03-Dec-2021
807,Revenue,CAHD,North - Community based support,Other Small Contracts,Camphill Communities Thornbury Limited,1704.30, 03-Dec-2021
808,Revenue,CAHD,North - Community based support,Supported Living,Camphill Communities Thornbury Limited,899.08, 03-Dec-2021
809,Revenue,CAHD,North - Community based support,Day Care / Social Activities,Camphill Communities Thornbury Limited,1185.60, 10-Dec-2021
810,Revenue,CAHD,North - Community based support,Other Small Contracts,Camphill Communities Thornbury Limited,1664.78, 10-Dec-2021
811,Revenue,CAHD,North - Community based support,Supported Living,Camphill Communities Thornbury Limited,904.02, 10-Dec-2021
812,Revenue,CAHD,North - Community based support,Day Care / Social Activities,Camphill Communities Thornbury Limited,1190.54, 17-Dec-2021
813,Revenue,CAHD,North - Community based support,Other Small Contracts,Camphill Communities Thornbury Limited,1674.66, 17-Dec-2021
814,Revenue,CAHD,North - Community based support,Supported Living,Camphill Communities Thornbury Limited,1101.62, 17-Dec-2021
815,Revenue,CAHD,North - Community based support,Day Care / Social Activities,Camphill Communities Thornbury Limited,1185.60, 24-Dec-2021
816,Revenue,CAHD,North - Community based support,Other Small Contracts,Camphill Communities Thornbury Limited,1615.38, 24-Dec-2021
817,Revenue,CAHD,North - Community based support,Supported Living,Camphill Communities Thornbury Limited,1081.86, 24-Dec-2021
818,Revenue,CAHD,North - Community based support,Day Care / Social Activities,Camphill Communities Thornbury Limited,1185.60, 30-Dec-2021
819,Revenue,CAHD,North - Community based support,Other Small Contracts,Camphill Communities Thornbury Limited,1625.26, 30-Dec-2021
820,Revenue,CAHD,North - Community based support,Supported Living,Camphill Communities Thornbury Limited,948.48, 30-Dec-2021
821,Revenue,CAHD,CSC - Agency Fostering,Foster Parent Allowances,Capstone Foster Care (South West) Limited,3385.80, 01-Dec-2021
822,Revenue,CAHD,CSC - Agency Fostering,Foster Parent Allowances,Capstone Foster Care (South West) Limited,3385.80, 01-Dec-2021
823,Revenue,CAHD,CSC - Agency Fostering,Foster Parent Allowances,Capstone Foster Care (South West) Limited,3552.90, 01-Dec-2021
824,Revenue,CAHD,CSC - Agency Fostering,Foster Parent Allowances,Capstone Foster Care (South West) Limited,3498.66, 30-Dec-2021
825,Revenue,CAHD,CSC - Agency Fostering,Foster Parent Allowances,Capstone Foster Care (South West) Limited,3498.66, 30-Dec-2021
826,Revenue,CAHD,CSC - Agency Fostering,Foster Parent Allowances,Capstone Foster Care (South West) Limited,3671.33, 30-Dec-2021
827,Revenue,CAHD,Central - Commissioned Services,Other Small Contracts,Care 1st Homecare,3057.60, 09-Dec-2021
828,Revenue,CAHD,South - Commissioned Services,Other Small Contracts,Care 1st Homecare,192.18, 09-Dec-2021
829,Revenue,CAHD,Central - Commissioned Services,Other Small Contracts,Care 1st Homecare,3066.70, 09-Dec-2021
830,Revenue,CAHD,Central - Commissioned Services,Other Small Contracts,Care 1st Homecare,3057.60, 22-Dec-2021
831,Revenue,CAHD,Central - Commissioned Services,Other Small Contracts,Care 1st Homecare,3053.05, 22-Dec-2021
832,Revenue,CAHD,Central - Commissioned Services,Other Small Contracts,Care 1st Homecare,3062.15, 29-Dec-2021
833,Revenue,CAHD,Covid - ASC - Infection Control,Grants to Voluntary Bodies,Care Futures,556.89, 21-Dec-2021
834,Revenue,CAHD,North - Community based support,Supported Living,Care Horizons,5560.28, 14-Dec-2021
835,Revenue,CAHD,North - Community based support,Supported Living,Care Horizons,5560.28, 14-Dec-2021
836,Revenue,CAHD,18-25 Year Olds,Other Small Contracts,Care Horizons Limited,80.64, 01-Dec-2021
837,Revenue,CAHD,Central - Commissioned Services,Other Small Contracts,Care Horizons Limited,4681.60, 01-Dec-2021
838,Revenue,CAHD,South - Commissioned Services,Other Small Contracts,Care Horizons Limited,423.36, 01-Dec-2021
839,Revenue,CAHD,South - Commissioned Services,Mentoring,Care Horizons Limited,80.64, 01-Dec-2021
840,Revenue,CAHD,North - Community based support,Other Small Contracts,Care Horizons Limited,3461.36, 01-Dec-2021
841,Revenue,CAHD,Younger MH non-res purchasing,Other Small Contracts,Care Horizons Limited,226.80, 01-Dec-2021
842,Revenue,CAHD,Home care - Elderly MH - North,Other Small Contracts,Care Horizons Limited,40.32, 01-Dec-2021
843,Revenue,CAHD,18-25 Year Olds,Other Small Contracts,Care Horizons Limited,100.80, 15-Dec-2021
844,Revenue,CAHD,Central - Commissioned Services,Other Small Contracts,Care Horizons Limited,4686.52, 15-Dec-2021
845,Revenue,CAHD,South - Commissioned Services,Other Small Contracts,Care Horizons Limited,383.04, 15-Dec-2021
846,Revenue,CAHD,South - Commissioned Services,Mentoring,Care Horizons Limited,80.64, 15-Dec-2021
847,Revenue,CAHD,North - Community based support,Other Small Contracts,Care Horizons Limited,3451.28, 15-Dec-2021
848,Revenue,CAHD,Younger MH non-res purchasing,Other Small Contracts,Care Horizons Limited,257.04, 15-Dec-2021
849,Revenue,CAHD,18-25 Year Olds,Other Small Contracts,Care Horizons Limited,80.64, 15-Dec-2021
850,Revenue,CAHD,Central - Commissioned Services,Other Small Contracts,Care Horizons Limited,4812.64, 15-Dec-2021
851,Revenue,CAHD,South - Commissioned Services,Other Small Contracts,Care Horizons Limited,383.04, 15-Dec-2021
852,Revenue,CAHD,South - Commissioned Services,Mentoring,Care Horizons Limited,80.64, 15-Dec-2021
853,Revenue,CAHD,North - Community based support,Other Small Contracts,Care Horizons Limited,3466.40, 15-Dec-2021
854,Revenue,CAHD,Younger MH non-res purchasing,Other Small Contracts,Care Horizons Limited,257.04, 15-Dec-2021
855,Revenue,CAHD,18-25 Year Olds,Other Small Contracts,Care Horizons Limited,80.64, 20-Dec-2021
856,Revenue,CAHD,Central - Commissioned Services,Other Small Contracts,Care Horizons Limited,4747.12, 20-Dec-2021
857,Revenue,CAHD,South - Commissioned Services,Other Small Contracts,Care Horizons Limited,352.80, 20-Dec-2021
858,Revenue,CAHD,South - Commissioned Services,Mentoring,Care Horizons Limited,80.64, 20-Dec-2021
859,Revenue,CAHD,North - Community based support,Other Small Contracts,Care Horizons Limited,3536.96, 20-Dec-2021
860,Revenue,CAHD,Younger MH non-res purchasing,Other Small Contracts,Care Horizons Limited,257.04, 20-Dec-2021
861,Revenue,CAHD,18-25 Year Olds,Other Small Contracts,Care Horizons Limited,80.64, 29-Dec-2021
862,Revenue,CAHD,Central - Commissioned Services,Other Small Contracts,Care Horizons Limited,4732.00, 29-Dec-2021
863,Revenue,CAHD,South - Commissioned Services,Other Small Contracts,Care Horizons Limited,509.04, 29-Dec-2021
864,Revenue,CAHD,South - Commissioned Services,Mentoring,Care Horizons Limited,80.64, 29-Dec-2021
865,Revenue,CAHD,North - Community based support,Other Small Contracts,Care Horizons Limited,3451.28, 29-Dec-2021
866,Revenue,CAHD,Younger MH non-res purchasing,Other Small Contracts,Care Horizons Limited,272.16, 29-Dec-2021
867,Revenue,CAHD,Covid - ASC - Infection Control,Grants to Voluntary Bodies,Care Horizons Limited,2025.07, 01-Dec-2021
868,Revenue,CAHD,ASC Rapid Testing Fund,Grants to Voluntary Bodies,Care Horizons Limited,1485.53, 01-Dec-2021
869,Revenue,CAHD,Covid - Vaccines,Grants to Voluntary Bodies,Care Horizons Limited,541.55, 01-Dec-2021
870,Revenue,CAHD,Covid - ASC - Infection Control,Grants to Voluntary Bodies,Care Unite Ltd t/a Home Instead Senior Care,1417.55, 01-Dec-2021
871,Revenue,CAHD,ASC Rapid Testing Fund,Grants to Voluntary Bodies,Care Unite Ltd t/a Home Instead Senior Care,1039.87, 01-Dec-2021
872,Revenue,CAHD,Covid - ASC - Infection Control,Grants to Voluntary Bodies,Caremark (Bristol & South Gloucestershire),658.15, 01-Dec-2021
873,Revenue,CAHD,Central - Commissioned Services,Other Small Contracts,Carepride Ltd,161.28, 23-Dec-2021
874,Revenue,CAHD,South - Commissioned Services,Other Small Contracts,Carepride Ltd,146.16, 23-Dec-2021
875,Revenue,CAHD,North - Community based support,Other Small Contracts,Carepride Ltd,378.00, 23-Dec-2021
876,Revenue,CAHD,Central - Commissioned Services,Other Small Contracts,Carepride Ltd,151.20, 23-Dec-2021
877,Revenue,CAHD,South - Commissioned Services,Other Small Contracts,Carepride Ltd,211.68, 23-Dec-2021
878,Revenue,CAHD,North - Community based support,Other Small Contracts,Carepride Ltd,297.36, 23-Dec-2021
879,Revenue,CAHD,Central - Commissioned Services,Other Small Contracts,Carepride Ltd,156.24, 23-Dec-2021
880,Revenue,CAHD,South - Commissioned Services,Other Small Contracts,Carepride Ltd,95.76, 23-Dec-2021
881,Revenue,CAHD,North - Community based support,Other Small Contracts,Carepride Ltd,367.92, 23-Dec-2021
882,Revenue,CAHD,Central - Commissioned Services,Other Small Contracts,Carepride Ltd,156.24, 23-Dec-2021
883,Revenue,CAHD,South - Commissioned Services,Other Small Contracts,Carepride Ltd,100.80, 23-Dec-2021
884,Revenue,CAHD,North - Community based support,Other Small Contracts,Carepride Ltd,287.28, 23-Dec-2021
885,Revenue,CAHD,Covid - ASC - Infection Control,Grants to Voluntary Bodies,Carepride Ltd,2885.73, 01-Dec-2021
886,Revenue,CAHD,ASC Rapid Testing Fund,Grants to Voluntary Bodies,Carepride Ltd,2116.88, 01-Dec-2021
887,Revenue,CAHD,Covid - Vaccines,Grants to Voluntary Bodies,Carepride Ltd,771.71, 01-Dec-2021
888,Revenue,CAHD,CSC - Care Leavers Independent Living,Independent Living,Caretech Community Services,6753.66, 24-Dec-2021
889,Revenue,CAHD,Covid - ASC - Infection Control,Grants to Voluntary Bodies,Caring Comes 1st Limited,2885.73, 10-Dec-2021
890,Revenue,CAHD,ASC Rapid Testing Fund,Grants to Voluntary Bodies,Caring Comes 1st Limited,2116.88, 13-Dec-2021
891,Revenue,CAHD,Covid - Vaccines,Grants to Voluntary Bodies,Caring Comes 1st Limited,771.71, 10-Dec-2021
892,Revenue,CAHD,CSC - Care Leavers Independent Living,Independent Living,Caring for Communities and People,6389.34, 14-Dec-2021
893,Revenue,CAHD,Supporting People Programme,Grants to Voluntary Bodies,Caring for Communities and People,12256.75, 03-Dec-2021
894,Revenue,CAHD,TSG Practice Placements,Training Expenses,Individual,1000.00, 24-Dec-2021
895,Revenue,CAHD,Social Lettings Agency,Prop.Serv. General Repairs,Carpet Giant,967.26, 29-Dec-2021
896,Revenue,CAHD,Statemented Support Academies,Other Public Bodies,Castle School Education Trust,530.55, 23-Dec-2021
897,Revenue,CAHD,Statemented Support Academies,Other Public Bodies,Castle School Education Trust,778.14, 23-Dec-2021
898,Revenue,CAHD,Statemented Support Academies,Other Public Bodies,Castle School Education Trust,821.50, 23-Dec-2021
899,Revenue,CAHD,Statemented Support Academies,Other Public Bodies,Castle School Education Trust,947.08, 23-Dec-2021
900,Revenue,CAHD,Statemented Support Academies,Other Public Bodies,Castle School Education Trust,577.71, 23-Dec-2021
901,Revenue,CAHD,Statemented Support Academies,Other Public Bodies,Castle School Education Trust,505.08, 23-Dec-2021
902,Revenue,CAHD,Statemented Support Academies,Other Public Bodies,Castle School Education Trust,672.03, 23-Dec-2021
903,Revenue,CAHD,Statemented Support Academies,Other Public Bodies,Castle School Education Trust,636.66, 23-Dec-2021
904,Revenue,CAHD,Statemented Support Academies,Other Public Bodies,Castle School Education Trust,554.13, 23-Dec-2021
905,Revenue,CAHD,Statemented Support Academies,Other Public Bodies,Castle School Education Trust,543.42, 23-Dec-2021
906,Revenue,CAHD,Statemented Support Academies,Other Public Bodies,Castle School Education Trust,954.99, 23-Dec-2021
907,Revenue,CAHD,Statemented Support Academies,Other Public Bodies,Castle School Education Trust,577.71, 23-Dec-2021
908,Revenue,CAHD,Statemented Support Academies,Other Public Bodies,Castle School Education Trust,1248.33, 23-Dec-2021
909,Revenue,CAHD,Statemented Support Academies,Other Public Bodies,Castle School Education Trust,1190.79, 23-Dec-2021
910,Revenue,CAHD,Statemented Support Academies,Other Public Bodies,Castle School Education Trust,691.92, 23-Dec-2021
911,Revenue,CAHD,Statemented Support Academies,Other Public Bodies,Castle School Education Trust,1071.67, 23-Dec-2021
912,Revenue,CAHD,Statemented Support Academies,Other Public Bodies,Castle School Education Trust,1061.10, 23-Dec-2021
913,Revenue,CAHD,Statemented Support Academies,Other Public Bodies,Castle School Education Trust,577.71, 23-Dec-2021
914,Revenue,CAHD,Statemented Support Academies,Other Public Bodies,Castle School Education Trust,1143.63, 23-Dec-2021
915,Revenue,CAHD,Statemented Support Academies,Other Public Bodies,Castle School Education Trust,943.33, 23-Dec-2021
916,Revenue,CAHD,Statemented Support Academies,Other Public Bodies,Castle School Education Trust,754.25, 23-Dec-2021
917,Revenue,CAHD,Statemented Support Academies,Other Public Bodies,Castle School Education Trust,906.75, 23-Dec-2021
918,Revenue,CAHD,Statemented Support Academies,Other Public Bodies,Castle School Education Trust,1202.67, 23-Dec-2021
919,Revenue,CAHD,Statemented Support Academies,Other Public Bodies,Castle School Education Trust,1485.54, 23-Dec-2021
920,Revenue,CAHD,Statemented Support Academies,Other Public Bodies,Castle School Education Trust,1177.50, 23-Dec-2021
921,Revenue,CAHD,Statemented Support Academies,Other Public Bodies,Castle School Education Trust,888.75, 23-Dec-2021
922,Revenue,CAHD,Statemented Support Academies,Other Public Bodies,Castle School Education Trust,1261.75, 23-Dec-2021
923,Revenue,CAHD,Statemented Support Academies,Other Public Bodies,Castle School Education Trust,896.08, 23-Dec-2021
924,Revenue,CAHD,Statemented Support Academies,Other Public Bodies,Castle School Education Trust,801.92, 23-Dec-2021
925,Revenue,CAHD,Statemented Support Academies,Other Public Bodies,Castle School Education Trust,943.17, 23-Dec-2021
926,Revenue,CAHD,Statemented Support Academies,Other Public Bodies,Castle School Education Trust,1267.50, 23-Dec-2021
927,Revenue,CAHD,Academy Resource Base Funding,Other Public Bodies,Castle School Education Trust,3397.28, 21-Dec-2021
928,Revenue,CAHD,Academy Resource Base Funding,Other Public Bodies,Castle School Education Trust,1702.96, 21-Dec-2021
929,Revenue,CAHD,Academy Resource Base Funding,Other Public Bodies,Castle School Education Trust,2513.87, 21-Dec-2021
930,Revenue,CAHD,Academy Resource Base Funding,Other Public Bodies,Castle School Education Trust,1702.96, 21-Dec-2021
931,Revenue,CAHD,Academy Resource Base Funding,Other Public Bodies,Castle School Education Trust,1702.96, 21-Dec-2021
932,Revenue,CAHD,Academy Resource Base Funding,Other Public Bodies,Castle School Education Trust,1702.96, 21-Dec-2021
933,Revenue,CAHD,Academy Resource Base Funding,Other Public Bodies,Castle School Education Trust,2513.87, 21-Dec-2021
934,Revenue,CAHD,Academy Resource Base Funding,Other Public Bodies,Castle School Education Trust,2513.87, 21-Dec-2021
935,Revenue,CAHD,Academy Resource Base Funding,Other Public Bodies,Castle School Education Trust,2513.87, 21-Dec-2021
936,Revenue,CAHD,Academy Resource Base Funding,Other Public Bodies,Castle School Education Trust,1702.96, 21-Dec-2021
937,Revenue,CAHD,Academy Resource Base Funding,Other Public Bodies,Castle School Education Trust,1702.96, 21-Dec-2021
938,Revenue,CAHD,Academy Resource Base Funding,Other Public Bodies,Castle School Education Trust,1702.96, 21-Dec-2021
939,Revenue,CAHD,Academy Resource Base Funding,Other Public Bodies,Castle School Education Trust,1702.96, 21-Dec-2021
940,Revenue,CAHD,Academy Resource Base Funding,Other Public Bodies,Castle School Education Trust,1702.96, 21-Dec-2021
941,Revenue,CAHD,Academy Resource Base Funding,Other Public Bodies,Castle School Education Trust,1702.96, 21-Dec-2021
942,Revenue,CAHD,Academy Resource Base Funding,Other Public Bodies,Castle School Education Trust,2189.53, 21-Dec-2021
943,Revenue,CAHD,Statemented Support Academies,Other Public Bodies,Castle School Education Trust,672.03, 23-Dec-2021
944,Revenue,CAHD,Statemented Support Academies,Other Public Bodies,Castle School Education Trust,822.50, 23-Dec-2021
945,Revenue,CAHD,Statemented Support Academies,Other Public Bodies,Castle School Education Trust,872.46, 23-Dec-2021
946,Revenue,CAHD,Statemented Support Academies,Other Public Bodies,Castle School Education Trust,848.88, 23-Dec-2021
947,Revenue,CAHD,Statemented Support Academies,Other Public Bodies,Castle School Education Trust,541.58, 23-Dec-2021
948,Revenue,CAHD,Statemented Support Academies,Other Public Bodies,Castle School Education Trust,723.17, 23-Dec-2021
949,Revenue,CAHD,Statemented Support Academies,Other Public Bodies,Castle School Education Trust,956.00, 23-Dec-2021
950,Revenue,CAHD,Statemented Support Academies,Other Public Bodies,Castle School Education Trust,1628.42, 23-Dec-2021
951,Revenue,CAHD,Statemented Support Academies,Other Public Bodies,Castle School Education Trust,560.17, 23-Dec-2021
952,Revenue,CAHD,High Risk Group Funding,Schools Funding,Castle School Education Trust,2895.00, 23-Dec-2021
953,Revenue,CAHD,Statemented Support Academies,Other Public Bodies,Castle School Education Trust,1202.67, 23-Dec-2021
954,Revenue,CAHD,Statemented Support Academies,Other Public Bodies,Castle School Education Trust,630.58, 23-Dec-2021
955,Revenue,CAHD,Statemented Support Academies,Other Public Bodies,Castle School Education Trust,778.14, 23-Dec-2021
956,Revenue,CAHD,Statemented Support Academies,Other Public Bodies,Castle School Education Trust,941.58, 23-Dec-2021
957,Revenue,CAHD,Statemented Support Academies,Other Public Bodies,Castle School Education Trust,613.08, 23-Dec-2021
958,Revenue,CAHD,Statemented Support Academies,Other Public Bodies,Castle School Educational Academy Trust,1129.92, 23-Dec-2021
959,Revenue,CAHD,Statemented Support Academies,Other Public Bodies,Castle School Educational Academy Trust,854.00, 23-Dec-2021
960,Revenue,CAHD,Statemented Support Academies,Other Public Bodies,Castle School Educational Academy Trust,940.75, 23-Dec-2021
961,Revenue,CAHD,Statemented Support Academies,Other Public Bodies,Castle School Educational Academy Trust,790.58, 23-Dec-2021
962,Revenue,CAHD,Statemented Support Academies,Other Public Bodies,Castle School Educational Academy Trust,508.67, 23-Dec-2021
963,Revenue,CAHD,Statemented Support Academies,Other Public Bodies,Castle School Educational Academy Trust,1148.20, 23-Dec-2021
964,Revenue,CAHD,Statemented Support Academies,Other Public Bodies,Castle School Educational Academy Trust,1097.25, 23-Dec-2021
965,Revenue,CAHD,Statemented Support Academies,Other Public Bodies,Castle School Educational Academy Trust,580.67, 23-Dec-2021
966,Revenue,CAHD,Statemented Support Academies,Other Public Bodies,Castle School Educational Academy Trust,925.08, 23-Dec-2021
967,Revenue,CAHD,Statemented Support Academies,Other Public Bodies,Castle School Educational Academy Trust,652.58, 23-Dec-2021
968,Revenue,CAHD,CSC - Legal Fees,Legal Fees,Cater Walsh Reporting Limited,503.25, 29-Dec-2021
969,Revenue,CAHD,Social Lettings Agency,Rent,Individual,658.30, 01-Dec-2021
970,Revenue,CAHD,Social Lettings Agency,Fees & Charges Income - General,Individual,-52.66, 01-Dec-2021
971,Revenue,CAHD,Social Lettings Agency,Rent,Individual,658.30, 30-Dec-2021
972,Revenue,CAHD,Social Lettings Agency,Fees & Charges Income - General,Individual,-52.66, 30-Dec-2021
973,Revenue,CAHD,South - Commissioned Services,Day Care / Social Activities,Causeway House,5481.44, 14-Dec-2021
974,Revenue,CAHD,18-25 Year Olds,Day Care / Social Activities,Causeway House,4606.48, 14-Dec-2021
975,Revenue,CAHD,Central - Commissioned Services,Day Care / Social Activities,Causeway House,4060.72, 14-Dec-2021
976,Revenue,CAHD,North - Community based support,Day Care / Social Activities,Causeway House,3366.40, 14-Dec-2021
977,Revenue,CAHD,North - Community based support,Day Care / Social Activities,Causeway House,5015.32, 14-Dec-2021
978,Revenue,CAHD,Central - Commissioned Services,Day Care / Social Activities,Causeway House,3810.84, 14-Dec-2021
979,Revenue,CAHD,North - Community based support,Day Care / Social Activities,Causeway House,3285.96, 14-Dec-2021
980,Revenue,CAHD,North - Community based support,Day Care / Social Activities,Causeway House,593.04, 14-Dec-2021
981,Revenue,CAHD,North - S117,Permanent Residential,Cavendish Care Home,4457.14, 14-Dec-2021
982,Revenue,CAHD,North - S117,Permanent Residential,Cavendish Care Home,3900.00, 14-Dec-2021
983,Revenue,CAHD,Central - Commissioned Services,Permanent Nursing,Cedar Court Care Home,4000.00, 14-Dec-2021
984,Revenue,CAHD,CSC - Care Leavers Independent Living,Independent Living,Centrepeacehomes Ltd,2960.00, 03-Dec-2021
985,Revenue,CAHD,CSC - Care Leavers Independent Living,Independent Living,Centrepeacehomes Ltd,2960.00, 15-Dec-2021
986,Revenue,CAHD,South - Commissioned Services,Permanent Residential,Challenge House,2894.80, 14-Dec-2021
987,Revenue,CAHD,North - S117,Permanent Residential,Challenge House,2626.16, 14-Dec-2021
988,Revenue,CAHD,North - Community based support,Permanent Residential,Challenge House,2314.96, 14-Dec-2021
989,Revenue,CAHD,North - Community based support,Permanent Residential,Challenge House,2902.76, 14-Dec-2021
990,Revenue,CAHD,Central - Commissioned Services,Permanent Residential,Challenge House,2452.44, 14-Dec-2021
991,Revenue,CAHD,Central - Commissioned Services,Permanent Residential,Challenge House,2819.84, 14-Dec-2021
992,Revenue,CAHD,North - Community based support,Permanent Residential,Challenge House,2894.76, 14-Dec-2021
993,Revenue,CAHD,North - S117,Permanent Nursing,Challenge House,2505.52, 14-Dec-2021
994,Revenue,CAHD,North - Community based support,Permanent Nursing,Challenge House,2505.52, 14-Dec-2021
995,Revenue,CAHD,North - Community based support,Permanent Nursing,Challenge House,3205.48, 14-Dec-2021
996,Revenue,CAHD,South Glos Users in South Glos Homes,Permanent Nursing,Challenge House,750.40, 14-Dec-2021
997,Revenue,CAHD,South Glos Users in South Glos Homes,Permanent Nursing,Challenge House,750.40, 14-Dec-2021
998,Revenue,CAHD,South Glos Users in South Glos Homes,Permanent Nursing,Challenge House,750.40, 14-Dec-2021
999,Revenue,CAHD,South Glos Users in South Glos Homes,Permanent Nursing,Challenge House,750.40, 14-Dec-2021
1000,Revenue,CAHD,North - Community based support,Permanent Residential,Challenge House,11771.43, 14-Dec-2021
1001,Revenue,CAHD,North - Community based support,Permanent Residential,Challenge House,3200.00, 14-Dec-2021
1002,Revenue,CAHD,Central - Commissioned Services,Respite Planned - Nursing,Challenge House,1600.00, 14-Dec-2021
1003,Revenue,CAHD,North - Community based support,Permanent Nursing,Challenge House,3478.20, 14-Dec-2021
1004,Revenue,CAHD,South Glos Users in South Glos Homes,Permanent Nursing,Challenge House,750.40, 14-Dec-2021
1005,Revenue,CAHD,South Glos Users in South Glos Homes,Permanent Nursing,Challenge House,750.40, 14-Dec-2021
1006,Revenue,CAHD,South - Commissioned Services,Permanent Nursing,Challenge House,3009.56, 14-Dec-2021
1007,Revenue,CAHD,South Glos Users in South Glos Homes,Permanent Nursing,Challenge House,750.40, 14-Dec-2021
1008,Revenue,CAHD,North - Community based support,Permanent Nursing,Challenge House,3347.92, 14-Dec-2021
1009,Revenue,CAHD,South Glos Users in South Glos Homes,Permanent Nursing,Challenge House,750.40, 14-Dec-2021
1010,Revenue,CAHD,North - Community based support,Respite Planned - Nursing,Challenge House,6557.14, 14-Dec-2021
1011,Revenue,CAHD,North - Community based support,Permanent Residential,Challenge House,3478.20, 14-Dec-2021
1012,Revenue,CAHD,South Glos Users in South Glos Homes,Permanent Nursing,Challenge House,750.40, 14-Dec-2021
1013,Revenue,CAHD,South Glos Users in South Glos Homes,Permanent Nursing,Challenge House,750.40, 14-Dec-2021
1014,Revenue,CAHD,North - Community based support,Permanent Nursing,Challenge House,3400.00, 14-Dec-2021
1015,Revenue,CAHD,South Glos Users in South Glos Homes,Permanent Nursing,Challenge House,750.40, 14-Dec-2021
1016,Revenue,CAHD,South Glos Users in South Glos Homes,Permanent Nursing,Challenge House,750.40, 14-Dec-2021
1017,Revenue,CAHD,South - Commissioned Services,Permanent Residential,Challenge House,3400.00, 14-Dec-2021
1018,Revenue,CAHD,North - Community based support,Permanent Residential,Challenge House,3800.00, 14-Dec-2021
1019,Revenue,CAHD,South Glos Users in South Glos Homes,Permanent Nursing,Challenge House,750.40, 14-Dec-2021
1020,Revenue,CAHD,South - Commissioned Services,Permanent Residential,Challenge House,3400.00, 14-Dec-2021
1021,Revenue,CAHD,South - Commissioned Services,Permanent Residential,Challenge House,3600.00, 14-Dec-2021
1022,Revenue,CAHD,South Glos Users in South Glos Homes,Permanent Nursing,Challenge House,750.40, 14-Dec-2021
1023,Revenue,CAHD,South - Commissioned Services,Respite Planned - Nursing,Challenge House,1457.14, 14-Dec-2021
1024,Revenue,CAHD,South - Commissioned Services,Permanent Nursing,Challenge House,3400.00, 14-Dec-2021
1025,Revenue,CAHD,South - Commissioned Services,Respite Planned - Residential,Challenge House,2550.00, 14-Dec-2021
1026,Revenue,CAHD,South - Commissioned Services,Respite Planned - Residential,Challenge House,850.00, 14-Dec-2021
1027,Revenue,CAHD,North - Community based support,Permanent Nursing,Challenge House,2950.40, 14-Dec-2021
1028,Revenue,CAHD,South Glos Users in South Glos Homes,Permanent Nursing,Challenge House,750.40, 14-Dec-2021
1029,Revenue,CAHD,North - Community based support,Permanent Nursing,Challenge House,3318.20, 14-Dec-2021
1030,Revenue,CAHD,South Glos Users in South Glos Homes,Permanent Nursing,Challenge House,750.40, 14-Dec-2021
1031,Revenue,CAHD,South - Commissioned Services,Respite Emergency - Residential,Challenge House,7200.00, 14-Dec-2021
1032,Revenue,CAHD,South - Commissioned Services,Respite Emergency - Residential,Challenge House,3600.00, 14-Dec-2021
1033,Revenue,CAHD,South - Commissioned Services,Respite Emergency - Residential,Challenge House,900.00, 14-Dec-2021
1034,Revenue,CAHD,North - Community based support,Permanent Nursing,Challenge House,3483.92, 14-Dec-2021
1035,Revenue,CAHD,South Glos Users in South Glos Homes,Permanent Nursing,Challenge House,750.40, 14-Dec-2021
1036,Revenue,CAHD,South Glos Users in South Glos Homes,Permanent Nursing,Challenge House,750.40, 14-Dec-2021
1037,Revenue,CAHD,North - Community based support,Permanent Residential,Challenge House,3193.00, 14-Dec-2021
1038,Revenue,CAHD,South Glos Users in South Glos Homes,Permanent Nursing,Challenge House,750.40, 14-Dec-2021
1039,Revenue,CAHD,Covid - ASC - Infection Control,Grants to Voluntary Bodies,Challenge House,6709.78, 13-Dec-2021
1040,Revenue,CAHD,ASC Rapid Testing Fund,Grants to Voluntary Bodies,Challenge House,4767.62, 13-Dec-2021
1041,Revenue,CAHD,Covid - Vaccines,Grants to Voluntary Bodies,Challenge House,586.17, 13-Dec-2021
1042,Revenue,CAHD,Central - Commissioned Services,Permanent Nursing,Challenge House,2490.00, 14-Dec-2021
1043,Revenue,CAHD,North - Community based support,Permanent Residential,Challenge House,1606.84, 14-Dec-2021
1044,Revenue,CAHD,Central - Commissioned Services,Permanent Nursing,Challenge House,3200.00, 14-Dec-2021
1045,Revenue,CAHD,North - Community based support,Respite Planned - Nursing,Challenge House,1500.00, 14-Dec-2021
1046,Revenue,CAHD,Training - Adult Services,Training Expenses,Individual,1700.00, 09-Dec-2021
1047,Revenue,CAHD,Training - Adult Services,Training Expenses,Individual,1150.00, 21-Dec-2021
1048,Revenue,CAHD,Statemented Support Academies,Other Public Bodies,Charlton Wood Primary Academy,702.17, 23-Dec-2021
1049,Revenue,CAHD,Statemented Support Academies,Other Public Bodies,Charlton Wood Primary Academy,1202.67, 23-Dec-2021
1050,Revenue,CAHD,Central - Commissioned Services,Other Small Contracts,Cherish Able Care Limited,622.44, 07-Dec-2021
1051,Revenue,CAHD,South - Commissioned Services,Other Small Contracts,Cherish Able Care Limited,8860.11, 07-Dec-2021
1052,Revenue,CAHD,North - Community based support,Other Small Contracts,Cherish Able Care Limited,696.54, 07-Dec-2021
1053,Revenue,CAHD,Central - Commissioned Services,Other Small Contracts,Cherish Able Care Limited,622.44, 15-Dec-2021
1054,Revenue,CAHD,South - Commissioned Services,Other Small Contracts,Cherish Able Care Limited,8983.61, 15-Dec-2021
1055,Revenue,CAHD,North - Community based support,Other Small Contracts,Cherish Able Care Limited,642.20, 15-Dec-2021
1056,Revenue,CAHD,Central - Commissioned Services,Other Small Contracts,Cherish Able Care Limited,652.08, 24-Dec-2021
1057,Revenue,CAHD,South - Commissioned Services,Other Small Contracts,Cherish Able Care Limited,9052.77, 24-Dec-2021
1058,Revenue,CAHD,North - Community based support,Other Small Contracts,Cherish Able Care Limited,686.66, 24-Dec-2021
1059,Revenue,CAHD,Central - Commissioned Services,Other Small Contracts,Cherish Able Care Limited,627.38, 29-Dec-2021
1060,Revenue,CAHD,South - Commissioned Services,Other Small Contracts,Cherish Able Care Limited,9309.65, 29-Dec-2021
1061,Revenue,CAHD,North - Community based support,Other Small Contracts,Cherish Able Care Limited,642.20, 29-Dec-2021
1062,Revenue,CAHD,Covid - ASC - Infection Control,Grants to Voluntary Bodies,Cherish Able Care Limited,2126.32, 01-Dec-2021
1063,Revenue,CAHD,ASC Rapid Testing Fund,Grants to Voluntary Bodies,Cherish Able Care Limited,1559.81, 01-Dec-2021
1064,Revenue,CAHD,Covid - Vaccines,Grants to Voluntary Bodies,Cherish Able Care Limited,568.62, 01-Dec-2021
1065,Revenue,CAHD,Covid  - Workforce capacity,Grants to Voluntary Bodies,Cherish Able Care Limited,3088.46, 29-Dec-2021
1066,Revenue,CAHD,North - Community based support,Other Small Contracts,Cherry Orchards,1630.20, 15-Dec-2021
1067,Revenue,CAHD,South - Commissioned Services,Other Small Contracts,Cherry Orchards,6639.36, 17-Dec-2021
1068,Revenue,CAHD,Central - Commissioned Services,Other Small Contracts,Cherry Orchards,1995.76, 03-Dec-2021
1069,Revenue,CAHD,North - Community based support,Other Small Contracts,Cherry Orchards,790.40, 21-Dec-2021
1070,Revenue,CAHD,South - Commissioned Services,Other Small Contracts,Cherry Orchards,1561.04, 21-Dec-2021
1071,Revenue,CAHD,South - Commissioned Services,Other Small Contracts,Cherry Orchards,1911.78, 21-Dec-2021
1072,Revenue,CAHD,South - Commissioned Services,Other Small Contracts,Cherry Orchards,1640.08, 29-Dec-2021
1073,Revenue,CAHD,South - Commissioned Services,Supported Living,Cherry Orchards,1938.52, 14-Dec-2021
1074,Revenue,CAHD,South - Commissioned Services,Supported Living,Cherry Orchards,1049.08, 14-Dec-2021
1075,Revenue,CAHD,Younger MH non-res purchasing,Supported Living,Cherry Orchards,1958.12, 14-Dec-2021
1076,Revenue,CAHD,Central - Commissioned Services,Supported Living,Cherry Orchards,2367.92, 14-Dec-2021
1077,Revenue,CAHD,18-25 Year Olds,Supported Living,Cherry Orchards,2077.24, 14-Dec-2021
1078,Revenue,CAHD,North - Community based support,Supported Living,Cherry Orchards,1066.96, 14-Dec-2021
1079,Revenue,CAHD,North - Community based support,Supported Living,Cherry Orchards,1938.52, 14-Dec-2021
1080,Revenue,CAHD,Central - Commissioned Services,Permanent Residential,Chescombe Trust Ltd,7955.79, 14-Dec-2021
1081,Revenue,CAHD,Central - Commissioned Services,Permanent Residential,Chescombe Trust Ltd,954.69, 14-Dec-2021
1082,Revenue,CAHD,S28A cases,Permanent Residential,Chescombe Trust Ltd,10188.80, 14-Dec-2021
1083,Revenue,CAHD,CSC - Section 17 - ART,Other Supplies & Services,Childrens Contact Services Ltd,1999.49, 13-Dec-2021
1084,Revenue,CAHD,CSC - Section 17 - ART,Other Supplies & Services,Childrens Contact Services Ltd,1984.80, 13-Dec-2021
1085,Revenue,CAHD,CSC - Section 17 - ART,Other Supplies & Services,Childrens Contact Services Ltd,2110.20, 13-Dec-2021
1086,Revenue,CAHD,CSC - Section 17 - ART,Other Supplies & Services,Childrens Contact Services Ltd,2470.20, 13-Dec-2021
1087,Revenue,CAHD,CSC - Section 17 - ART,Other Supplies & Services,Childrens Contact Services Ltd,2205.60, 13-Dec-2021
1088,Revenue,CAHD,CSC - Section 17 - ART,Other Supplies & Services,Childrens Contact Services Ltd,2500.20, 13-Dec-2021
1089,Revenue,CAHD,CSC - Emergency Duty Team,Preventative Assistance,Childrens Contact Services Ltd,1493.60, 29-Dec-2021
1090,Revenue,CAHD,CSC - Emergency Duty Team,Preventative Assistance,Childrens Contact Services Ltd,1714.40, 10-Dec-2021
1091,Revenue,CAHD,CSC - Emergency Duty Team,Preventative Assistance,Childrens Contact Services Ltd,3246.12, 29-Dec-2021
1092,Revenue,CAHD,EARLY YEARS DISABILITY  ACCES FUND,Preventative Assistance,Chipping Sodbury Pre School,615.00, 06-Dec-2021
1093,Revenue,CAHD,Early Years Inclusion Fund,Other Public Bodies,Christchurch Pre School,1350.00, 07-Dec-2021
1094,Revenue,CAHD,Childrens - Safeguarding Board,Training Expenses,Individual,525.00, 23-Dec-2021
1095,Revenue,CAHD,CSC - Post Ofsted Implementation,Consultants Fees,Christopher Baird,2400.00, 13-Dec-2021
1096,Revenue,CAHD,Statemented Support Payments to OLAs,Other L.A.s - General,Churchill Academy,1085.75, 23-Dec-2021
1097,Revenue,CAHD,Community Support - South,Preventative Assistance,Cintre,790.92, 14-Dec-2021
1098,Revenue,CAHD,18-25 Year Olds,Other Small Contracts,Cintre,916.20, 01-Dec-2021
1099,Revenue,CAHD,South - Commissioned Services,Other Small Contracts,Cintre,1241.96, 01-Dec-2021
1100,Revenue,CAHD,18-25 Year Olds,Other Small Contracts,Cintre,916.20, 07-Dec-2021
1101,Revenue,CAHD,Central - Commissioned Services,Other Small Contracts,Cintre,61.08, 07-Dec-2021
1102,Revenue,CAHD,South - Commissioned Services,Other Small Contracts,Cintre,1119.80, 07-Dec-2021
1103,Revenue,CAHD,18-25 Year Olds,Other Small Contracts,Cintre,916.20, 20-Dec-2021
1104,Revenue,CAHD,Central - Commissioned Services,Other Small Contracts,Cintre,122.16, 20-Dec-2021
1105,Revenue,CAHD,South - Commissioned Services,Other Small Contracts,Cintre,1180.88, 20-Dec-2021
1106,Revenue,CAHD,18-25 Year Olds,Other Small Contracts,Cintre,916.20, 21-Dec-2021
1107,Revenue,CAHD,Central - Commissioned Services,Other Small Contracts,Cintre,122.16, 21-Dec-2021
1108,Revenue,CAHD,South - Commissioned Services,Other Small Contracts,Cintre,1241.96, 21-Dec-2021
1109,Revenue,CAHD,18-25 Year Olds,Other Small Contracts,Cintre,916.20, 29-Dec-2021
1110,Revenue,CAHD,Central - Commissioned Services,Other Small Contracts,Cintre,122.16, 29-Dec-2021
1111,Revenue,CAHD,South - Commissioned Services,Other Small Contracts,Cintre,1201.24, 29-Dec-2021
1112,Revenue,CAHD,Learning Difficulties,Premises Hire,Circadian Trust,955.50, 02-Dec-2021
1113,Revenue,CAHD,Learning Difficulties,Premises Hire,Circadian Trust,661.50, 30-Dec-2021
1114,Revenue,CAHD,Learning Difficulties,Premises Hire,Circadian Trust,955.50, 02-Dec-2021
1115,Revenue,CAHD,Learning Difficulties,Premises Hire,Circadian Trust,661.50, 30-Dec-2021
1116,Revenue,CAHD,Placements OLA Special Schools and RB,Other L.A.s - General,Claremont School,1981.44, 21-Dec-2021
1117,Revenue,CAHD,Placements OLA Special Schools and RB,Other L.A.s - General,Claremont School,645.99, 21-Dec-2021
1118,Revenue,CAHD,Schools Specific Grant Income,Other Public Bodies,Claremont School,500.00, 02-Dec-2021
1119,Revenue,CAHD,Placements OLA Special Schools and RB,Other L.A.s - General,Claremont School,2774.73, 21-Dec-2021
1120,Revenue,CAHD,Placements OLA Special Schools and RB,Other L.A.s - General,Claremont School,645.99, 21-Dec-2021
1121,Revenue,CAHD,Placements OLA Special Schools and RB,Other L.A.s - General,Claremont School,1981.44, 21-Dec-2021
1122,Revenue,CAHD,Placements OLA Special Schools and RB,Other L.A.s - General,Claremont School,645.99, 21-Dec-2021
1123,Revenue,CAHD,Placements OLA Special Schools and RB,Other L.A.s - General,Claremont School,1981.44, 21-Dec-2021
1124,Revenue,CAHD,Placements OLA Special Schools and RB,Other L.A.s - General,Claremont School,645.99, 21-Dec-2021
1125,Revenue,CAHD,Placements OLA Special Schools and RB,Other L.A.s - General,Claremont School,792.59, 21-Dec-2021
1126,Revenue,CAHD,Placements OLA Special Schools and RB,Other L.A.s - General,Claremont School,2774.73, 21-Dec-2021
1127,Revenue,CAHD,Placements OLA Special Schools and RB,Other L.A.s - General,Claremont School,1981.44, 21-Dec-2021
1128,Revenue,CAHD,Placements OLA Special Schools and RB,Other L.A.s - General,Claremont School,645.99, 21-Dec-2021
1129,Revenue,CAHD,Placements OLA Special Schools and RB,Other L.A.s - General,Claremont School,2774.73, 21-Dec-2021
1130,Revenue,CAHD,Placements OLA Special Schools and RB,Other L.A.s - General,Claremont School,645.99, 21-Dec-2021
1131,Revenue,CAHD,Placements OLA Special Schools and RB,Other L.A.s - General,Claremont School,1585.16, 21-Dec-2021
1132,Revenue,CAHD,Placements OLA Special Schools and RB,Other L.A.s - General,Claremont School,516.77, 21-Dec-2021
1133,Revenue,CAHD,Placements OLA Special Schools and RB,Other L.A.s - General,Claremont School,1981.44, 21-Dec-2021
1134,Revenue,CAHD,Placements OLA Special Schools and RB,Other L.A.s - General,Claremont School,645.99, 21-Dec-2021
1135,Revenue,CAHD,Afgan LES Refugees,Rent,Clarion Housing Association Limited,2414.34, 29-Dec-2021
1136,Revenue,CAHD,South - Commissioned Services,Permanent Residential,Cleeve Lodge,3846.60, 14-Dec-2021
1137,Revenue,CAHD,South - Commissioned Services,Permanent Residential,Cleeve Lodge,1365.28, 14-Dec-2021
1138,Revenue,CAHD,North - S117,Permanent Residential,Cleeve Lodge,3273.60, 14-Dec-2021
1139,Revenue,CAHD,Central - Commissioned Services,Permanent Residential,Cleeve Lodge,3273.60, 14-Dec-2021
1140,Revenue,CAHD,South - Commissioned Services,Permanent Residential,Cleeve Lodge,4501.20, 14-Dec-2021
1141,Revenue,CAHD,North - Community based support,Permanent Residential,Cleeve Lodge,4400.00, 14-Dec-2021
1142,Revenue,CAHD,Central - Commissioned Services,Respite Planned - Residential,Cleeve Lodge,1392.86, 14-Dec-2021
1143,Revenue,CAHD,South - Commissioned Services,Permanent Nursing,Cleeve Lodge,3273.60, 14-Dec-2021
1144,Revenue,CAHD,South - Commissioned Services,Permanent Residential,Cleeve Lodge,3018.76, 14-Dec-2021
1145,Revenue,CAHD,South - Commissioned Services,Permanent Residential,Cleeve Lodge,4092.00, 14-Dec-2021
1146,Revenue,CAHD,South - Commissioned Services,Permanent Residential,Cleeve Lodge,4910.40, 14-Dec-2021
1147,Revenue,CAHD,Covid  - Workforce capacity,Grants to Voluntary Bodies,Cleeve Lodge,1502.49, 29-Dec-2021
1148,Revenue,CAHD,Central - Commissioned Services,Other Small Contracts,Clover Health and Home Care Ltd,996.96, 15-Dec-2021
1149,Revenue,CAHD,Central - Commissioned Services,Other Small Contracts,Clover Health and Home Care Ltd,996.96, 15-Dec-2021
1150,Revenue,CAHD,Central - Commissioned Services,Other Small Contracts,Clover Health and Home Care Ltd,1050.56, 03-Dec-2021
1151,Revenue,CAHD,Central - Commissioned Services,Other Small Contracts,Clover Health and Home Care Ltd,868.32, 15-Dec-2021
1152,Revenue,CAHD,Covid - ASC - Infection Control,Grants to Voluntary Bodies,Clover Health and Home Care Ltd,658.15, 01-Dec-2021
1153,Revenue,CAHD,CSC - Vinney Green Secure Unit,Service Contracts (Premises),Clover Technical Services,1633.50, 08-Dec-2021
1154,Revenue,CAHD,South - Commissioned Services,Permanent Residential,Collingwood Care Home,23270.00, 14-Dec-2021
1155,Revenue,CAHD,South - Commissioned Services,Fees & Charges Income - General,Collingwood Care Home,7312.58, 14-Dec-2021
1156,Revenue,CAHD,South - Commissioned Services,Permanent Residential,Collingwood Care Home,3580.00, 14-Dec-2021
1157,Revenue,CAHD,North - Community based support,Permanent Residential,Collingwood Care Home,3069.00, 14-Dec-2021
1158,Revenue,CAHD,Statemented Support Payments to OLAs,Other L.A.s - General,Colston`s Girls School Trust,1582.50, 23-Dec-2021
1159,Revenue,CAHD,South - Commissioned Services,Permanent Residential,Community Theraputic Services,7776.36, 14-Dec-2021
1160,Revenue,CAHD,Jointly Funded H&SC Packages,Permanent Residential,Community Theraputic Services,4992.88, 14-Dec-2021
1161,Revenue,CAHD,North - Community based support,Permanent Residential,Community Theraputic Services,8071.08, 14-Dec-2021
1162,Revenue,CAHD,Jointly Funded H&SC Packages,Permanent Residential,Community Theraputic Services,2076.20, 14-Dec-2021
1163,Revenue,CAHD,CSC - Agency Fostering,Foster Parent Allowances,Compass Fostering West Ltd,1219.79, 06-Dec-2021
1164,Revenue,CAHD,CSC - Agency Fostering,Foster Parent Allowances,Compass Fostering West Ltd,3618.63, 15-Dec-2021
1165,Revenue,CAHD,CSC - Agency Fostering,Foster Parent Allowances,Compass Fostering West Ltd,3618.63, 22-Dec-2021
1166,Revenue,CAHD,CSC - Fostering Carer Support,DBS Check Fees,Complete Background Screening Ltd,1113.00, 07-Dec-2021
1167,Revenue,CAHD,Bed and Breakfast,Bed & Breakfast,Connolly & Callaghan Limited,463.40, 24-Dec-2021
1168,Revenue,CAHD,Bed and Breakfast,Bed & Breakfast,Connolly & Callaghan Limited,422.80, 24-Dec-2021
1169,Revenue,CAHD,Bed and Breakfast,Bed & Breakfast,Connolly & Callaghan Limited,548.80, 24-Dec-2021
1170,Revenue,CAHD,Bed and Breakfast,Bed & Breakfast,Connolly & Callaghan Limited,548.80, 24-Dec-2021
1171,Revenue,CAHD,Bed and Breakfast,Bed & Breakfast,Connolly & Callaghan Limited,498.40, 09-Dec-2021
1172,Revenue,CAHD,Bed and Breakfast,Bed & Breakfast,Connolly & Callaghan Limited,463.40, 24-Dec-2021
1173,Revenue,CAHD,Bed and Breakfast,Bed & Breakfast,Connolly & Callaghan Limited,583.80, 14-Dec-2021
1174,Revenue,CAHD,Bed and Breakfast,Bed & Breakfast,Connolly & Callaghan Limited,548.80, 03-Dec-2021
1175,Revenue,CAHD,Bed and Breakfast,Bed & Breakfast,Connolly & Callaghan Limited,422.80, 02-Dec-2021
1176,Revenue,CAHD,Bed and Breakfast,Bed & Breakfast,Connolly & Callaghan Limited,422.80, 03-Dec-2021
1177,Revenue,CAHD,Bed and Breakfast,Bed & Breakfast,Connolly & Callaghan Limited,420.00, 02-Dec-2021
1178,Revenue,CAHD,Bed and Breakfast,Bed & Breakfast,Connolly & Callaghan Limited,548.80, 02-Dec-2021
1179,Revenue,CAHD,Bed and Breakfast,Bed & Breakfast,Connolly & Callaghan Limited,807.10, 13-Dec-2021
1180,Revenue,CAHD,Bed and Breakfast,Bed & Breakfast,Connolly & Callaghan Limited,719.60, 02-Dec-2021
1181,Revenue,CAHD,Bed and Breakfast,Bed & Breakfast,Connolly & Callaghan Limited,422.80, 02-Dec-2021
1182,Revenue,CAHD,Bed and Breakfast,Bed & Breakfast,Connolly & Callaghan Limited,463.40, 13-Dec-2021
1183,Revenue,CAHD,Bed and Breakfast,Bed & Breakfast,Connolly & Callaghan Limited,583.80, 13-Dec-2021
1184,Revenue,CAHD,Bed and Breakfast,Bed & Breakfast,Connolly & Callaghan Limited,422.80, 02-Dec-2021
1185,Revenue,CAHD,Bed and Breakfast,Bed & Breakfast,Connolly & Callaghan Limited,583.80, 14-Dec-2021
1186,Revenue,CAHD,CSC - Section 17 SOUTH,Children - Family Support,Connolly & Callaghan Limited,457.80, 13-Dec-2021
1187,Revenue,CAHD,Bed and Breakfast,Bed & Breakfast,Connolly & Callaghan Limited,700.00, 13-Dec-2021
1188,Revenue,CAHD,Bed and Breakfast,Bed & Breakfast,Connolly & Callaghan Limited,422.80, 10-Dec-2021
1189,Revenue,CAHD,Bed and Breakfast,Bed & Breakfast,Connolly & Callaghan Limited,420.00, 10-Dec-2021
1190,Revenue,CAHD,Bed and Breakfast,Bed & Breakfast,Connolly & Callaghan Limited,548.80, 13-Dec-2021
1191,Revenue,CAHD,Bed and Breakfast,Bed & Breakfast,Connolly & Callaghan Limited,422.80, 10-Dec-2021
1192,Revenue,CAHD,Bed and Breakfast,Bed & Breakfast,Connolly & Callaghan Limited,807.10, 13-Dec-2021
1193,Revenue,CAHD,Bed and Breakfast,Bed & Breakfast,Connolly & Callaghan Limited,719.60, 10-Dec-2021
1194,Revenue,CAHD,Bed and Breakfast,Bed & Breakfast,Connolly & Callaghan Limited,422.80, 10-Dec-2021
1195,Revenue,CAHD,Bed and Breakfast,Bed & Breakfast,Connolly & Callaghan Limited,463.40, 14-Dec-2021
1196,Revenue,CAHD,Bed and Breakfast,Bed & Breakfast,Connolly & Callaghan Limited,583.80, 10-Dec-2021
1197,Revenue,CAHD,Bed and Breakfast,Bed & Breakfast,Connolly & Callaghan Limited,422.80, 10-Dec-2021
1198,Revenue,CAHD,Bed and Breakfast,Bed & Breakfast,Connolly & Callaghan Limited,583.80, 16-Dec-2021
1199,Revenue,CAHD,Bed and Breakfast,Bed & Breakfast,Connolly & Callaghan Limited,942.90, 15-Dec-2021
1200,Revenue,CAHD,Bed and Breakfast,Bed & Breakfast,Connolly & Callaghan Limited,422.80, 15-Dec-2021
1201,Revenue,CAHD,Bed and Breakfast,Bed & Breakfast,Connolly & Callaghan Limited,420.00, 15-Dec-2021
1202,Revenue,CAHD,Bed and Breakfast,Bed & Breakfast,Connolly & Callaghan Limited,548.80, 15-Dec-2021
1203,Revenue,CAHD,Bed and Breakfast,Bed & Breakfast,Connolly & Callaghan Limited,422.80, 15-Dec-2021
1204,Revenue,CAHD,Bed and Breakfast,Bed & Breakfast,Connolly & Callaghan Limited,807.10, 15-Dec-2021
1205,Revenue,CAHD,Bed and Breakfast,Bed & Breakfast,Connolly & Callaghan Limited,719.60, 15-Dec-2021
1206,Revenue,CAHD,Bed and Breakfast,Bed & Breakfast,Connolly & Callaghan Limited,422.80, 16-Dec-2021
1207,Revenue,CAHD,Bed and Breakfast,Bed & Breakfast,Connolly & Callaghan Limited,463.40, 15-Dec-2021
1208,Revenue,CAHD,Bed and Breakfast,Bed & Breakfast,Connolly & Callaghan Limited,583.80, 16-Dec-2021
1209,Revenue,CAHD,Bed and Breakfast,Bed & Breakfast,Connolly & Callaghan Limited,470.40, 15-Dec-2021
1210,Revenue,CAHD,Bed and Breakfast,Bed & Breakfast,Connolly & Callaghan Limited,422.80, 15-Dec-2021
1211,Revenue,CAHD,Bed and Breakfast,Bed & Breakfast,Connolly & Callaghan Limited,583.80, 23-Dec-2021
1212,Revenue,CAHD,Bed and Breakfast,Bed & Breakfast,Connolly & Callaghan Limited,942.90, 24-Dec-2021
1213,Revenue,CAHD,Bed and Breakfast,Bed & Breakfast,Connolly & Callaghan Limited,422.80, 24-Dec-2021
1214,Revenue,CAHD,Bed and Breakfast,Bed & Breakfast,Connolly & Callaghan Limited,420.00, 24-Dec-2021
1215,Revenue,CAHD,Bed and Breakfast,Bed & Breakfast,Connolly & Callaghan Limited,422.80, 24-Dec-2021
1216,Revenue,CAHD,Bed and Breakfast,Bed & Breakfast,Connolly & Callaghan Limited,807.10, 23-Dec-2021
1217,Revenue,CAHD,Bed and Breakfast,Bed & Breakfast,Connolly & Callaghan Limited,422.80, 24-Dec-2021
1218,Revenue,CAHD,Bed and Breakfast,Bed & Breakfast,Connolly & Callaghan Limited,463.40, 23-Dec-2021
1219,Revenue,CAHD,Bed and Breakfast,Bed & Breakfast,Connolly & Callaghan Limited,583.80, 23-Dec-2021
1220,Revenue,CAHD,Bed and Breakfast,Bed & Breakfast,Connolly & Callaghan Limited,470.40, 24-Dec-2021
1221,Revenue,CAHD,Bed and Breakfast,Bed & Breakfast,Connolly & Callaghan Limited,422.80, 24-Dec-2021
1222,Revenue,CAHD,Bed and Breakfast,Bed & Breakfast,Connolly & Callaghan Limited,422.80, 29-Dec-2021
1223,Revenue,CAHD,Bed and Breakfast,Bed & Breakfast,Connolly & Callaghan Limited,942.90, 29-Dec-2021
1224,Revenue,CAHD,Bed and Breakfast,Bed & Breakfast,Connolly & Callaghan Limited,420.00, 29-Dec-2021
1225,Revenue,CAHD,Bed and Breakfast,Bed & Breakfast,Connolly & Callaghan Limited,422.80, 29-Dec-2021
1226,Revenue,CAHD,Bed and Breakfast,Bed & Breakfast,Connolly & Callaghan Limited,508.20, 29-Dec-2021
1227,Revenue,CAHD,Bed and Breakfast,Bed & Breakfast,Connolly & Callaghan Limited,422.80, 29-Dec-2021
1228,Revenue,CAHD,Bed and Breakfast,Bed & Breakfast,Connolly & Callaghan Limited,422.80, 29-Dec-2021
1229,Revenue,CAHD,"Strategy, Advice and Public Protection",Medical Fees,Cordell Health Ltd,4102.50, 06-Dec-2021
1230,Revenue,CAHD,"Strategy, Advice and Public Protection",Medical Fees,Cordell Health Ltd,8856.73, 10-Dec-2021
1231,Revenue,CAHD,Independent Special Placements - Pre 16,Other Private Contractors,Cotswold Chine School,51333.75, 15-Dec-2021
1232,Revenue,CAHD,Independent Special Placements - Post 16,Other Private Contractors,Cotswold Chine School,24434.87, 13-Dec-2021
1233,Revenue,CAHD,Independent Special Placements - Pre 16,Other Private Contractors,Cotswold Chine School,25727.72, 07-Dec-2021
1234,Revenue,CAHD,Independent Special Placements - Pre 16,Other Private Contractors,Cotswold Chine School,25793.63, 07-Dec-2021
1235,Revenue,CAHD,Independent Special Placements - Pre 16,Other Private Contractors,Cotswold Chine School,26364.00, 07-Dec-2021
1236,Revenue,CAHD,Central - Commissioned Services,Permanent Nursing,Cotswold House Care Home,3484.32, 14-Dec-2021
1237,Revenue,CAHD,North - Community based support,Permanent Residential,Court House Residential C.H.,3400.00, 14-Dec-2021
1238,Revenue,CAHD,North - Community based support,Permanent Residential,Court House Retirement Home,5142.86, 14-Dec-2021
1239,Revenue,CAHD,North - Community based support,Permanent Residential,Court House Retirement Home,3600.00, 14-Dec-2021
1240,Revenue,CAHD,Covid - ASC - Infection Control,Grants to Voluntary Bodies,Courtfield Healthcare Ltd,810.03, 01-Dec-2021
1241,Revenue,CAHD,ASC Rapid Testing Fund,Grants to Voluntary Bodies,Courtfield Healthcare Ltd,594.21, 01-Dec-2021
1242,Revenue,CAHD,Early Years Inclusion Fund,Other Public Bodies,Courtney Ladybirds Pre-School,2350.00, 20-Dec-2021
1243,Revenue,CAHD,Childrens - Safeguarding Board,Training Expenses,Craft Training and Development,825.00, 13-Dec-2021
1244,Revenue,CAHD,Training - Adult Services,Training Expenses,Craft Training and Development,825.00, 13-Dec-2021
1245,Revenue,CAHD,Childrens - Safeguarding Board,Training Expenses,Craft Training and Development,300.00, 13-Dec-2021
1246,Revenue,CAHD,Training - Adult Services,Training Expenses,Craft Training and Development,300.00, 13-Dec-2021
1247,Revenue,CAHD,Childrens - Safeguarding Board,Training Expenses,Craft Training and Development,650.00, 13-Dec-2021
1248,Revenue,CAHD,Training - Adult Services,Training Expenses,Craft Training and Development,650.00, 13-Dec-2021
1249,Revenue,CAHD,S28A cases,Permanent Residential,Creedy Court,10597.96, 14-Dec-2021
1250,Revenue,CAHD,S28A cases,Permanent Residential,Creedy Court,8904.92, 14-Dec-2021
1251,Revenue,CAHD,North - Community based support,Permanent Residential,Creedy Court,14054.00, 14-Dec-2021
1252,Revenue,CAHD,Training Budget - Children`s Social Serv,Training Expenses,Cruidin Training and Consultancy Ltd,6000.00, 13-Dec-2021
1253,Revenue,CAHD,Central - Commissioned Services,Supported Living,Cygnet Healthcare Limited,3380.00, 14-Dec-2021
1254,Revenue,CAHD,South - Commissioned Services,Permanent Residential,Daneswood,12759.56, 14-Dec-2021
1255,Revenue,CAHD,South - Commissioned Services,Day Care / Social Activities,Daneswood,1474.72, 14-Dec-2021
1256,Revenue,CAHD,North - Community based support,Permanent Residential,Daneswood,13579.68, 14-Dec-2021
1257,Revenue,CAHD,Learning Difficulties PSL,Rent,Individual,2400.00, 22-Dec-2021
1258,Revenue,CAHD,South - Commissioned Services,Day Care / Social Activities,Deafblind Uk,813.66, 29-Dec-2021
1259,Revenue,CAHD,Transport OLA Special Schools and RB,Client Transport,Individual,532.44, 13-Dec-2021
1260,Revenue,CAHD,Central - Commissioned Services,Permanent Residential,Debt Recovery,4326.88, 14-Dec-2021
1261,Revenue,CAHD,South - Commissioned Services,Permanent Residential,Debt Recovery,4422.88, 14-Dec-2021
1262,Revenue,CAHD,North - Community based support,Permanent Nursing,Debt Recovery,4642.48, 14-Dec-2021
1263,Revenue,CAHD,North - Community based support,Permanent Nursing,Debt Recovery,3822.52, 14-Dec-2021
1264,Revenue,CAHD,Central - Commissioned Services,Permanent Residential,Debt Recovery,4786.48, 14-Dec-2021
1265,Revenue,CAHD,North - Community based support,Permanent Nursing,Debt Recovery,5723.32, 14-Dec-2021
1266,Revenue,CAHD,North - Community based support,Permanent Nursing,Debt Recovery,3643.52, 14-Dec-2021
1267,Revenue,CAHD,North - Community based support,Permanent Nursing,Debt Recovery,5735.40, 14-Dec-2021
1268,Revenue,CAHD,North - Community based support,Permanent Residential,Debt Recovery,3702.24, 14-Dec-2021
1269,Revenue,CAHD,North - Community based support,Permanent Nursing,Debt Recovery,4187.16, 14-Dec-2021
1270,Revenue,CAHD,South - Commissioned Services,Permanent Nursing,Deerhurst Nursing Home,3970.68, 14-Dec-2021
1271,Revenue,CAHD,South Glos Users in South Glos Homes,Permanent Nursing,Deerhurst Nursing Home,750.40, 14-Dec-2021
1272,Revenue,CAHD,South - Commissioned Services,Permanent Nursing,Deerhurst Nursing Home,4501.20, 14-Dec-2021
1273,Revenue,CAHD,South Glos Users in South Glos Homes,Permanent Nursing,Deerhurst Nursing Home,750.40, 14-Dec-2021
1274,Revenue,CAHD,South - Commissioned Services,Permanent Nursing,Deerhurst Nursing Home,4762.80, 14-Dec-2021
1275,Revenue,CAHD,South Glos Users in South Glos Homes,Permanent Nursing,Deerhurst Nursing Home,750.40, 14-Dec-2021
1276,Revenue,CAHD,South - Commissioned Services,Day Care / Social Activities,Deerhurst Nursing Home,581.28, 14-Dec-2021
1277,Revenue,CAHD,South - Commissioned Services,Permanent Nursing,Deerhurst Nursing Home,4800.00, 14-Dec-2021
1278,Revenue,CAHD,South Glos Users in South Glos Homes,Permanent Nursing,Deerhurst Nursing Home,750.40, 14-Dec-2021
1279,Revenue,CAHD,South Glos Users in South Glos Homes,Permanent Nursing,Deerhurst Nursing Home,750.40, 14-Dec-2021
1280,Revenue,CAHD,South Glos Users in South Glos Homes,Permanent Nursing,Deerhurst Nursing Home,750.40, 14-Dec-2021
1281,Revenue,CAHD,South - Commissioned Services,Permanent Nursing,Deerhurst Nursing Home,4006.00, 14-Dec-2021
1282,Revenue,CAHD,South Glos Users in South Glos Homes,Permanent Nursing,Deerhurst Nursing Home,750.40, 14-Dec-2021
1283,Revenue,CAHD,North - Community based support,Permanent Nursing,Deerhurst Nursing Home,3891.20, 14-Dec-2021
1284,Revenue,CAHD,South - Commissioned Services,Permanent Nursing,Deerhurst Nursing Home,3965.12, 14-Dec-2021
1285,Revenue,CAHD,South Glos Users in South Glos Homes,Permanent Nursing,Deerhurst Nursing Home,750.40, 14-Dec-2021
1286,Revenue,CAHD,North - Community based support,Permanent Nursing,Deerhurst Nursing Home,4140.00, 14-Dec-2021
1287,Revenue,CAHD,South - Commissioned Services,Permanent Nursing,Deerhurst Nursing Home,4129.40, 14-Dec-2021
1288,Revenue,CAHD,South - Commissioned Services,Permanent Nursing,Deerhurst Nursing Home,4182.12, 14-Dec-2021
1289,Revenue,CAHD,South Glos Users in South Glos Homes,Permanent Nursing,Deerhurst Nursing Home,750.40, 14-Dec-2021
1290,Revenue,CAHD,South Glos Users in South Glos Homes,Permanent Nursing,Deerhurst Nursing Home,750.40, 14-Dec-2021
1291,Revenue,CAHD,South Glos Users in South Glos Homes,Permanent Nursing,Deerhurst Nursing Home,750.40, 14-Dec-2021
1292,Revenue,CAHD,South Glos Users in South Glos Homes,Permanent Nursing,Deerhurst Nursing Home,750.40, 14-Dec-2021
1293,Revenue,CAHD,South - Commissioned Services,Permanent Nursing,Deerhurst Nursing Home,4180.04, 14-Dec-2021
1294,Revenue,CAHD,South Glos Users in South Glos Homes,Permanent Nursing,Deerhurst Nursing Home,750.40, 14-Dec-2021
1295,Revenue,CAHD,South Glos Users in South Glos Homes,Permanent Nursing,Deerhurst Nursing Home,750.40, 14-Dec-2021
1296,Revenue,CAHD,South - Commissioned Services,Permanent Nursing,Deerhurst Nursing Home,4060.32, 14-Dec-2021
1297,Revenue,CAHD,South Glos Users in South Glos Homes,Permanent Nursing,Deerhurst Nursing Home,750.40, 14-Dec-2021
1298,Revenue,CAHD,Central - Commissioned Services,Fees & Charges Income - General,Deerhurst Nursing Home,6297.31, 14-Dec-2021
1299,Revenue,CAHD,South Glos Users in South Glos Homes,Permanent Nursing,Deerhurst Nursing Home,750.40, 14-Dec-2021
1300,Revenue,CAHD,South Glos Users in South Glos Homes,Permanent Nursing,Deerhurst Nursing Home,750.40, 14-Dec-2021
1301,Revenue,CAHD,South Glos Users in South Glos Homes,Permanent Nursing,Deerhurst Nursing Home,750.40, 14-Dec-2021
1302,Revenue,CAHD,South - Commissioned Services,Permanent Nursing,Deerhurst Nursing Home,4277.00, 14-Dec-2021
1303,Revenue,CAHD,South Glos Users in South Glos Homes,Permanent Nursing,Deerhurst Nursing Home,750.40, 14-Dec-2021
1304,Revenue,CAHD,South Glos Users in South Glos Homes,Permanent Nursing,Deerhurst Nursing Home,750.40, 14-Dec-2021
1305,Revenue,CAHD,South Glos Users in South Glos Homes,Permanent Nursing,Deerhurst Nursing Home,750.40, 14-Dec-2021
1306,Revenue,CAHD,South Glos Users in South Glos Homes,Permanent Nursing,Deerhurst Nursing Home,750.40, 14-Dec-2021
1307,Revenue,CAHD,South Glos Users in South Glos Homes,Permanent Nursing,Deerhurst Nursing Home,750.40, 14-Dec-2021
1308,Revenue,CAHD,South Glos Users in South Glos Homes,Permanent Nursing,Deerhurst Nursing Home,750.40, 14-Dec-2021
1309,Revenue,CAHD,South - Commissioned Services,Permanent Nursing,Deerhurst Nursing Home,4006.00, 14-Dec-2021
1310,Revenue,CAHD,South Glos Users in South Glos Homes,Permanent Nursing,Deerhurst Nursing Home,750.40, 14-Dec-2021
1311,Revenue,CAHD,South - Commissioned Services,Permanent Residential,Deerhurst Nursing Home,4129.00, 14-Dec-2021
1312,Revenue,CAHD,South - Commissioned Services,Permanent Nursing,Deerhurst Nursing Home,4760.00, 14-Dec-2021
1313,Revenue,CAHD,South - Commissioned Services,Permanent Nursing,Deerhurst Nursing Home,4760.00, 14-Dec-2021
1314,Revenue,CAHD,South Glos Users in South Glos Homes,Permanent Nursing,Deerhurst Nursing Home,750.40, 14-Dec-2021
1315,Revenue,CAHD,South Glos Users in South Glos Homes,Permanent Nursing,Deerhurst Nursing Home,750.40, 14-Dec-2021
1316,Revenue,CAHD,South Glos Users in South Glos Homes,Permanent Nursing,Deerhurst Nursing Home,750.40, 14-Dec-2021
1317,Revenue,CAHD,South Glos Users in South Glos Homes,Permanent Nursing,Deerhurst Nursing Home,750.40, 14-Dec-2021
1318,Revenue,CAHD,South Glos Users in South Glos Homes,Permanent Nursing,Deerhurst Nursing Home,750.40, 14-Dec-2021
1319,Revenue,CAHD,South Glos Users in South Glos Homes,Permanent Nursing,Deerhurst Nursing Home,750.40, 14-Dec-2021
1320,Revenue,CAHD,South - Commissioned Services,Permanent Nursing,Deerhurst Nursing Home,4760.00, 14-Dec-2021
1321,Revenue,CAHD,South Glos Users in South Glos Homes,Permanent Nursing,Deerhurst Nursing Home,750.40, 14-Dec-2021
1322,Revenue,CAHD,South Glos Users in South Glos Homes,Permanent Nursing,Deerhurst Nursing Home,750.40, 14-Dec-2021
1323,Revenue,CAHD,South Glos Users in South Glos Homes,Permanent Nursing,Deerhurst Nursing Home,750.40, 14-Dec-2021
1324,Revenue,CAHD,South - Commissioned Services,Permanent Residential,Deerhurst Nursing Home,3891.20, 14-Dec-2021
1325,Revenue,CAHD,South - Commissioned Services,Permanent Nursing,Deerhurst Nursing Home,4762.80, 14-Dec-2021
1326,Revenue,CAHD,South Glos Users in South Glos Homes,Permanent Nursing,Deerhurst Nursing Home,750.40, 14-Dec-2021
1327,Revenue,CAHD,South Glos Users in South Glos Homes,Permanent Nursing,Deerhurst Nursing Home,750.40, 14-Dec-2021
1328,Revenue,CAHD,South - Commissioned Services,Permanent Nursing,Deerhurst Nursing Home,12930.86, 14-Dec-2021
1329,Revenue,CAHD,South - Commissioned Services,Permanent Nursing,Deerhurst Nursing Home,4764.00, 14-Dec-2021
1330,Revenue,CAHD,South Glos Users in South Glos Homes,Permanent Nursing,Deerhurst Nursing Home,750.40, 14-Dec-2021
1331,Revenue,CAHD,South - Commissioned Services,Fees & Charges Income - General,Deerhurst Nursing Home,2425.37, 14-Dec-2021
1332,Revenue,CAHD,South Glos Users in South Glos Homes,Permanent Nursing,Deerhurst Nursing Home,750.40, 14-Dec-2021
1333,Revenue,CAHD,South Glos Users in South Glos Homes,Permanent Nursing,Deerhurst Nursing Home,750.40, 14-Dec-2021
1334,Revenue,CAHD,North - Community based support,Permanent Residential,Deerhurst Nursing Home,15223.60, 14-Dec-2021
1335,Revenue,CAHD,North - Community based support,Permanent Residential,Deerhurst Nursing Home,8699.20, 14-Dec-2021
1336,Revenue,CAHD,Learning Difficulties Development Fund,Other Supplies & Services,Design 4 Life Ltd,1800.00, 14-Dec-2021
1337,Revenue,CAHD,South - Commissioned Services,Supported Living,Design House,2776.88, 14-Dec-2021
1338,Revenue,CAHD,South - Commissioned Services,Supported Living,Design House,3196.12, 14-Dec-2021
1339,Revenue,CAHD,South - Commissioned Services,Supported Living,Design House,2651.32, 14-Dec-2021
1340,Revenue,CAHD,18-25 Year Olds,Supported Living,Design House,3083.24, 14-Dec-2021
1341,Revenue,CAHD,18-25 Year Olds,Supported Living,Design House,4094.76, 14-Dec-2021
1342,Revenue,CAHD,Central - Commissioned Services,Day Care / Social Activities,Design House,3060.24, 14-Dec-2021
1343,Revenue,CAHD,18-25 Year Olds,Supported Living,Design House,4094.76, 14-Dec-2021
1344,Revenue,CAHD,18-25 Year Olds,Supported Living,Design House,3107.04, 14-Dec-2021
1345,Revenue,CAHD,South - Commissioned Services,Supported Living,Design House,2753.28, 14-Dec-2021
1346,Revenue,CAHD,South - Commissioned Services,Supported Living,Design House,2753.28, 14-Dec-2021
1347,Revenue,CAHD,South - Commissioned Services,Supported Living,Design House,2242.76, 14-Dec-2021
1348,Revenue,CAHD,South - Commissioned Services,Supported Living,Design House,1978.92, 14-Dec-2021
1349,Revenue,CAHD,South - Commissioned Services,Day Care / Social Activities,Design House,538.88, 14-Dec-2021
1350,Revenue,CAHD,South - Commissioned Services,Supported Living,Design House,2625.96, 14-Dec-2021
1351,Revenue,CAHD,South - Commissioned Services,Supported Living,Design House,4494.32, 14-Dec-2021
1352,Revenue,CAHD,North - Community based support,Supported Living,Design House,3434.00, 14-Dec-2021
1353,Revenue,CAHD,South - Commissioned Services,Supported Living,Design House,3051.76, 14-Dec-2021
1354,Revenue,CAHD,South - Commissioned Services,Supported Living,Design House,2653.28, 14-Dec-2021
1355,Revenue,CAHD,South - Commissioned Services,Supported Living,Design House,2355.60, 14-Dec-2021
1356,Revenue,CAHD,South - Commissioned Services,Supported Living,Design House,2355.60, 14-Dec-2021
1357,Revenue,CAHD,Central - Commissioned Services,Other Small Contracts,Dhek Bhal,328.16, 01-Dec-2021
1358,Revenue,CAHD,South - Commissioned Services,Other Small Contracts,Dhek Bhal,214.40, 01-Dec-2021
1359,Revenue,CAHD,Central - Commissioned Services,Other Small Contracts,Dhek Bhal,348.71, 01-Dec-2021
1360,Revenue,CAHD,South - Commissioned Services,Other Small Contracts,Dhek Bhal,257.28, 01-Dec-2021
1361,Revenue,CAHD,Central - Commissioned Services,Other Small Contracts,Dhek Bhal,328.16, 20-Dec-2021
1362,Revenue,CAHD,South - Commissioned Services,Other Small Contracts,Dhek Bhal,214.40, 20-Dec-2021
1363,Revenue,CAHD,Central - Commissioned Services,Other Small Contracts,Dhek Bhal,333.52, 20-Dec-2021
1364,Revenue,CAHD,South - Commissioned Services,Other Small Contracts,Dhek Bhal,257.28, 20-Dec-2021
1365,Revenue,CAHD,North - Community based support,Permanent Nursing,Douglas House,3599.80, 14-Dec-2021
1366,Revenue,CAHD,Statemented Support Academies,Other Public Bodies,Downend School,1544.42, 23-Dec-2021
1367,Revenue,CAHD,Statemented Support Academies,Other Public Bodies,Downend School,660.24, 23-Dec-2021
1368,Revenue,CAHD,Statemented Support Academies,Other Public Bodies,Downend School,1025.73, 23-Dec-2021
1369,Revenue,CAHD,Statemented Support Academies,Other Public Bodies,Downend School,1108.26, 23-Dec-2021
1370,Revenue,CAHD,Statemented Support Academies,Other Public Bodies,Downend School,554.13, 23-Dec-2021
1371,Revenue,CAHD,Statemented Support Academies,Other Public Bodies,Downend School,666.00, 23-Dec-2021
1372,Revenue,CAHD,Statemented Support Academies,Other Public Bodies,Downend School,822.83, 23-Dec-2021
1373,Revenue,CAHD,Statemented Support Academies,Other Public Bodies,Downend School,1079.67, 23-Dec-2021
1374,Revenue,CAHD,Statemented Support Academies,Other Public Bodies,Downend School,1438.38, 23-Dec-2021
1375,Revenue,CAHD,Statemented Support Academies,Other Public Bodies,Downend School,1709.55, 23-Dec-2021
1376,Revenue,CAHD,Statemented Support Academies,Other Public Bodies,Downend School,1192.50, 23-Dec-2021
1377,Revenue,CAHD,Statemented Support Academies,Other Public Bodies,Downend School,1544.49, 23-Dec-2021
1378,Revenue,CAHD,Statemented Support Academies,Other Public Bodies,Downend School,966.92, 23-Dec-2021
1379,Revenue,CAHD,Social Lettings Agency,Rent,Individual,822.73, 22-Dec-2021
1380,Revenue,CAHD,Social Lettings Agency,Fees & Charges Income - General,Individual,-65.82, 22-Dec-2021
1381,Revenue,CAHD,Works4Youth,Computer Equipment - Purchase,DSG Retail Limited,610.96, 24-Dec-2021
1382,Revenue,CAHD,CSC - Corporate Parenting,Fostering Plus Enhanced Fee,Individual,1086.00, 03-Dec-2021
1383,Revenue,CAHD,CSC - Corporate Parenting,Fostering Plus Enhanced Fee,Individual,1086.00, 10-Dec-2021
1384,Revenue,CAHD,CSC - Corporate Parenting,Fostering Plus Enhanced Fee,Individual,1086.00, 17-Dec-2021
1385,Revenue,CAHD,CSC - Professional Fees Foster Carers,Fostering Plus Enhanced Fee,Individual,1086.00, 23-Dec-2021
1386,Revenue,CAHD,CSC - Professional Fees Foster Carers,Fostering Plus Enhanced Fee,Individual,1086.00, 30-Dec-2021
1387,Revenue,CAHD,North - Community based support,Permanent Residential,East Court,2763.56, 14-Dec-2021
1388,Revenue,CAHD,CSC - Care Leavers Support Costs,Personal Needs of Clients,Eastville Domestic Appliances,500.00, 15-Dec-2021
1389,Revenue,CAHD,Community Support - Central,Preventative Assistance,Easylink UK,942.05, 01-Dec-2021
1390,Revenue,CAHD,Community Support - North,Preventative Assistance,Easylink UK,942.05, 01-Dec-2021
1391,Revenue,CAHD,Community Support - South,Preventative Assistance,Easylink UK,942.05, 01-Dec-2021
1392,Revenue,CAHD,Central - Commissioned Services,Permanent Residential,Edgemont House Ltd,3200.00, 14-Dec-2021
1393,Revenue,CAHD,South - Commissioned Services,Permanent Residential,Edgemont House Ltd,3273.60, 14-Dec-2021
1394,Revenue,CAHD,South - Commissioned Services,Permanent Residential,Edgemont House Ltd,3339.08, 14-Dec-2021
1395,Revenue,CAHD,South - Commissioned Services,Permanent Residential,Edgemont House Ltd,3130.40, 14-Dec-2021
1396,Revenue,CAHD,South - Commissioned Services,Permanent Residential,Edgemont House Ltd,11464.29, 14-Dec-2021
1397,Revenue,CAHD,South - Commissioned Services,Permanent Residential,Edgemont House Ltd,3000.00, 14-Dec-2021
1398,Revenue,CAHD,South - Commissioned Services,Fees & Charges Income - General,Edgemont House Ltd,3280.98, 14-Dec-2021
1399,Revenue,CAHD,South - Commissioned Services,Permanent Residential,Edgemont House Ltd,3200.00, 14-Dec-2021
1400,Revenue,CAHD,South - Commissioned Services,Permanent Nursing,Edgemont View Ltd,3580.52, 14-Dec-2021
1401,Revenue,CAHD,South Glos Users in South Glos Homes,Permanent Nursing,Edgemont View Ltd,750.40, 14-Dec-2021
1402,Revenue,CAHD,South - Commissioned Services,Permanent Nursing,Edgemont View Ltd,3478.20, 14-Dec-2021
1403,Revenue,CAHD,South Glos Users in South Glos Homes,Permanent Nursing,Edgemont View Ltd,750.40, 14-Dec-2021
1404,Revenue,CAHD,Covid 19- Spend on behalf of NHS,Respite Planned - Nursing,Edgemont View Ltd,3257.14, 14-Dec-2021
1405,Revenue,CAHD,South - Commissioned Services,Permanent Nursing,Edgemont View Ltd,3547.76, 14-Dec-2021
1406,Revenue,CAHD,South Glos Users in South Glos Homes,Permanent Nursing,Edgemont View Ltd,750.40, 14-Dec-2021
1407,Revenue,CAHD,South - Commissioned Services,Permanent Nursing,Edgemont View Ltd,3478.20, 14-Dec-2021
1408,Revenue,CAHD,South Glos Users in South Glos Homes,Permanent Nursing,Edgemont View Ltd,750.40, 14-Dec-2021
1409,Revenue,CAHD,South Glos Users in South Glos Homes,Permanent Nursing,Edgemont View Ltd,750.40, 14-Dec-2021
1410,Revenue,CAHD,South - Commissioned Services,Permanent Nursing,Edgemont View Ltd,3500.00, 14-Dec-2021
1411,Revenue,CAHD,South - Commissioned Services,Permanent Nursing,Edgemont View Ltd,875.00, 14-Dec-2021
1412,Revenue,CAHD,South - Commissioned Services,Permanent Nursing,Edgemont View Ltd,3682.80, 14-Dec-2021
1413,Revenue,CAHD,South Glos Users in South Glos Homes,Permanent Nursing,Edgemont View Ltd,750.40, 14-Dec-2021
1414,Revenue,CAHD,South - Commissioned Services,Permanent Nursing,Edgemont View Ltd,3580.52, 14-Dec-2021
1415,Revenue,CAHD,South Glos Users in South Glos Homes,Permanent Nursing,Edgemont View Ltd,750.40, 14-Dec-2021
1416,Revenue,CAHD,South Glos Users in South Glos Homes,Permanent Nursing,Edgemont View Ltd,750.40, 14-Dec-2021
1417,Revenue,CAHD,South - Commissioned Services,Permanent Nursing,Edgemont View Ltd,3547.76, 14-Dec-2021
1418,Revenue,CAHD,South - Commissioned Services,Permanent Nursing,Edgemont View Ltd,3500.00, 14-Dec-2021
1419,Revenue,CAHD,South Glos Users in South Glos Homes,Permanent Nursing,Edgemont View Ltd,750.40, 14-Dec-2021
1420,Revenue,CAHD,South - Commissioned Services,Permanent Nursing,Edgemont View Ltd,3989.72, 14-Dec-2021
1421,Revenue,CAHD,South Glos Users in South Glos Homes,Permanent Nursing,Edgemont View Ltd,750.40, 14-Dec-2021
1422,Revenue,CAHD,South Glos Users in South Glos Homes,Permanent Nursing,Edgemont View Ltd,750.40, 14-Dec-2021
1423,Revenue,CAHD,South Glos Users in South Glos Homes,Permanent Nursing,Edgemont View Ltd,750.40, 14-Dec-2021
1424,Revenue,CAHD,South - Commissioned Services,Permanent Nursing,Edgemont View Ltd,3739.76, 14-Dec-2021
1425,Revenue,CAHD,South Glos Users in South Glos Homes,Permanent Nursing,Edgemont View Ltd,750.40, 14-Dec-2021
1426,Revenue,CAHD,Planning and Partnerships Procurement,Other Supplies & Services,Eldercare,2514.93, 09-Dec-2021
1427,Revenue,CAHD,Planning and Partnerships Procurement,Other Supplies & Services,Eldercare,450.00, 07-Dec-2021
1428,Revenue,CAHD,Planning and Partnerships Procurement,Other Supplies & Services,Eldercare,2794.75, 09-Dec-2021
1429,Revenue,CAHD,Supporting People Programme,Grants to Voluntary Bodies,Elim Housing Association Limited,5362.00, 01-Dec-2021
1430,Revenue,CAHD,Supporting People Programme,Grants to Voluntary Bodies,Elim Housing Association Limited,5362.00, 30-Dec-2021
1431,Revenue,CAHD,Social Lettings Agency,Rent,Individual,1321.36, 13-Dec-2021
1432,Revenue,CAHD,Social Lettings Agency,Fees & Charges Income - General,Individual,-79.30, 13-Dec-2021
1433,Revenue,CAHD,North - Community based support,Permanent Residential,Ellsworth House,10016.24, 14-Dec-2021
1434,Revenue,CAHD,Placements OLA Special Schools and RB,Other L.A.s - General,Elmfield School for Deaf Children,1268.03, 21-Dec-2021
1435,Revenue,CAHD,Placements OLA Special Schools and RB,Other L.A.s - General,Elmfield School for Deaf Children,792.41, 21-Dec-2021
1436,Revenue,CAHD,Placements OLA Special Schools and RB,Other L.A.s - General,Elmfield School for Deaf Children,1268.03, 21-Dec-2021
1437,Revenue,CAHD,Placements OLA Special Schools and RB,Other L.A.s - General,Elmfield School for Deaf Children,1268.03, 21-Dec-2021
1438,Revenue,CAHD,Placements OLA Special Schools and RB,Other L.A.s - General,Elmfield School for Deaf Children,792.41, 21-Dec-2021
1439,Revenue,CAHD,Placements OLA Special Schools and RB,Other L.A.s - General,Elmfield School for Deaf Children,1268.03, 21-Dec-2021
1440,Revenue,CAHD,Placements OLA Special Schools and RB,Other L.A.s - General,Elmfield School for Deaf Children,1268.03, 21-Dec-2021
1441,Revenue,CAHD,Social Lettings Agency,Rents and Wayleaves,Individual,531.17, 08-Dec-2021
1442,Revenue,CAHD,CSC - Legal Fees,Legal Fees,Individual,1350.00, 20-Dec-2021
1443,Revenue,CAHD,Special ISB,Other Public Bodies,Enable Trust,8493.20, 21-Dec-2021
1444,Revenue,CAHD,Special ISB,Other Public Bodies,Enable Trust,1175.88, 21-Dec-2021
1445,Revenue,CAHD,Special ISB,Other Public Bodies,Enable Trust,1175.88, 21-Dec-2021
1446,Revenue,CAHD,Special ISB,Other Public Bodies,Enable Trust,1540.83, 21-Dec-2021
1447,Revenue,CAHD,Special ISB,Other Public Bodies,Enable Trust,1175.88, 21-Dec-2021
1448,Revenue,CAHD,Special ISB,Other Public Bodies,Enable Trust,892.05, 21-Dec-2021
1449,Revenue,CAHD,Special ISB,Other Public Bodies,Enable Trust,1175.88, 21-Dec-2021
1450,Revenue,CAHD,Special ISB,Other Public Bodies,Enable Trust,1175.88, 21-Dec-2021
1451,Revenue,CAHD,Special ISB,Other Public Bodies,Enable Trust,892.05, 21-Dec-2021
1452,Revenue,CAHD,Special ISB,Other Public Bodies,Enable Trust,1540.83, 21-Dec-2021
1453,Revenue,CAHD,Special ISB,Other Public Bodies,Enable Trust,1175.88, 21-Dec-2021
1454,Revenue,CAHD,Special ISB,Other Public Bodies,Enable Trust,1175.88, 21-Dec-2021
1455,Revenue,CAHD,Special ISB,Other Public Bodies,Enable Trust,1540.83, 21-Dec-2021
1456,Revenue,CAHD,Special ISB,Other Public Bodies,Enable Trust,1540.83, 21-Dec-2021
1457,Revenue,CAHD,Special ISB,Other Public Bodies,Enable Trust,1540.83, 21-Dec-2021
1458,Revenue,CAHD,Special ISB,Other Public Bodies,Enable Trust,1175.88, 21-Dec-2021
1459,Revenue,CAHD,Special ISB,Other Public Bodies,Enable Trust,1175.88, 21-Dec-2021
1460,Revenue,CAHD,Special ISB,Other Public Bodies,Enable Trust,1175.88, 21-Dec-2021
1461,Revenue,CAHD,Special ISB,Other Public Bodies,Enable Trust,1175.88, 21-Dec-2021
1462,Revenue,CAHD,Special ISB,Other Public Bodies,Enable Trust,648.70, 21-Dec-2021
1463,Revenue,CAHD,Special ISB,Other Public Bodies,Enable Trust,892.05, 21-Dec-2021
1464,Revenue,CAHD,Special ISB,Other Public Bodies,Enable Trust,892.05, 21-Dec-2021
1465,Revenue,CAHD,Special ISB,Other Public Bodies,Enable Trust,2189.53, 21-Dec-2021
1466,Revenue,CAHD,Special ISB,Other Public Bodies,Enable Trust,1175.88, 21-Dec-2021
1467,Revenue,CAHD,Special ISB,Other Public Bodies,Enable Trust,1175.88, 21-Dec-2021
1468,Revenue,CAHD,Special ISB,Other Public Bodies,Enable Trust,1175.88, 21-Dec-2021
1469,Revenue,CAHD,Special ISB,Other Public Bodies,Enable Trust,1175.88, 21-Dec-2021
1470,Revenue,CAHD,Special ISB,Other Public Bodies,Enable Trust,1175.88, 21-Dec-2021
1471,Revenue,CAHD,Special ISB,Other Public Bodies,Enable Trust,1175.88, 21-Dec-2021
1472,Revenue,CAHD,Special ISB,Other Public Bodies,Enable Trust,1540.83, 21-Dec-2021
1473,Revenue,CAHD,Special ISB,Other Public Bodies,Enable Trust,1540.83, 21-Dec-2021
1474,Revenue,CAHD,Special ISB,Other Public Bodies,Enable Trust,1175.88, 21-Dec-2021
1475,Revenue,CAHD,Special ISB,Other Public Bodies,Enable Trust,1175.88, 21-Dec-2021
1476,Revenue,CAHD,Special ISB,Other Public Bodies,Enable Trust,2189.53, 21-Dec-2021
1477,Revenue,CAHD,Special ISB,Other Public Bodies,Enable Trust,2189.53, 21-Dec-2021
1478,Revenue,CAHD,Special ISB,Other Public Bodies,Enable Trust,1175.88, 21-Dec-2021
1479,Revenue,CAHD,Special ISB,Other Public Bodies,Enable Trust,1175.88, 21-Dec-2021
1480,Revenue,CAHD,Special ISB,Other Public Bodies,Enable Trust,1175.88, 21-Dec-2021
1481,Revenue,CAHD,Special ISB,Other Public Bodies,Enable Trust,892.05, 21-Dec-2021
1482,Revenue,CAHD,Special ISB,Other Public Bodies,Enable Trust,648.70, 21-Dec-2021
1483,Revenue,CAHD,Special ISB,Other Public Bodies,Enable Trust,2189.53, 21-Dec-2021
1484,Revenue,CAHD,Special ISB,Other Public Bodies,Enable Trust,1540.83, 21-Dec-2021
1485,Revenue,CAHD,Special ISB,Other Public Bodies,Enable Trust,1175.88, 21-Dec-2021
1486,Revenue,CAHD,Special ISB,Other Public Bodies,Enable Trust,892.05, 21-Dec-2021
1487,Revenue,CAHD,Special ISB,Other Public Bodies,Enable Trust,1175.88, 21-Dec-2021
1488,Revenue,CAHD,Special ISB,Other Public Bodies,Enable Trust,1175.88, 21-Dec-2021
1489,Revenue,CAHD,Special ISB,Other Public Bodies,Enable Trust,892.05, 21-Dec-2021
1490,Revenue,CAHD,Special ISB,Other Public Bodies,Enable Trust,2189.53, 21-Dec-2021
1491,Revenue,CAHD,Special ISB,Other Public Bodies,Enable Trust,1175.88, 21-Dec-2021
1492,Revenue,CAHD,Special ISB,Other Public Bodies,Enable Trust,1175.88, 21-Dec-2021
1493,Revenue,CAHD,Special ISB,Other Public Bodies,Enable Trust,892.05, 21-Dec-2021
1494,Revenue,CAHD,Special ISB,Other Public Bodies,Enable Trust,1175.88, 21-Dec-2021
1495,Revenue,CAHD,Special ISB,Other Public Bodies,Enable Trust,892.05, 21-Dec-2021
1496,Revenue,CAHD,Special ISB,Other Public Bodies,Enable Trust,1540.83, 21-Dec-2021
1497,Revenue,CAHD,Special ISB,Other Public Bodies,Enable Trust,1540.83, 21-Dec-2021
1498,Revenue,CAHD,Special ISB,Other Public Bodies,Enable Trust,1702.96, 21-Dec-2021
1499,Revenue,CAHD,Special ISB,Other Public Bodies,Enable Trust,1540.83, 21-Dec-2021
1500,Revenue,CAHD,Special ISB,Other Public Bodies,Enable Trust,892.05, 21-Dec-2021
1501,Revenue,CAHD,Special ISB,Other Public Bodies,Enable Trust,1540.83, 21-Dec-2021
1502,Revenue,CAHD,Special ISB,Other Public Bodies,Enable Trust,1175.88, 21-Dec-2021
1503,Revenue,CAHD,Special ISB,Other Public Bodies,Enable Trust,648.70, 21-Dec-2021
1504,Revenue,CAHD,Special ISB,Other Public Bodies,Enable Trust,1175.88, 21-Dec-2021
1505,Revenue,CAHD,Special ISB,Other Public Bodies,Enable Trust,1175.88, 21-Dec-2021
1506,Revenue,CAHD,Special ISB,Other Public Bodies,Enable Trust,1175.88, 21-Dec-2021
1507,Revenue,CAHD,Special ISB,Other Public Bodies,Enable Trust,892.05, 21-Dec-2021
1508,Revenue,CAHD,Special ISB,Other Public Bodies,Enable Trust,892.05, 21-Dec-2021
1509,Revenue,CAHD,Special ISB,Other Public Bodies,Enable Trust,2513.87, 21-Dec-2021
1510,Revenue,CAHD,Special ISB,Other Public Bodies,Enable Trust,2189.53, 21-Dec-2021
1511,Revenue,CAHD,Special ISB,Other Public Bodies,Enable Trust,648.70, 21-Dec-2021
1512,Revenue,CAHD,Special ISB,Other Public Bodies,Enable Trust,648.70, 21-Dec-2021
1513,Revenue,CAHD,Special ISB,Other Public Bodies,Enable Trust,1540.83, 21-Dec-2021
1514,Revenue,CAHD,Special ISB,Other Public Bodies,Enable Trust,2189.53, 21-Dec-2021
1515,Revenue,CAHD,Special ISB,Other Public Bodies,Enable Trust,1540.83, 21-Dec-2021
1516,Revenue,CAHD,Special ISB,Other Public Bodies,Enable Trust,1175.88, 21-Dec-2021
1517,Revenue,CAHD,Special ISB,Other Public Bodies,Enable Trust,1175.88, 21-Dec-2021
1518,Revenue,CAHD,Special ISB,Other Public Bodies,Enable Trust,2189.53, 21-Dec-2021
1519,Revenue,CAHD,Special ISB,Other Public Bodies,Enable Trust,1175.88, 21-Dec-2021
1520,Revenue,CAHD,Special ISB,Other Public Bodies,Enable Trust,1175.88, 21-Dec-2021
1521,Revenue,CAHD,Special ISB,Other Public Bodies,Enable Trust,1540.83, 21-Dec-2021
1522,Revenue,CAHD,Special ISB,Other Public Bodies,Enable Trust,1175.88, 21-Dec-2021
1523,Revenue,CAHD,Special ISB,Other Public Bodies,Enable Trust,892.05, 21-Dec-2021
1524,Revenue,CAHD,Special ISB,Other Public Bodies,Enable Trust,1175.88, 21-Dec-2021
1525,Revenue,CAHD,Special ISB,Other Public Bodies,Enable Trust,1540.83, 21-Dec-2021
1526,Revenue,CAHD,Special ISB,Other Public Bodies,Enable Trust,5945.24, 21-Dec-2021
1527,Revenue,CAHD,Special ISB,Other Public Bodies,Enable Trust,1175.88, 21-Dec-2021
1528,Revenue,CAHD,Special ISB,Other Public Bodies,Enable Trust,1175.88, 21-Dec-2021
1529,Revenue,CAHD,Special ISB,Other Public Bodies,Enable Trust,1702.96, 21-Dec-2021
1530,Revenue,CAHD,Special ISB,Other Public Bodies,Enable Trust,892.05, 21-Dec-2021
1531,Revenue,CAHD,Special ISB,Other Public Bodies,Enable Trust,892.05, 21-Dec-2021
1532,Revenue,CAHD,Special ISB,Other Public Bodies,Enable Trust,1175.88, 21-Dec-2021
1533,Revenue,CAHD,Special ISB,Other Public Bodies,Enable Trust,1540.83, 21-Dec-2021
1534,Revenue,CAHD,Special ISB,Other Public Bodies,Enable Trust,1175.88, 21-Dec-2021
1535,Revenue,CAHD,Special ISB,Other Public Bodies,Enable Trust,648.70, 21-Dec-2021
1536,Revenue,CAHD,Special ISB,Other Public Bodies,Enable Trust,1175.88, 21-Dec-2021
1537,Revenue,CAHD,Special ISB,Other Public Bodies,Enable Trust,1702.96, 21-Dec-2021
1538,Revenue,CAHD,Special ISB,Other Public Bodies,Enable Trust,1702.96, 21-Dec-2021
1539,Revenue,CAHD,Special ISB,Other Public Bodies,Enable Trust,1702.96, 21-Dec-2021
1540,Revenue,CAHD,Special ISB,Other Public Bodies,Enable Trust,1175.88, 21-Dec-2021
1541,Revenue,CAHD,Special ISB,Other Public Bodies,Enable Trust,1702.96, 21-Dec-2021
1542,Revenue,CAHD,Special ISB,Other Public Bodies,Enable Trust,1702.96, 21-Dec-2021
1543,Revenue,CAHD,Special ISB,Other Public Bodies,Enable Trust,1702.96, 21-Dec-2021
1544,Revenue,CAHD,Special ISB,Other Public Bodies,Enable Trust,1702.96, 21-Dec-2021
1545,Revenue,CAHD,Special ISB,Other Public Bodies,Enable Trust,1175.88, 21-Dec-2021
1546,Revenue,CAHD,Special ISB,Other Public Bodies,Enable Trust,1175.88, 21-Dec-2021
1547,Revenue,CAHD,Special ISB,Other Public Bodies,Enable Trust,1702.96, 21-Dec-2021
1548,Revenue,CAHD,Special ISB,Other Public Bodies,Enable Trust,2189.53, 21-Dec-2021
1549,Revenue,CAHD,Special ISB,Other Public Bodies,Enable Trust,2189.53, 21-Dec-2021
1550,Revenue,CAHD,Special ISB,Other Public Bodies,Enable Trust,2189.53, 21-Dec-2021
1551,Revenue,CAHD,Special ISB,Other Public Bodies,Enable Trust,892.05, 21-Dec-2021
1552,Revenue,CAHD,Special ISB,Other Public Bodies,Enable Trust,1175.88, 21-Dec-2021
1553,Revenue,CAHD,Special ISB,Other Public Bodies,Enable Trust,1175.88, 21-Dec-2021
1554,Revenue,CAHD,Special ISB,Other Public Bodies,Enable Trust,892.05, 21-Dec-2021
1555,Revenue,CAHD,Special ISB,Other Public Bodies,Enable Trust,892.05, 21-Dec-2021
1556,Revenue,CAHD,Special ISB,Other Public Bodies,Enable Trust,1702.96, 21-Dec-2021
1557,Revenue,CAHD,Special ISB,Other Public Bodies,Enable Trust,892.05, 21-Dec-2021
1558,Revenue,CAHD,Special ISB,Other Public Bodies,Enable Trust,892.05, 21-Dec-2021
1559,Revenue,CAHD,Special ISB,Other Public Bodies,Enable Trust,1702.96, 21-Dec-2021
1560,Revenue,CAHD,Special ISB,Other Public Bodies,Enable Trust,1175.88, 21-Dec-2021
1561,Revenue,CAHD,Special ISB,Other Public Bodies,Enable Trust,1702.96, 21-Dec-2021
1562,Revenue,CAHD,Special ISB,Other Public Bodies,Enable Trust,892.05, 21-Dec-2021
1563,Revenue,CAHD,Special ISB,Other Public Bodies,Enable Trust,1175.88, 21-Dec-2021
1564,Revenue,CAHD,Special ISB,Other Public Bodies,Enable Trust,1175.88, 21-Dec-2021
1565,Revenue,CAHD,Special ISB,Other Public Bodies,Enable Trust,892.05, 21-Dec-2021
1566,Revenue,CAHD,Special ISB,Other Public Bodies,Enable Trust,1702.96, 21-Dec-2021
1567,Revenue,CAHD,Special ISB,Other Public Bodies,Enable Trust,2513.87, 21-Dec-2021
1568,Revenue,CAHD,Special ISB,Other Public Bodies,Enable Trust,1702.96, 21-Dec-2021
1569,Revenue,CAHD,Special ISB,Other Public Bodies,Enable Trust,1702.96, 21-Dec-2021
1570,Revenue,CAHD,Special ISB,Other Public Bodies,Enable Trust,892.05, 21-Dec-2021
1571,Revenue,CAHD,Special ISB,Other Public Bodies,Enable Trust,1175.88, 21-Dec-2021
1572,Revenue,CAHD,Special ISB,Other Public Bodies,Enable Trust,1175.88, 21-Dec-2021
1573,Revenue,CAHD,Special ISB,Other Public Bodies,Enable Trust,1175.88, 21-Dec-2021
1574,Revenue,CAHD,Special ISB,Other Public Bodies,Enable Trust,892.05, 21-Dec-2021
1575,Revenue,CAHD,Special ISB,Other Public Bodies,Enable Trust,1702.96, 21-Dec-2021
1576,Revenue,CAHD,Special ISB,Other Public Bodies,Enable Trust,1508.33, 21-Dec-2021
1577,Revenue,CAHD,Special ISB,Other Public Bodies,Enable Trust,1175.88, 21-Dec-2021
1578,Revenue,CAHD,Special ISB,Other Public Bodies,Enable Trust,1702.96, 21-Dec-2021
1579,Revenue,CAHD,Special ISB,Other Public Bodies,Enable Trust,2189.53, 21-Dec-2021
1580,Revenue,CAHD,Special ISB,Other Public Bodies,Enable Trust,1175.88, 21-Dec-2021
1581,Revenue,CAHD,Special ISB,Other Public Bodies,Enable Trust,1313.73, 21-Dec-2021
1582,Revenue,CAHD,Special ISB,Other Public Bodies,Enable Trust,892.05, 21-Dec-2021
1583,Revenue,CAHD,Special ISB,Other Public Bodies,Enable Trust,1175.88, 21-Dec-2021
1584,Revenue,CAHD,Special ISB,Other Public Bodies,Enable Trust,1702.96, 21-Dec-2021
1585,Revenue,CAHD,Special ISB,Other Public Bodies,Enable Trust,648.70, 21-Dec-2021
1586,Revenue,CAHD,Special ISB,Other Public Bodies,Enable Trust,1175.88, 21-Dec-2021
1587,Revenue,CAHD,Special ISB,Other Public Bodies,Enable Trust,1175.88, 21-Dec-2021
1588,Revenue,CAHD,Special ISB,Other Public Bodies,Enable Trust,1175.88, 21-Dec-2021
1589,Revenue,CAHD,Special ISB,Other Public Bodies,Enable Trust,892.05, 21-Dec-2021
1590,Revenue,CAHD,Special ISB,Other Public Bodies,Enable Trust,2189.53, 21-Dec-2021
1591,Revenue,CAHD,Special ISB,Other Public Bodies,Enable Trust,1540.83, 21-Dec-2021
1592,Revenue,CAHD,Special ISB,Other Public Bodies,Enable Trust,1702.96, 21-Dec-2021
1593,Revenue,CAHD,Special ISB,Other Public Bodies,Enable Trust,1175.88, 21-Dec-2021
1594,Revenue,CAHD,Special ISB,Other Public Bodies,Enable Trust,1702.96, 21-Dec-2021
1595,Revenue,CAHD,Special ISB,Other Public Bodies,Enable Trust,2189.53, 21-Dec-2021
1596,Revenue,CAHD,Special ISB,Other Public Bodies,Enable Trust,1702.96, 21-Dec-2021
1597,Revenue,CAHD,Special ISB,Other Public Bodies,Enable Trust,1702.96, 21-Dec-2021
1598,Revenue,CAHD,Special ISB,Other Public Bodies,Enable Trust,1702.96, 21-Dec-2021
1599,Revenue,CAHD,Special ISB,Other Public Bodies,Enable Trust,1540.83, 21-Dec-2021
1600,Revenue,CAHD,Special ISB,Other Public Bodies,Enable Trust,1702.96, 21-Dec-2021
1601,Revenue,CAHD,Special ISB,Other Public Bodies,Enable Trust,1175.88, 21-Dec-2021
1602,Revenue,CAHD,Special ISB,Other Public Bodies,Enable Trust,2189.53, 21-Dec-2021
1603,Revenue,CAHD,Special ISB,Other Public Bodies,Enable Trust,1175.88, 21-Dec-2021
1604,Revenue,CAHD,Special ISB,Other Public Bodies,Enable Trust,892.05, 21-Dec-2021
1605,Revenue,CAHD,Special ISB,Other Public Bodies,Enable Trust,2189.53, 21-Dec-2021
1606,Revenue,CAHD,Special ISB,Other Public Bodies,Enable Trust,892.05, 21-Dec-2021
1607,Revenue,CAHD,Special ISB,Other Public Bodies,Enable Trust,1175.88, 21-Dec-2021
1608,Revenue,CAHD,Special ISB,Other Public Bodies,Enable Trust,1702.96, 21-Dec-2021
1609,Revenue,CAHD,Special ISB,Other Public Bodies,Enable Trust,1702.96, 21-Dec-2021
1610,Revenue,CAHD,Special ISB,Other Public Bodies,Enable Trust,1175.88, 21-Dec-2021
1611,Revenue,CAHD,Special ISB,Other Public Bodies,Enable Trust,2513.87, 21-Dec-2021
1612,Revenue,CAHD,Special ISB,Other Public Bodies,Enable Trust,1702.96, 21-Dec-2021
1613,Revenue,CAHD,Special ISB,Other Public Bodies,Enable Trust,1175.88, 21-Dec-2021
1614,Revenue,CAHD,Special ISB,Other Public Bodies,Enable Trust,1702.96, 21-Dec-2021
1615,Revenue,CAHD,Special ISB,Other Public Bodies,Enable Trust,892.05, 21-Dec-2021
1616,Revenue,CAHD,Special ISB,Other Public Bodies,Enable Trust,1702.96, 21-Dec-2021
1617,Revenue,CAHD,Special ISB,Other Public Bodies,Enable Trust,2513.87, 21-Dec-2021
1618,Revenue,CAHD,Special ISB,Other Public Bodies,Enable Trust,1702.96, 21-Dec-2021
1619,Revenue,CAHD,Special ISB,Other Public Bodies,Enable Trust,1702.96, 21-Dec-2021
1620,Revenue,CAHD,Special ISB,Other Public Bodies,Enable Trust,1175.88, 21-Dec-2021
1621,Revenue,CAHD,Special ISB,Other Public Bodies,Enable Trust,892.05, 21-Dec-2021
1622,Revenue,CAHD,Special ISB,Other Public Bodies,Enable Trust,2189.53, 21-Dec-2021
1623,Revenue,CAHD,Special ISB,Other Public Bodies,Enable Trust,1702.96, 21-Dec-2021
1624,Revenue,CAHD,Special ISB,Other Public Bodies,Enable Trust,1175.88, 21-Dec-2021
1625,Revenue,CAHD,CSC - Agency Fostering,Foster Parent Allowances,Enhanced Foster Care Limited,4683.00, 07-Dec-2021
1626,Revenue,CAHD,CSC - Agency Fostering,Foster Parent Allowances,Enhanced Foster Care Limited,4683.00, 09-Dec-2021
1627,Revenue,CAHD,South - Commissioned Services,Other Small Contracts,Epiphany In Care,1829.92, 01-Dec-2021
1628,Revenue,CAHD,North - Community based support,Other Small Contracts,Epiphany In Care,4209.92, 24-Dec-2021
1629,Revenue,CAHD,North - Community based support,Other Small Contracts,Epiphany In Care,11074.56, 06-Dec-2021
1630,Revenue,CAHD,Central - Commissioned Services,Other Small Contracts,Epiphany In Care,1143.56, 07-Dec-2021
1631,Revenue,CAHD,North - Community based support,Other Small Contracts,Epiphany In Care,4209.92, 29-Dec-2021
1632,Revenue,CAHD,Central - Commissioned Services,Other Small Contracts,Epiphany In Care,1214.40, 24-Dec-2021
1633,Revenue,CAHD,North - Community based support,Other Small Contracts,Epiphany In Care,11074.56, 24-Dec-2021
1634,Revenue,CAHD,Central - Commissioned Services,Permanent Residential,Epworth House,3400.00, 14-Dec-2021
1635,Revenue,CAHD,North - S117,Permanent Residential,Evolve House,3490.20, 14-Dec-2021
1636,Revenue,CAHD,Placements OLA Special Schools and RB,Other L.A.s - General,Excalibur Academies Trust T/A,2238.77, 21-Dec-2021
1637,Revenue,CAHD,Covid - ASC - Infection Control,Grants to Voluntary Bodies,Excel Living Limited,1063.16, 20-Dec-2021
1638,Revenue,CAHD,ASC Rapid Testing Fund,Grants to Voluntary Bodies,Excel Living Limited,779.90, 17-Dec-2021
1639,Revenue,CAHD,CSC - Residential Placements,Permanent Residential,Exceptional Care Limited,6400.00, 30-Dec-2021
1640,Revenue,CAHD,Extra Care Housing,Private & Voluntary Home Care,Extra Care Charitable Trust,56276.50, 15-Dec-2021
1641,Revenue,CAHD,Covid - ASC - Infection Control,Grants to Voluntary Bodies,Extra Care Charitable Trust,5012.05, 10-Dec-2021
1642,Revenue,CAHD,ASC Rapid Testing Fund,Grants to Voluntary Bodies,Extra Care Charitable Trust,3676.69, 13-Dec-2021
1643,Revenue,CAHD,Covid - Vaccines,Grants to Voluntary Bodies,Extra Care Charitable Trust,1340.33, 10-Dec-2021
1644,Revenue,CAHD,North - Community based support,Permanent Residential,Eyre Court,5430.00, 14-Dec-2021
1645,Revenue,CAHD,Covid - ASC - Infection Control,Grants to Voluntary Bodies,Eyre Court,8554.97, 13-Dec-2021
1646,Revenue,CAHD,ASC Rapid Testing Fund,Grants to Voluntary Bodies,Eyre Court,6078.72, 13-Dec-2021
1647,Revenue,CAHD,Covid - Vaccines,Grants to Voluntary Bodies,Eyre Court,747.37, 13-Dec-2021
1648,Revenue,CAHD,Community Support - South,Preventative Assistance,F R Gregory,500.00, 22-Dec-2021
1649,Revenue,CAHD,South - Commissioned Services,Permanent Nursing,Fairview Court,3976.16, 14-Dec-2021
1650,Revenue,CAHD,South Glos Users in South Glos Homes,Permanent Nursing,Fairview Court,750.40, 14-Dec-2021
1651,Revenue,CAHD,South - Commissioned Services,Respite Planned - Nursing,Fairview Court,1200.00, 14-Dec-2021
1652,Revenue,CAHD,South Glos Users in South Glos Homes,Permanent Nursing,Fairview Court,750.40, 14-Dec-2021
1653,Revenue,CAHD,South Glos Users in South Glos Homes,Permanent Nursing,Fairview Court,1822.40, 14-Dec-2021
1654,Revenue,CAHD,South Glos Users in South Glos Homes,Permanent Nursing,Fairview Court,750.40, 14-Dec-2021
1655,Revenue,CAHD,South - Commissioned Services,Respite Planned - Nursing,Fairview Court,4800.00, 14-Dec-2021
1656,Revenue,CAHD,South Glos Users in South Glos Homes,Permanent Nursing,Fairview Court,750.40, 14-Dec-2021
1657,Revenue,CAHD,South Glos Users in South Glos Homes,Permanent Nursing,Fairview Court,750.40, 14-Dec-2021
1658,Revenue,CAHD,Central - Commissioned Services,Permanent Nursing,Fairview Court,4800.00, 14-Dec-2021
1659,Revenue,CAHD,South Glos Users in South Glos Homes,Permanent Nursing,Fairview Court,750.40, 14-Dec-2021
1660,Revenue,CAHD,South - Commissioned Services,Permanent Nursing,Fairview Court,5545.60, 14-Dec-2021
1661,Revenue,CAHD,South Glos Users in South Glos Homes,Permanent Nursing,Fairview Court,750.40, 14-Dec-2021
1662,Revenue,CAHD,South - S117,Permanent Nursing,Fairview Court,4355.24, 14-Dec-2021
1663,Revenue,CAHD,South Glos Users in South Glos Homes,Permanent Nursing,Fairview Court,750.40, 14-Dec-2021
1664,Revenue,CAHD,North - Community based support,Permanent Nursing,Fairview Court,4800.00, 14-Dec-2021
1665,Revenue,CAHD,South - Commissioned Services,Permanent Nursing,Fairview Court,4078.24, 14-Dec-2021
1666,Revenue,CAHD,South Glos Users in South Glos Homes,Permanent Nursing,Fairview Court,750.40, 14-Dec-2021
1667,Revenue,CAHD,South Glos Users in South Glos Homes,Permanent Nursing,Fairview Court,750.40, 14-Dec-2021
1668,Revenue,CAHD,South Glos Users in South Glos Homes,Permanent Nursing,Fairview Court,750.40, 14-Dec-2021
1669,Revenue,CAHD,South Glos Users in South Glos Homes,Permanent Nursing,Fairview Court,750.40, 14-Dec-2021
1670,Revenue,CAHD,South Glos Users in South Glos Homes,Permanent Nursing,Fairview Court,750.40, 14-Dec-2021
1671,Revenue,CAHD,South - Commissioned Services,Permanent Nursing,Fairview Court,4800.00, 14-Dec-2021
1672,Revenue,CAHD,South Glos Users in South Glos Homes,Permanent Nursing,Fairview Court,750.40, 14-Dec-2021
1673,Revenue,CAHD,South Glos Users in South Glos Homes,Permanent Nursing,Fairview Court,750.40, 14-Dec-2021
1674,Revenue,CAHD,South Glos Users in South Glos Homes,Permanent Nursing,Fairview Court,3082.00, 14-Dec-2021
1675,Revenue,CAHD,South Glos Users in South Glos Homes,Permanent Nursing,Fairview Court,750.40, 14-Dec-2021
1676,Revenue,CAHD,South Glos Users in South Glos Homes,Permanent Nursing,Fairview Court,750.40, 14-Dec-2021
1677,Revenue,CAHD,South - Commissioned Services,Permanent Nursing,Fairview Court,4910.40, 14-Dec-2021
1678,Revenue,CAHD,South Glos Users in South Glos Homes,Permanent Nursing,Fairview Court,750.40, 14-Dec-2021
1679,Revenue,CAHD,South Glos Users in South Glos Homes,Permanent Nursing,Fairview Court,750.40, 14-Dec-2021
1680,Revenue,CAHD,South Glos Users in South Glos Homes,Permanent Nursing,Fairview Court,3162.40, 14-Dec-2021
1681,Revenue,CAHD,South - Commissioned Services,Permanent Nursing,Fairview Court,3887.40, 14-Dec-2021
1682,Revenue,CAHD,South Glos Users in South Glos Homes,Permanent Nursing,Fairview Court,750.40, 14-Dec-2021
1683,Revenue,CAHD,North - Community based support,Permanent Residential,Fairview Court,3397.84, 14-Dec-2021
1684,Revenue,CAHD,South - Commissioned Services,Permanent Nursing,Fairview Court,4232.92, 14-Dec-2021
1685,Revenue,CAHD,South Glos Users in South Glos Homes,Permanent Nursing,Fairview Court,750.40, 14-Dec-2021
1686,Revenue,CAHD,South Glos Users in South Glos Homes,Permanent Nursing,Fairview Court,750.40, 14-Dec-2021
1687,Revenue,CAHD,South - Commissioned Services,Permanent Nursing,Fairview Court,4800.00, 14-Dec-2021
1688,Revenue,CAHD,South Glos Users in South Glos Homes,Permanent Nursing,Fairview Court,750.40, 14-Dec-2021
1689,Revenue,CAHD,South Glos Users in South Glos Homes,Permanent Nursing,Fairview Court,750.40, 14-Dec-2021
1690,Revenue,CAHD,South Glos Users in South Glos Homes,Permanent Nursing,Fairview Court,750.40, 14-Dec-2021
1691,Revenue,CAHD,South - Commissioned Services,Permanent Nursing,Fairview Court,5237.76, 14-Dec-2021
1692,Revenue,CAHD,South Glos Users in South Glos Homes,Permanent Nursing,Fairview Court,750.40, 14-Dec-2021
1693,Revenue,CAHD,South Glos Users in South Glos Homes,Permanent Nursing,Fairview Court,750.40, 14-Dec-2021
1694,Revenue,CAHD,South - Commissioned Services,Permanent Residential,Fairview Court,4545.48, 14-Dec-2021
1695,Revenue,CAHD,South Glos Users in South Glos Homes,Permanent Nursing,Fairview Court,750.40, 14-Dec-2021
1696,Revenue,CAHD,South Glos Users in South Glos Homes,Permanent Nursing,Fairview Court,750.40, 14-Dec-2021
1697,Revenue,CAHD,South Glos Users in South Glos Homes,Permanent Nursing,Fairview Court,750.40, 14-Dec-2021
1698,Revenue,CAHD,South - Commissioned Services,Permanent Nursing,Fairview Court,3701.96, 14-Dec-2021
1699,Revenue,CAHD,South Glos Users in South Glos Homes,Permanent Nursing,Fairview Court,750.40, 14-Dec-2021
1700,Revenue,CAHD,South - Commissioned Services,Permanent Nursing,Fairview Court,4232.92, 14-Dec-2021
1701,Revenue,CAHD,South Glos Users in South Glos Homes,Permanent Nursing,Fairview Court,750.40, 14-Dec-2021
1702,Revenue,CAHD,Covid  - Workforce capacity,Grants to Voluntary Bodies,Fairview Court,5759.56, 29-Dec-2021
1703,Revenue,CAHD,South - Commissioned Services,Permanent Residential,Fairview House,3800.00, 14-Dec-2021
1704,Revenue,CAHD,South - Commissioned Services,Permanent Residential,Fairview House,2403.64, 14-Dec-2021
1705,Revenue,CAHD,Central - Commissioned Services,Permanent Residential,Fairview House,3400.00, 14-Dec-2021
1706,Revenue,CAHD,South - Commissioned Services,Permanent Residential,Fairview House,3478.20, 14-Dec-2021
1707,Revenue,CAHD,North - Community based support,Permanent Residential,Fairview House,3800.00, 14-Dec-2021
1708,Revenue,CAHD,South - Commissioned Services,Permanent Residential,Fairview House,3600.00, 14-Dec-2021
1709,Revenue,CAHD,South - Commissioned Services,Permanent Residential,Fairview House,3800.00, 14-Dec-2021
1710,Revenue,CAHD,Central - Commissioned Services,Permanent Residential,Fairview House,3800.00, 14-Dec-2021
1711,Revenue,CAHD,Covid  - Workforce capacity,Grants to Voluntary Bodies,Fairview House,1252.08, 29-Dec-2021
1712,Revenue,CAHD,North - Community based support,Permanent Residential,Faith House,3263.72, 14-Dec-2021
1713,Revenue,CAHD,North - Community based support,Permanent Residential,Faith House,3657.14, 14-Dec-2021
1714,Revenue,CAHD,North - Community based support,Permanent Residential,Faith House,3200.00, 14-Dec-2021
1715,Revenue,CAHD,South - Commissioned Services,Respite Planned - Residential,Faith House,4228.57, 14-Dec-2021
1716,Revenue,CAHD,South - Commissioned Services,Respite Planned - Residential,Faith House,685.71, 14-Dec-2021
1717,Revenue,CAHD,North - Community based support,Permanent Residential,Faith House,3414.00, 14-Dec-2021
1718,Revenue,CAHD,South - Commissioned Services,Permanent Residential,Faith House,3965.36, 14-Dec-2021
1719,Revenue,CAHD,Covid  - Workforce capacity,Grants to Voluntary Bodies,Faith House,1168.61, 29-Dec-2021
1720,Revenue,CAHD,CSC - Agency Fostering,Foster Parent Allowances,Family Placement com,3219.00, 15-Dec-2021
1721,Revenue,CAHD,Post 16 High Needs Placements,Other Private Contractors,Farleigh FEC-Frome Priory,24031.67, 24-Dec-2021
1722,Revenue,CAHD,Post 16 High Needs Placements,Other Private Contractors,Farleigh FEC-Frome Priory,24031.67, 29-Dec-2021
1723,Revenue,CAHD,Post 16 High Needs Placements,Other Private Contractors,Farleigh FEC-Frome Priory,9802.17, 07-Dec-2021
1724,Revenue,CAHD,Central - Commissioned Services,Permanent Nursing,Field House Care Home,3840.00, 14-Dec-2021
1725,Revenue,CAHD,North - Community based support,Permanent Nursing,Field House Care Home,3589.48, 14-Dec-2021
1726,Revenue,CAHD,Central - Commissioned Services,Permanent Nursing,Field House Care Home,3760.00, 14-Dec-2021
1727,Revenue,CAHD,North - Community based support,Permanent Nursing,Field House Care Home,2320.12, 14-Dec-2021
1728,Revenue,CAHD,Central - Commissioned Services,Permanent Nursing,Field House Care Home,3740.00, 14-Dec-2021
1729,Revenue,CAHD,North - Community based support,Permanent Nursing,Field House Care Home,2320.12, 14-Dec-2021
1730,Revenue,CAHD,Statemented Support Payments to OLAs,Other L.A.s - General,Filton Avenue Primary School,1131.84, 23-Dec-2021
1731,Revenue,CAHD,Statemented Support Payments to OLAs,Other L.A.s - General,Filton Avenue Primary School,1332.27, 23-Dec-2021
1732,Revenue,CAHD,South - Commissioned Services,Permanent Nursing,First Floor  Lingfield House,3846.48, 14-Dec-2021
1733,Revenue,CAHD,South Glos Users in South Glos Homes,Permanent Nursing,First Floor  Lingfield House,750.40, 14-Dec-2021
1734,Revenue,CAHD,South - Commissioned Services,Respite Planned - Residential,First Floor  Lingfield House,3894.29, 14-Dec-2021
1735,Revenue,CAHD,South - Commissioned Services,Permanent Nursing,First Floor  Lingfield House,3480.00, 14-Dec-2021
1736,Revenue,CAHD,South - Commissioned Services,Respite Planned - Residential,First Floor  Lingfield House,3480.00, 14-Dec-2021
1737,Revenue,CAHD,South - Commissioned Services,Respite Planned - Residential,First Floor  Lingfield House,1740.00, 14-Dec-2021
1738,Revenue,CAHD,South - Commissioned Services,Permanent Residential,First Floor  Lingfield House,3560.00, 14-Dec-2021
1739,Revenue,CAHD,South - Commissioned Services,Permanent Nursing,First Floor  Lingfield House,1880.00, 14-Dec-2021
1740,Revenue,CAHD,South - Commissioned Services,Permanent Nursing,First Floor  Lingfield House,1880.00, 14-Dec-2021
1741,Revenue,CAHD,South - Commissioned Services,Permanent Nursing,First Floor  Lingfield House,1880.00, 14-Dec-2021
1742,Revenue,CAHD,North - Community based support,Permanent Nursing,First Floor  Lingfield House,3760.00, 14-Dec-2021
1743,Revenue,CAHD,South - Commissioned Services,Permanent Nursing,First Floor  Lingfield House,2613.12, 14-Dec-2021
1744,Revenue,CAHD,South Glos Users in South Glos Homes,Permanent Nursing,First Floor  Lingfield House,750.40, 14-Dec-2021
1745,Revenue,CAHD,South - Commissioned Services,Permanent Nursing,First Floor  Lingfield House,3760.00, 14-Dec-2021
1746,Revenue,CAHD,South Glos Users in South Glos Homes,Permanent Nursing,First Floor  Lingfield House,750.40, 14-Dec-2021
1747,Revenue,CAHD,South Glos Users in South Glos Homes,Permanent Nursing,First Floor  Lingfield House,750.40, 14-Dec-2021
1748,Revenue,CAHD,South Glos Users in South Glos Homes,Permanent Nursing,First Floor  Lingfield House,3698.40, 14-Dec-2021
1749,Revenue,CAHD,South Glos Users in South Glos Homes,Permanent Nursing,First Floor  Lingfield House,750.40, 14-Dec-2021
1750,Revenue,CAHD,South Glos Users in South Glos Homes,Permanent Nursing,First Floor  Lingfield House,750.40, 14-Dec-2021
1751,Revenue,CAHD,South - Commissioned Services,Permanent Nursing,First Floor  Lingfield House,3480.00, 14-Dec-2021
1752,Revenue,CAHD,South - Commissioned Services,Permanent Residential,First Floor  Lingfield House,3360.00, 14-Dec-2021
1753,Revenue,CAHD,South - Commissioned Services,Permanent Nursing,First Floor  Lingfield House,3760.00, 14-Dec-2021
1754,Revenue,CAHD,North - Community based support,Permanent Residential,First Floor  Q4  The Square,9099.40, 14-Dec-2021
1755,Revenue,CAHD,Jointly Funded H&SC Packages,Permanent Residential,First Floor  Q4  The Square,5728.52, 14-Dec-2021
1756,Revenue,CAHD,North - Community based support,Permanent Residential,First Floor  Q4  The Square,9030.88, 14-Dec-2021
1757,Revenue,CAHD,Jointly Funded H&SC Packages,Permanent Residential,First Floor  Q4  The Square,2639.56, 14-Dec-2021
1758,Revenue,CAHD,CSC - Agency Fostering,Foster Parent Allowances,Five Rivers Child Care Limited,3627.00, 06-Dec-2021
1759,Revenue,CAHD,CSC - Residential Placements,Permanent Residential,Five Rivers Child Care Limited,29228.57, 13-Dec-2021
1760,Revenue,CAHD,CSC - Agency Fostering,Foster Parent Allowances,Five Rivers Child Care Limited,3510.00, 07-Dec-2021
1761,Revenue,CAHD,CSC - Agency Fostering,Foster Parent Allowances,Five Rivers Child Care Limited,3552.86, 06-Dec-2021
1762,Revenue,CAHD,CSC - Agency Fostering,Foster Parent Allowances,Five Rivers Child Care Limited,2152.03, 07-Dec-2021
1763,Revenue,CAHD,CSC - Agency Fostering,Foster Parent Allowances,Five Rivers Child Care Limited,3481.80, 07-Dec-2021
1764,Revenue,CAHD,CSC - Agency Fostering,Foster Parent Allowances,Five Rivers Child Care Limited,3370.97, 02-Dec-2021
1765,Revenue,CAHD,CSC - Agency Fostering,Foster Parent Allowances,Five Rivers Child Care Limited,3370.97, 06-Dec-2021
1766,Revenue,CAHD,Schools Specific Grant Income,Other Public Bodies,Five Rivers Child Care Limited,500.00, 10-Dec-2021
1767,Revenue,CAHD,CSC - Agency Fostering,Foster Parent Allowances,Foster Care Associates Limited,2355.60, 15-Dec-2021
1768,Revenue,CAHD,CSC - Asylum Seekers - Unaccompanied,Foster Parent Allowances,Foster Care Associates Limited,2505.30, 15-Dec-2021
1769,Revenue,CAHD,CSC - Agency Fostering,Foster Parent Allowances,Foster Care Associates Limited,3562.50, 15-Dec-2021
1770,Revenue,CAHD,Central - Commissioned Services,Other Small Contracts,Fourways Care Limited,1035.69, 01-Dec-2021
1771,Revenue,CAHD,South - Commissioned Services,Other Small Contracts,Fourways Care Limited,594.82, 01-Dec-2021
1772,Revenue,CAHD,North - Community based support,Other Small Contracts,Fourways Care Limited,8918.71, 01-Dec-2021
1773,Revenue,CAHD,Central - Commissioned Services,Other Small Contracts,Fourways Care Limited,1004.24, 01-Dec-2021
1774,Revenue,CAHD,South - Commissioned Services,Other Small Contracts,Fourways Care Limited,594.82, 01-Dec-2021
1775,Revenue,CAHD,North - Community based support,Other Small Contracts,Fourways Care Limited,8492.06, 01-Dec-2021
1776,Revenue,CAHD,Central - Commissioned Services,Other Small Contracts,Fourways Care Limited,1040.78, 07-Dec-2021
1777,Revenue,CAHD,South - Commissioned Services,Other Small Contracts,Fourways Care Limited,594.82, 07-Dec-2021
1778,Revenue,CAHD,North - Community based support,Other Small Contracts,Fourways Care Limited,8433.54, 07-Dec-2021
1779,Revenue,CAHD,Central - Commissioned Services,Other Small Contracts,Fourways Care Limited,999.15, 22-Dec-2021
1780,Revenue,CAHD,South - Commissioned Services,Other Small Contracts,Fourways Care Limited,594.82, 22-Dec-2021
1781,Revenue,CAHD,North - Community based support,Other Small Contracts,Fourways Care Limited,8251.92, 22-Dec-2021
1782,Revenue,CAHD,Covid - ASC - Infection Control,Grants to Voluntary Bodies,Fourways Care Limited,3797.01, 01-Dec-2021
1783,Revenue,CAHD,ASC Rapid Testing Fund,Grants to Voluntary Bodies,Fourways Care Limited,2785.37, 01-Dec-2021
1784,Revenue,CAHD,Covid - Vaccines,Grants to Voluntary Bodies,Fourways Care Limited,1015.40, 01-Dec-2021
1785,Revenue,CAHD,North - Community based support,Other Small Contracts,Freeways Trust Limited,2489.92, 15-Dec-2021
1786,Revenue,CAHD,South - Commissioned Services,Other Small Contracts,Freeways Trust Limited,1164.64, 03-Dec-2021
1787,Revenue,CAHD,South - Commissioned Services,Other Small Contracts,Freeways Trust Limited,1034.12, 03-Dec-2021
1788,Revenue,CAHD,North - Community based support,Other Small Contracts,Freeways Trust Limited,2489.92, 20-Dec-2021
1789,Revenue,CAHD,South - Commissioned Services,Other Small Contracts,Freeways Trust Limited,1164.64, 24-Dec-2021
1790,Revenue,CAHD,Central - Commissioned Services,Other Small Contracts,Freeways Trust Limited,803.20, 24-Dec-2021
1791,Revenue,CAHD,Central - Commissioned Services,Permanent Residential,Freeways Trust Ltd,4059.28, 14-Dec-2021
1792,Revenue,CAHD,Central - Commissioned Services,Permanent Residential,Freeways Trust Ltd,4098.72, 14-Dec-2021
1793,Revenue,CAHD,Central - Commissioned Services,Permanent Residential,Freeways Trust Ltd,4564.92, 14-Dec-2021
1794,Revenue,CAHD,Central - Commissioned Services,Permanent Residential,Freeways Trust Ltd,5270.84, 14-Dec-2021
1795,Revenue,CAHD,North - Community based support,Permanent Residential,Freeways Trust Ltd,4101.56, 14-Dec-2021
1796,Revenue,CAHD,Central - Commissioned Services,Permanent Residential,Freeways Trust Ltd,4379.80, 14-Dec-2021
1797,Revenue,CAHD,South - Commissioned Services,Permanent Residential,Freeways Trust Ltd,4533.88, 14-Dec-2021
1798,Revenue,CAHD,Central - Commissioned Services,Permanent Residential,Freeways Trust Ltd,4098.72, 14-Dec-2021
1799,Revenue,CAHD,Central - Commissioned Services,Permanent Residential,Freeways Trust Ltd,4098.72, 14-Dec-2021
1800,Revenue,CAHD,North - Community based support,Permanent Residential,Freeways Trust Ltd,4101.56, 14-Dec-2021
1801,Revenue,CAHD,Central - Commissioned Services,Permanent Residential,Freeways Trust Ltd,6129.72, 14-Dec-2021
1802,Revenue,CAHD,Younger MH non-res purchasing,Supported Living,Freeways Trust Ltd,916.80, 14-Dec-2021
1803,Revenue,CAHD,South - Commissioned Services,Supported Living,Freeways Trust Ltd,1971.68, 14-Dec-2021
1804,Revenue,CAHD,North - Community based support,Supported Living,Freeways Trust Ltd,1971.68, 14-Dec-2021
1805,Revenue,CAHD,Central - Commissioned Services,Permanent Residential,Freeways Trust Ltd,3600.00, 14-Dec-2021
1806,Revenue,CAHD,Central - Commissioned Services,Fees & Charges Income - General,Freeways Trust Ltd,3100.00, 14-Dec-2021
1807,Revenue,CAHD,S28A cases,Permanent Residential,Freeways Trust Ltd,6237.68, 14-Dec-2021
1808,Revenue,CAHD,North - Community based support,Permanent Residential,Freeways Trust Ltd,3935.80, 14-Dec-2021
1809,Revenue,CAHD,North - Community based support,Permanent Residential,Freeways Trust Ltd,3452.28, 14-Dec-2021
1810,Revenue,CAHD,North - Community based support,Permanent Residential,Freeways Trust Ltd,3905.88, 14-Dec-2021
1811,Revenue,CAHD,North - Community based support,Permanent Residential,Freeways Trust Ltd,3849.08, 14-Dec-2021
1812,Revenue,CAHD,Section 117 Placements MH Younger,Permanent Residential,Freeways Trust Ltd,3492.00, 14-Dec-2021
1813,Revenue,CAHD,Central - Commissioned Services,Day Care / Social Activities,Frenchay Beckspool Building,1255.20, 14-Dec-2021
1814,Revenue,CAHD,South - Commissioned Services,Day Care / Social Activities,Frenchay Beckspool Building,941.60, 14-Dec-2021
1815,Revenue,CAHD,South - Commissioned Services,Day Care / Social Activities,Frenchay Beckspool Building,663.81, 14-Dec-2021
1816,Revenue,CAHD,North - Community based support,Permanent Nursing,Frenchay Park Nursing Home,3400.00, 14-Dec-2021
1817,Revenue,CAHD,North - Community based support,Permanent Nursing,Frenchay Park Nursing Home,3700.00, 14-Dec-2021
1818,Revenue,CAHD,CSC - Agency Fostering,Foster Parent Allowances,Fusion Fostering Ltd,3406.07, 06-Dec-2021
1819,Revenue,CAHD,CSC - Agency Fostering,Foster Parent Allowances,Fusion Fostering Ltd,3519.61, 15-Dec-2021
1820,Revenue,CAHD,CSC - Asylum Seekers - Unaccompanied,Foster Parent Allowances,Fusion Fostering Ltd,2635.00, 15-Dec-2021
1821,Revenue,CAHD,CSC - Agency Fostering,Foster Parent Allowances,Fusion Fostering Ltd,4209.05, 15-Dec-2021
1822,Revenue,CAHD,Covid - ASC - Infection Control,Grants to Voluntary Bodies,Galiant Health Care Limited,658.15, 20-Dec-2021
1823,Revenue,CAHD,Travel to School (HTST) - Special,Client Transport,Individual,567.00, 08-Dec-2021
1824,Revenue,CAHD,North - Community based support,Supported Living,Gladstone House,3312.12, 14-Dec-2021
